{"text_format":"1","workbook":"xlsx","n_sheets":4,"sheets":["Titulní list","Seznam měřicích obvodů","Návod na vyplnění","Číselníky"],"not_rendered":{"charts":0,"images":0,"macros":1,"external_links":1,"defined_names":6,"comments":0,"pivot_tables":0},"unopened":[],"bounds":{"document_bytes":16777216,"sheet_cells":100000,"rows_first":2000,"rows_last":500,"rows_between":2000,"halvings":0,"cell_chars":16384,"cell_head_chars":4096},"cells_cut":0,"cells_raw":0,"read":"whole","date_system":"1900"}

{"sheet":"Titulní list","index":0,"n_rows":38,"n_cols":82,"rows_kept":38,"cut":false,"hidden":false,"merged":[[37,3,41,70],[29,80,34,81],[5,54,5,70],[9,54,12,70],[36,3,36,70],[32,3,33,20],[32,21,33,38],[32,39,33,44],[32,45,33,70],[34,39,34,44],[27,54,27,62],[27,63,28,70],[29,54,30,62],[29,63,30,70],[31,3,31,20],[31,21,31,38],[31,39,31,44],[31,45,31,70],[19,3,19,19],[19,54,19,62],[20,20,22,53],[20,63,21,70],[23,3,23,19],[23,54,23,62],[23,63,24,70],[24,16,27,53],[25,54,25,62],[25,63,26,70],[10,43,11,52],[13,3,13,19],[13,20,15,53],[13,54,13,62],[14,63,16,70],[16,3,16,19],[16,20,18,53],[10,9,11,18],[10,26,11,35],[5,81,7,81],[1,3,1,70],[1,79,2,82],[4,3,4,19],[4,20,4,36],[4,37,4,53],[4,54,4,70],[5,3,7,19],[5,20,7,36],[5,37,7,53],[5,80,7,80]]}
[]
[null,null,null,"Titulní list",null,null,null,null,null,null,null,null,null,null,null,null,null,null,null,null,null,null,null,null,null,null,null,null,null,null,null,null,null,null,null,null,null,null,null,null,null,null,null,null,null,null,null,null,null,null,null,null,null,null,null,null,null,null,null,null,null,null,null,null,null,null,null,null,null,null,null,null,null,null,null,null,null,null,null,"Při vyplňování položek Titulního listu postupujte podle pokynů uvedených ve \nStandardu ČEZ_ST_0093 (Požadavky na projektovou a související dokumentaci)"]
[]
[]
[null,null,null,"VYPRACOVAL:",null,null,null,null,null,null,null,null,null,null,null,null,null,null,null,null,"KONTROLOVAL:",null,null,null,null,null,null,null,null,null,null,null,null,null,null,null,null,"HIP:",null,null,null,null,null,null,null,null,null,null,null,null,null,null,null,null,"PROJEKTOVÁ FIRMA:"]
[null,null,null,{"$f":"CD9","v":" "},null,null,null,null,null,null,null,null,null,null,null,null,null,null,null,null,{"$f":"CD10","v":" "},null,null,null,null,null,null,null,null,null,null,null,null,null,null,null,null,{"$f":"CD11","v":" "},null,null,null,null,null,null,null,null,null,null,null,null,null,null,null,null,"Logo:",null,null,null,null,null,null,null,null,null,null,null,null,null,null,null,null,null,null,null,null,null,null,null,null,null,"Položka Titulního listu","Údaje vyplněné v tomto sloupci jsou automaticky přenášeny na příslušné místo v Titulním Listu\nŘÁDKY VYPLŇUJTE POSTUPNĚ SHORA DOLŮ"]
[]
[]
[null,null,null,null,null,null,null,null,null,null,null,null,null,null,null,null,null,null,null,null,null,null,null,null,null,null,null,null,null,null,null,null,null,null,null,null,null,null,null,null,null,null,null,null,null,null,null,null,null,null,null,null,null,null,{"$f":"CD12","v":" "},null,null,null,null,null,null,null,null,null,null,null,null,null,null,null,null,null,null,null,null,null,null,null,null,null,"VYPRACOVAL:"," "]
[null,null,null,"INVESTOR:",null,null,null,null,null,null,null,null,null,null,null,null,null,null,null,null,"LOKALITA:",null,null,null,null,null,null,null,null,null,null,null,null,null,null,null,null,"DATUM:",null,null,null,null,null,null,null,null,null,null,null,null,null,null,null,null,{"$f":"CD12","v":" "},null,null,null,null,null,null,null,null,null,null,null,null,null,null,null,null,null,null,null,null,null,null,null,null,null,"KONTROLOVAL:"," "]
[null,null,null,null,null,null,null,null,null,{"$f":"CD13","v":" "},null,null,null,null,null,null,null,null,null,null,null,null,null,null,null,null,{"$f":"CD14","v":"ETE"},null,null,null,null,null,null,null,null,null,null,null,null,null,null,null,null,{"$f":"CD15","v":" "},null,null,null,null,null,null,null,null,null,null,null,null,null,null,null,null,null,null,null,null,null,null,null,null,null,null,null,null,null,null,null,null,null,null,null,null,"HIP:"," "]
[null,null,null,null,null,null,null,null,null,null,null,null,null,null,null,null,null,null,null,null,null,null,null,null,null,null,null,null,null,null,null,null,null,null,null,null,null,null,null,null,null,null,null,null,null,null,null,null,null,null,null,null,null,null,null,null,null,null,null,null,null,null,null,null,null,null,null,null,null,null,null,null,null,null,null,null,null,null,null,null,"PROJEKTOVÁ FIRMA:"," "]
[null,null,null,null,null,null,null,null,null,null,null,null,null,null,null,null,null,null,null,null,null,null,null,null,null,null,null,null,null,null,null,null,null,null,null,null,null,null,null,null,null,null,null,null,null,null,null,null,null,null,null,null,null,null,null,null,null,null,null,null,null,null,null,null,null,null,null,null,null,null,null,null,null,null,null,null,null,null,null,null,"INVESTOR:"," "]
[null,null,null,"ČÍSLO A NÁZEV AKCE:",null,null,null,null,null,null,null,null,null,null,null,null,null,null,null,null,{"$f":"CD16","v":" "},null,null,null,null,null,null,null,null,null,null,null,null,null,null,null,null,null,null,null,null,null,null,null,null,null,null,null,null,null,null,null,null,null,"PARE:",null,null,null,null,null,null,null,null,null,null,null,null,null,null,null,null,null,null,null,null,null,null,null,null,null,"LOKALITA:","ETE"]
[null,null,null,null,null,null,null,null,null,null,null,null,null,null,null,null,null,null,null,null,null,null,null,null,null,null,null,null,null,null,null,null,null,null,null,null,null,null,null,null,null,null,null,null,null,null,null,null,null,null,null,null,null,null,null,null,null,null,null,null,null,null,null,null,null,null,null,null,null,null,null,null,null,null,null,null,null,null,null,null,"DATUM:"," "]
[null,null,null,null,null,null,null,null,null,null,null,null,null,null,null,null,null,null,null,null,null,null,null,null,null,null,null,null,null,null,null,null,null,null,null,null,null,null,null,null,null,null,null,null,null,null,null,null,null,null,null,null,null,null,null,null,null,null,null,null,null,null,null,null,null,null,null,null,null,null,null,null,null,null,null,null,null,null,null,null,"ČÍSLO A NÁZEV AKCE:"," "]
[null,null,null,"ČÍSLO A NÁZEV SO / DPS:",null,null,null,null,null,null,null,null,null,null,null,null,null,null,null,null,{"$f":"CD17","v":" "},null,null,null,null,null,null,null,null,null,null,null,null,null,null,null,null,null,null,null,null,null,null,null,null,null,null,null,null,null,null,null,null,null,null,null,null,null,null,null,null,null,null,null,null,null,null,null,null,null,null,null,null,null,null,null,null,null,null,null,"ČÍSLO A NÁZEV SO / DPS:\nČÍSLO a NÁZEV SO / DPS vkládejte oddělené mezerou!"," "]
[null,null,null,null,null,null,null,null,null,null,null,null,null,null,null,null,null,null,null,null,null,null,null,null,null,null,null,null,null,null,null,null,null,null,null,null,null,null,null,null,null,null,null,null,null,null,null,null,null,null,null,null,null,null,null,null,null,null,null,null,null,null,null,null,null,null,null,null,null,null,null,null,null,null,null,null,null,null,null,null,"SLOŽKA:"," "]
[null,null,null,null,null,null,null,null,null,null,null,null,null,null,null,null,null,null,null,null,null,null,null,null,null,null,null,null,null,null,null,null,null,null,null,null,null,null,null,null,null,null,null,null,null,null,null,null,null,null,null,null,null,null,null,null,null,null,null,null,null,null,null,null,null,null,null,null,null,null,null,null,null,null,null,null,null,null,null,null,"PARE:","při tisku zůstane prázdné - očíslujte ručně dle počtu výtisků"]
[null,null,null,"SLOŽKA:",null,null,null,null,null,null,null,null,null,null,null,null,null,null,null,null,null,null,null,null,null,null,null,null,null,null,null,null,null,null,null,null,null,null,null,null,null,null,null,null,null,null,null,null,null,null,null,null,null,null,"STUPEŇ:",null,null,null,null,null,null,null,null,null,null,null,null,null,null,null,null,null,null,null,null,null,null,null,null,null,"STUPEŇ:"," "]
[null,null,null,null,null,null,null,null,null,null,null,null,null,null,null,null,null,null,null,null,{"$f":"CD18","v":" "},null,null,null,null,null,null,null,null,null,null,null,null,null,null,null,null,null,null,null,null,null,null,null,null,null,null,null,null,null,null,null,null,null,null,null,null,null,null,null,null,null,null,{"$f":"CD20","v":" "},null,null,null,null,null,null,null,null,null,null,null,null,null,null,null,null,"POČET LISTŮ:"," "]
[null,null,null,null,null,null,null,null,null,null,null,null,null,null,null,null,null,null,null,null,null,null,null,null,null,null,null,null,null,null,null,null,null,null,null,null,null,null,null,null,null,null,null,null,null,null,null,null,null,null,null,null,null,null,null,null,null,null,null,null,null,null,null,null,null,null,null,null,null,null,null,null,null,null,null,null,null,null,null,null,"POŘ. ČÍSLO:"," "]
[null,null,null,null,null,null,null,null,null,null,null,null,null,null,null,null,null,null,null,null,null,null,null,null,null,null,null,null,null,null,null,null,null,null,null,null,null,null,null,null,null,null,null,null,null,null,null,null,null,null,null,null,null,null,null,null,null,null,null,null,null,null,null,null,null,null,null,null,null,null,null,null,null,null,null,null,null,null,null,null,"TYP / PODTYP:"," "]
[null,null,null,"NÁZEV DOKUMENTU:",null,null,null,null,null,null,null,null,null,null,null,null,null,null,null,null,null,null,null,null,null,null,null,null,null,null,null,null,null,null,null,null,null,null,null,null,null,null,null,null,null,null,null,null,null,null,null,null,null,null,"POČET LISTŮ:",null,null,null,null,null,null,null,null,{"$f":"CD21","v":" "},null,null,null,null,null,null,null,null,null,null,null,null,null,null,null,null,"ZAKÁZKA ČÍSLO:"," "]
[null,null,null,null,null,null,null,null,null,null,null,null,null,null,null,null,"SEZNAM MĚŘICÍCH OBVODŮ",null,null,null,null,null,null,null,null,null,null,null,null,null,null,null,null,null,null,null,null,null,null,null,null,null,null,null,null,null,null,null,null,null,null,null,null,null,null,null,null,null,null,null,null,null,null,null,null,null,null,null,null,null,null,null,null,null,null,null,null,null,null,null,"DODAVATELSKÉ ČÍSLO:"," "]
[null,null,null,null,null,null,null,null,null,null,null,null,null,null,null,null,null,null,null,null,null,null,null,null,null,null,null,null,null,null,null,null,null,null,null,null,null,null,null,null,null,null,null,null,null,null,null,null,null,null,null,null,null,null,"POŘ. ČÍSLO:",null,null,null,null,null,null,null,null,{"$f":"CD22","v":" "},null,null,null,null,null,null,null,null,null,null,null,null,null,null,null,null,"REVIZE:"," "]
[null,null,null,null,null,null,null,null,null,null,null,null,null,null,null,null,null,null,null,null,null,null,null,null,null,null,null,null,null,null,null,null,null,null,null,null,null,null,null,null,null,null,null,null,null,null,null,null,null,null,null,null,null,null,null,null,null,null,null,null,null,null,null,null,null,null,null,null,null,null,null,null,null,null,null,null,null,null,null,null,"EL. SOUBOR:"," "]
[null,null,null,null,null,null,null,null,null,null,null,null,null,null,null,null,null,null,null,null,null,null,null,null,null,null,null,null,null,null,null,null,null,null,null,null,null,null,null,null,null,null,null,null,null,null,null,null,null,null,null,null,null,null,"TYP / PODTYP:"]
[]
[null,null,null,null,null,null,null,null,null,null,null,null,null,null,null,null,null,null,null,null,null,null,null,null,null,null,null,null,null,null,null,null,null,null,null,null,null,null,null,null,null,null,null,null,null,null,null,null,null,null,null,null,null,null,"KÓD TŔÍDY DOKUMENTU:",null,null,null,null,null,null,null,null,"EC22",null,null,null,null,null,null,null,null,null,null,null,null,null,null,null,null,"DOPLNĚNÍ ČÍSELNÍKU:\nList \"Číselníky\" obsahuje číselníky používané v tomto formuláři. \nPokud Vám v některém číselníku použitém na listech v tomto sešitu bude chybět položka pro výběr, je možné jí zadat na listu \"Číselníky\" v příslušném číselníku do zeleně podbarvené buňky. Při vyplňování v tomto sešitu jí pak budete moci použít."]
[]
[null,null,null,"ZAKÁZKA ČÍSLO:",null,null,null,null,null,null,null,null,null,null,null,null,null,null,null,null,null,"DODAVATELSKÉ ČÍSLO:",null,null,null,null,null,null,null,null,null,null,null,null,null,null,null,null,null,"REVIZE:",null,null,null,null,null,"EL. SOUBOR:"]
[null,null,null,{"$f":"CD24","v":" "},null,null,null,null,null,null,null,null,null,null,null,null,null,null,null,null,null,{"$f":"CD25","v":" "},null,null,null,null,null,null,null,null,null,null,null,null,null,null,null,null,null,{"$f":"CD26","v":" "},null,null,null,null,null,{"$f":"CD27","v":" "}]
[]
[]
[]
[]
[null,null,null,"Tabulka \"Titulní list\" je zamčená. Konkrétní údaje (položky titulního listu) se do ní propíšou po jejich vyplnění v okně napravo. \nModře podbarvená políčka obsahují výběr z nabídky.\nTisk Titulního listu je nastaven:      A4 na výšku, vycentrování vodorovně a přispůsobení listu na jednu stránku. "]

{"sheet":"Seznam měřicích obvodů","index":1,"n_rows":1000,"n_cols":20,"rows_kept":1000,"cut":false,"hidden":false,"merged":[[0,2,0,3]]}
[null,null,"Ukázka vyplnění"]
[null,"Tento sloupec se netiskne","1.04.10","10410L501.1S1 ","L-kondenzátu v technol. kondenzátoru TK1","10410L501","A",150,750,"cm","JAO1","N","1S016-1M3598","ICE10410L501-A","TSOF_L1_DPS1","Y04","9M0169.01","9M0169.02","N"]
["č. ř.","Kód třídy MATRIO\nvyplní se automaticky","DPS","Označení MO","Název","Měřený parametr","Druh měření","RsO \n min","RsO \nmax","RsO \njedn","Systém","Divize","Operativní schéma","Hook-up","TSCH obvodu","TSCH \ndopl. údaje","Odběr 1","Odběr 2","Změna","Poznámka"]
[1,"ECD_Okruh ASŘ",null,null,null,null,null,null,null,null,null,null,null,null,null,null,null,null,"N"]
[2,"ECD_Okruh ASŘ"]
[3,"ECD_Okruh ASŘ"]
[4,"ECD_Okruh ASŘ"]
[5,"ECD_Okruh ASŘ"]
[6,"ECD_Okruh ASŘ"]
[7,"ECD_Okruh ASŘ"]
[8,"ECD_Okruh ASŘ"]
[9,"ECD_Okruh ASŘ"]
[10,"ECD_Okruh ASŘ"]
[11,"ECD_Okruh ASŘ"]
[12,"ECD_Okruh ASŘ"]
[13,"ECD_Okruh ASŘ"]
[14,"ECD_Okruh ASŘ"]
[15,"ECD_Okruh ASŘ"]
[16,"ECD_Okruh ASŘ"]
[17,"ECD_Okruh ASŘ"]
[18,"ECD_Okruh ASŘ"]
[19,"ECD_Okruh ASŘ"]
[20,"ECD_Okruh ASŘ"]
[21,"ECD_Okruh ASŘ"]
[22,"ECD_Okruh ASŘ"]
[23,"ECD_Okruh ASŘ"]
[24,"ECD_Okruh ASŘ"]
[25,"ECD_Okruh ASŘ"]
[26,"ECD_Okruh ASŘ"]
[27,"ECD_Okruh ASŘ"]
[28,"ECD_Okruh ASŘ"]
[29,"ECD_Okruh ASŘ"]
[30,"ECD_Okruh ASŘ"]
[31,"ECD_Okruh ASŘ"]
[32,"ECD_Okruh ASŘ"]
[33,"ECD_Okruh ASŘ"]
[34,"ECD_Okruh ASŘ"]
[35,"ECD_Okruh ASŘ"]
[36,"ECD_Okruh ASŘ"]
[37,"ECD_Okruh ASŘ"]
[38,"ECD_Okruh ASŘ"]
[39,"ECD_Okruh ASŘ"]
[40,"ECD_Okruh ASŘ"]
[41,"ECD_Okruh ASŘ"]
[42,"ECD_Okruh ASŘ"]
[43,"ECD_Okruh ASŘ"]
[44,"ECD_Okruh ASŘ"]
[45,"ECD_Okruh ASŘ"]
[46,"ECD_Okruh ASŘ"]
[47,"ECD_Okruh ASŘ"]
[48,"ECD_Okruh ASŘ"]
[49,"ECD_Okruh ASŘ"]
[50,"ECD_Okruh ASŘ"]
[51,"ECD_Okruh ASŘ"]
[52,"ECD_Okruh ASŘ"]
[53,"ECD_Okruh ASŘ"]
[54,"ECD_Okruh ASŘ"]
[55,"ECD_Okruh ASŘ"]
[56,"ECD_Okruh ASŘ"]
[57,"ECD_Okruh ASŘ"]
[58,"ECD_Okruh ASŘ"]
[59,"ECD_Okruh ASŘ"]
[60,"ECD_Okruh ASŘ"]
[61,"ECD_Okruh ASŘ"]
[62,"ECD_Okruh ASŘ"]
[63,"ECD_Okruh ASŘ"]
[64,"ECD_Okruh ASŘ"]
[65,"ECD_Okruh ASŘ"]
[66,"ECD_Okruh ASŘ"]
[67,"ECD_Okruh ASŘ"]
[68,"ECD_Okruh ASŘ"]
[69,"ECD_Okruh ASŘ"]
[70,"ECD_Okruh ASŘ"]
[71,"ECD_Okruh ASŘ"]
[72,"ECD_Okruh ASŘ"]
[73,"ECD_Okruh ASŘ"]
[74,"ECD_Okruh ASŘ"]
[75,"ECD_Okruh ASŘ"]
[76,"ECD_Okruh ASŘ"]
[77,"ECD_Okruh ASŘ"]
[78,"ECD_Okruh ASŘ"]
[79,"ECD_Okruh ASŘ"]
[80,"ECD_Okruh ASŘ"]
[81,"ECD_Okruh ASŘ"]
[82,"ECD_Okruh ASŘ"]
[83,"ECD_Okruh ASŘ"]
[84,"ECD_Okruh ASŘ"]
[85,"ECD_Okruh ASŘ"]
[86,"ECD_Okruh ASŘ"]
[87,"ECD_Okruh ASŘ"]
[88,"ECD_Okruh ASŘ"]
[89,"ECD_Okruh ASŘ"]
[90,"ECD_Okruh ASŘ"]
[91,"ECD_Okruh ASŘ"]
[92,"ECD_Okruh ASŘ"]
[93,"ECD_Okruh ASŘ"]
[94,"ECD_Okruh ASŘ"]
[95,"ECD_Okruh ASŘ"]
[96,"ECD_Okruh ASŘ"]
[97,"ECD_Okruh ASŘ"]
[98,"ECD_Okruh ASŘ"]
[99,"ECD_Okruh ASŘ"]
[100,"ECD_Okruh ASŘ"]
[101,"ECD_Okruh ASŘ"]
[102,"ECD_Okruh ASŘ"]
[103,"ECD_Okruh ASŘ"]
[104,"ECD_Okruh ASŘ"]
[105,"ECD_Okruh ASŘ"]
[106,"ECD_Okruh ASŘ"]
[107,"ECD_Okruh ASŘ"]
[108,"ECD_Okruh ASŘ"]
[109,"ECD_Okruh ASŘ"]
[110,"ECD_Okruh ASŘ"]
[111,"ECD_Okruh ASŘ"]
[112,"ECD_Okruh ASŘ"]
[113,"ECD_Okruh ASŘ"]
[114,"ECD_Okruh ASŘ"]
[115,"ECD_Okruh ASŘ"]
[116,"ECD_Okruh ASŘ"]
[117,"ECD_Okruh ASŘ"]
[118,"ECD_Okruh ASŘ"]
[119,"ECD_Okruh ASŘ"]
[120,"ECD_Okruh ASŘ"]
[121,"ECD_Okruh ASŘ"]
[122,"ECD_Okruh ASŘ"]
[123,"ECD_Okruh ASŘ"]
[124,"ECD_Okruh ASŘ"]
[125,"ECD_Okruh ASŘ"]
[126,"ECD_Okruh ASŘ"]
[127,"ECD_Okruh ASŘ"]
[128,"ECD_Okruh ASŘ"]
[129,"ECD_Okruh ASŘ"]
[130,"ECD_Okruh ASŘ"]
[131,"ECD_Okruh ASŘ"]
[132,"ECD_Okruh ASŘ"]
[133,"ECD_Okruh ASŘ"]
[134,"ECD_Okruh ASŘ"]
[135,"ECD_Okruh ASŘ"]
[136,"ECD_Okruh ASŘ"]
[137,"ECD_Okruh ASŘ"]
[138,"ECD_Okruh ASŘ"]
[139,"ECD_Okruh ASŘ"]
[140,"ECD_Okruh ASŘ"]
[141,"ECD_Okruh ASŘ"]
[142,"ECD_Okruh ASŘ"]
[143,"ECD_Okruh ASŘ"]
[144,"ECD_Okruh ASŘ"]
[145,"ECD_Okruh ASŘ"]
[146,"ECD_Okruh ASŘ"]
[147,"ECD_Okruh ASŘ"]
[148,"ECD_Okruh ASŘ"]
[149,"ECD_Okruh ASŘ"]
[150,"ECD_Okruh ASŘ"]
[151,"ECD_Okruh ASŘ"]
[152,"ECD_Okruh ASŘ"]
[153,"ECD_Okruh ASŘ"]
[154,"ECD_Okruh ASŘ"]
[155,"ECD_Okruh ASŘ"]
[156,"ECD_Okruh ASŘ"]
[157,"ECD_Okruh ASŘ"]
[158,"ECD_Okruh ASŘ"]
[159,"ECD_Okruh ASŘ"]
[160,"ECD_Okruh ASŘ"]
[161,"ECD_Okruh ASŘ"]
[162,"ECD_Okruh ASŘ"]
[163,"ECD_Okruh ASŘ"]
[164,"ECD_Okruh ASŘ"]
[165,"ECD_Okruh ASŘ"]
[166,"ECD_Okruh ASŘ"]
[167,"ECD_Okruh ASŘ"]
[168,"ECD_Okruh ASŘ"]
[169,"ECD_Okruh ASŘ"]
[170,"ECD_Okruh ASŘ"]
[171,"ECD_Okruh ASŘ"]
[172,"ECD_Okruh ASŘ"]
[173,"ECD_Okruh ASŘ"]
[174,"ECD_Okruh ASŘ"]
[175,"ECD_Okruh ASŘ"]
[176,"ECD_Okruh ASŘ"]
[177,"ECD_Okruh ASŘ"]
[178,"ECD_Okruh ASŘ"]
[179,"ECD_Okruh ASŘ"]
[180,"ECD_Okruh ASŘ"]
[181,"ECD_Okruh ASŘ"]
[182,"ECD_Okruh ASŘ"]
[183,"ECD_Okruh ASŘ"]
[184,"ECD_Okruh ASŘ"]
[185,"ECD_Okruh ASŘ"]
[186,"ECD_Okruh ASŘ"]
[187,"ECD_Okruh ASŘ"]
[188,"ECD_Okruh ASŘ"]
[189,"ECD_Okruh ASŘ"]
[190,"ECD_Okruh ASŘ"]
[191,"ECD_Okruh ASŘ"]
[192,"ECD_Okruh ASŘ"]
[193,"ECD_Okruh ASŘ"]
[194,"ECD_Okruh ASŘ"]
[195,"ECD_Okruh ASŘ"]
[196,"ECD_Okruh ASŘ"]
[197,"ECD_Okruh ASŘ"]
[198,"ECD_Okruh ASŘ"]
[199,"ECD_Okruh ASŘ"]
[200,"ECD_Okruh ASŘ"]
[201,"ECD_Okruh ASŘ"]
[202,"ECD_Okruh ASŘ"]
[203,"ECD_Okruh ASŘ"]
[204,"ECD_Okruh ASŘ"]
[205,"ECD_Okruh ASŘ"]
[206,"ECD_Okruh ASŘ"]
[207,"ECD_Okruh ASŘ"]
[208,"ECD_Okruh ASŘ"]
[209,"ECD_Okruh ASŘ"]
[210,"ECD_Okruh ASŘ"]
[211,"ECD_Okruh ASŘ"]
[212,"ECD_Okruh ASŘ"]
[213,"ECD_Okruh ASŘ"]
[214,"ECD_Okruh ASŘ"]
[215,"ECD_Okruh ASŘ"]
[216,"ECD_Okruh ASŘ"]
[217,"ECD_Okruh ASŘ"]
[218,"ECD_Okruh ASŘ"]
[219,"ECD_Okruh ASŘ"]
[220,"ECD_Okruh ASŘ"]
[221,"ECD_Okruh ASŘ"]
[222,"ECD_Okruh ASŘ"]
[223,"ECD_Okruh ASŘ"]
[224,"ECD_Okruh ASŘ"]
[225,"ECD_Okruh ASŘ"]
[226,"ECD_Okruh ASŘ"]
[227,"ECD_Okruh ASŘ"]
[228,"ECD_Okruh ASŘ"]
[229,"ECD_Okruh ASŘ"]
[230,"ECD_Okruh ASŘ"]
[231,"ECD_Okruh ASŘ"]
[232,"ECD_Okruh ASŘ"]
[233,"ECD_Okruh ASŘ"]
[234,"ECD_Okruh ASŘ"]
[235,"ECD_Okruh ASŘ"]
[236,"ECD_Okruh ASŘ"]
[237,"ECD_Okruh ASŘ"]
[238,"ECD_Okruh ASŘ"]
[239,"ECD_Okruh ASŘ"]
[240,"ECD_Okruh ASŘ"]
[241,"ECD_Okruh ASŘ"]
[242,"ECD_Okruh ASŘ"]
[243,"ECD_Okruh ASŘ"]
[244,"ECD_Okruh ASŘ"]
[245,"ECD_Okruh ASŘ"]
[246,"ECD_Okruh ASŘ"]
[247,"ECD_Okruh ASŘ"]
[248,"ECD_Okruh ASŘ"]
[249,"ECD_Okruh ASŘ"]
[250,"ECD_Okruh ASŘ"]
[251,"ECD_Okruh ASŘ"]
[252,"ECD_Okruh ASŘ"]
[253,"ECD_Okruh ASŘ"]
[254,"ECD_Okruh ASŘ"]
[255,"ECD_Okruh ASŘ"]
[256,"ECD_Okruh ASŘ"]
[257,"ECD_Okruh ASŘ"]
[258,"ECD_Okruh ASŘ"]
[259,"ECD_Okruh ASŘ"]
[260,"ECD_Okruh ASŘ"]
[261,"ECD_Okruh ASŘ"]
[262,"ECD_Okruh ASŘ"]
[263,"ECD_Okruh ASŘ"]
[264,"ECD_Okruh ASŘ"]
[265,"ECD_Okruh ASŘ"]
[266,"ECD_Okruh ASŘ"]
[267,"ECD_Okruh ASŘ"]
[268,"ECD_Okruh ASŘ"]
[269,"ECD_Okruh ASŘ"]
[270,"ECD_Okruh ASŘ"]
[271,"ECD_Okruh ASŘ"]
[272,"ECD_Okruh ASŘ"]
[273,"ECD_Okruh ASŘ"]
[274,"ECD_Okruh ASŘ"]
[275,"ECD_Okruh ASŘ"]
[276,"ECD_Okruh ASŘ"]
[277,"ECD_Okruh ASŘ"]
[278,"ECD_Okruh ASŘ"]
[279,"ECD_Okruh ASŘ"]
[280,"ECD_Okruh ASŘ"]
[281,"ECD_Okruh ASŘ"]
[282,"ECD_Okruh ASŘ"]
[283,"ECD_Okruh ASŘ"]
[284,"ECD_Okruh ASŘ"]
[285,"ECD_Okruh ASŘ"]
[286,"ECD_Okruh ASŘ"]
[287,"ECD_Okruh ASŘ"]
[288,"ECD_Okruh ASŘ"]
[289,"ECD_Okruh ASŘ"]
[290,"ECD_Okruh ASŘ"]
[291,"ECD_Okruh ASŘ"]
[292,"ECD_Okruh ASŘ"]
[293,"ECD_Okruh ASŘ"]
[294,"ECD_Okruh ASŘ"]
[295,"ECD_Okruh ASŘ"]
[296,"ECD_Okruh ASŘ"]
[297,"ECD_Okruh ASŘ"]
[298,"ECD_Okruh ASŘ"]
[299,"ECD_Okruh ASŘ"]
[300,"ECD_Okruh ASŘ"]
[301,"ECD_Okruh ASŘ"]
[302,"ECD_Okruh ASŘ"]
[303,"ECD_Okruh ASŘ"]
[304,"ECD_Okruh ASŘ"]
[305,"ECD_Okruh ASŘ"]
[306,"ECD_Okruh ASŘ"]
[307,"ECD_Okruh ASŘ"]
[308,"ECD_Okruh ASŘ"]
[309,"ECD_Okruh ASŘ"]
[310,"ECD_Okruh ASŘ"]
[311,"ECD_Okruh ASŘ"]
[312,"ECD_Okruh ASŘ"]
[313,"ECD_Okruh ASŘ"]
[314,"ECD_Okruh ASŘ"]
[315,"ECD_Okruh ASŘ"]
[316,"ECD_Okruh ASŘ"]
[317,"ECD_Okruh ASŘ"]
[318,"ECD_Okruh ASŘ"]
[319,"ECD_Okruh ASŘ"]
[320,"ECD_Okruh ASŘ"]
[321,"ECD_Okruh ASŘ"]
[322,"ECD_Okruh ASŘ"]
[323,"ECD_Okruh ASŘ"]
[324,"ECD_Okruh ASŘ"]
[325,"ECD_Okruh ASŘ"]
[326,"ECD_Okruh ASŘ"]
[327,"ECD_Okruh ASŘ"]
[328,"ECD_Okruh ASŘ"]
[329,"ECD_Okruh ASŘ"]
[330,"ECD_Okruh ASŘ"]
[331,"ECD_Okruh ASŘ"]
[332,"ECD_Okruh ASŘ"]
[333,"ECD_Okruh ASŘ"]
[334,"ECD_Okruh ASŘ"]
[335,"ECD_Okruh ASŘ"]
[336,"ECD_Okruh ASŘ"]
[337,"ECD_Okruh ASŘ"]
[338,"ECD_Okruh ASŘ"]
[339,"ECD_Okruh ASŘ"]
[340,"ECD_Okruh ASŘ"]
[341,"ECD_Okruh ASŘ"]
[342,"ECD_Okruh ASŘ"]
[343,"ECD_Okruh ASŘ"]
[344,"ECD_Okruh ASŘ"]
[345,"ECD_Okruh ASŘ"]
[346,"ECD_Okruh ASŘ"]
[347,"ECD_Okruh ASŘ"]
[348,"ECD_Okruh ASŘ"]
[349,"ECD_Okruh ASŘ"]
[350,"ECD_Okruh ASŘ"]
[351,"ECD_Okruh ASŘ"]
[352,"ECD_Okruh ASŘ"]
[353,"ECD_Okruh ASŘ"]
[354,"ECD_Okruh ASŘ"]
[355,"ECD_Okruh ASŘ"]
[356,"ECD_Okruh ASŘ"]
[357,"ECD_Okruh ASŘ"]
[358,"ECD_Okruh ASŘ"]
[359,"ECD_Okruh ASŘ"]
[360,"ECD_Okruh ASŘ"]
[361,"ECD_Okruh ASŘ"]
[362,"ECD_Okruh ASŘ"]
[363,"ECD_Okruh ASŘ"]
[364,"ECD_Okruh ASŘ"]
[365,"ECD_Okruh ASŘ"]
[366,"ECD_Okruh ASŘ"]
[367,"ECD_Okruh ASŘ"]
[368,"ECD_Okruh ASŘ"]
[369,"ECD_Okruh ASŘ"]
[370,"ECD_Okruh ASŘ"]
[371,"ECD_Okruh ASŘ"]
[372,"ECD_Okruh ASŘ"]
[373,"ECD_Okruh ASŘ"]
[374,"ECD_Okruh ASŘ"]
[375,"ECD_Okruh ASŘ"]
[376,"ECD_Okruh ASŘ"]
[377,"ECD_Okruh ASŘ"]
[378,"ECD_Okruh ASŘ"]
[379,"ECD_Okruh ASŘ"]
[380,"ECD_Okruh ASŘ"]
[381,"ECD_Okruh ASŘ"]
[382,"ECD_Okruh ASŘ"]
[383,"ECD_Okruh ASŘ"]
[384,"ECD_Okruh ASŘ"]
[385,"ECD_Okruh ASŘ"]
[386,"ECD_Okruh ASŘ"]
[387,"ECD_Okruh ASŘ"]
[388,"ECD_Okruh ASŘ"]
[389,"ECD_Okruh ASŘ"]
[390,"ECD_Okruh ASŘ"]
[391,"ECD_Okruh ASŘ"]
[392,"ECD_Okruh ASŘ"]
[393,"ECD_Okruh ASŘ"]
[394,"ECD_Okruh ASŘ"]
[395,"ECD_Okruh ASŘ"]
[396,"ECD_Okruh ASŘ"]
[397,"ECD_Okruh ASŘ"]
[398,"ECD_Okruh ASŘ"]
[399,"ECD_Okruh ASŘ"]
[400,"ECD_Okruh ASŘ"]
[401,"ECD_Okruh ASŘ"]
[402,"ECD_Okruh ASŘ"]
[403,"ECD_Okruh ASŘ"]
[404,"ECD_Okruh ASŘ"]
[405,"ECD_Okruh ASŘ"]
[406,"ECD_Okruh ASŘ"]
[407,"ECD_Okruh ASŘ"]
[408,"ECD_Okruh ASŘ"]
[409,"ECD_Okruh ASŘ"]
[410,"ECD_Okruh ASŘ"]
[411,"ECD_Okruh ASŘ"]
[412,"ECD_Okruh ASŘ"]
[413,"ECD_Okruh ASŘ"]
[414,"ECD_Okruh ASŘ"]
[415,"ECD_Okruh ASŘ"]
[416,"ECD_Okruh ASŘ"]
[417,"ECD_Okruh ASŘ"]
[418,"ECD_Okruh ASŘ"]
[419,"ECD_Okruh ASŘ"]
[420,"ECD_Okruh ASŘ"]
[421,"ECD_Okruh ASŘ"]
[422,"ECD_Okruh ASŘ"]
[423,"ECD_Okruh ASŘ"]
[424,"ECD_Okruh ASŘ"]
[425,"ECD_Okruh ASŘ"]
[426,"ECD_Okruh ASŘ"]
[427,"ECD_Okruh ASŘ"]
[428,"ECD_Okruh ASŘ"]
[429,"ECD_Okruh ASŘ"]
[430,"ECD_Okruh ASŘ"]
[431,"ECD_Okruh ASŘ"]
[432,"ECD_Okruh ASŘ"]
[433,"ECD_Okruh ASŘ"]
[434,"ECD_Okruh ASŘ"]
[435,"ECD_Okruh ASŘ"]
[436,"ECD_Okruh ASŘ"]
[437,"ECD_Okruh ASŘ"]
[438,"ECD_Okruh ASŘ"]
[439,"ECD_Okruh ASŘ"]
[440,"ECD_Okruh ASŘ"]
[441,"ECD_Okruh ASŘ"]
[442,"ECD_Okruh ASŘ"]
[443,"ECD_Okruh ASŘ"]
[444,"ECD_Okruh ASŘ"]
[445,"ECD_Okruh ASŘ"]
[446,"ECD_Okruh ASŘ"]
[447,"ECD_Okruh ASŘ"]
[448,"ECD_Okruh ASŘ"]
[449,"ECD_Okruh ASŘ"]
[450,"ECD_Okruh ASŘ"]
[451,"ECD_Okruh ASŘ"]
[452,"ECD_Okruh ASŘ"]
[453,"ECD_Okruh ASŘ"]
[454,"ECD_Okruh ASŘ"]
[455,"ECD_Okruh ASŘ"]
[456,"ECD_Okruh ASŘ"]
[457,"ECD_Okruh ASŘ"]
[458,"ECD_Okruh ASŘ"]
[459,"ECD_Okruh ASŘ"]
[460,"ECD_Okruh ASŘ"]
[461,"ECD_Okruh ASŘ"]
[462,"ECD_Okruh ASŘ"]
[463,"ECD_Okruh ASŘ"]
[464,"ECD_Okruh ASŘ"]
[465,"ECD_Okruh ASŘ"]
[466,"ECD_Okruh ASŘ"]
[467,"ECD_Okruh ASŘ"]
[468,"ECD_Okruh ASŘ"]
[469,"ECD_Okruh ASŘ"]
[470,"ECD_Okruh ASŘ"]
[471,"ECD_Okruh ASŘ"]
[472,"ECD_Okruh ASŘ"]
[473,"ECD_Okruh ASŘ"]
[474,"ECD_Okruh ASŘ"]
[475,"ECD_Okruh ASŘ"]
[476,"ECD_Okruh ASŘ"]
[477,"ECD_Okruh ASŘ"]
[478,"ECD_Okruh ASŘ"]
[479,"ECD_Okruh ASŘ"]
[480,"ECD_Okruh ASŘ"]
[481,"ECD_Okruh ASŘ"]
[482,"ECD_Okruh ASŘ"]
[483,"ECD_Okruh ASŘ"]
[484,"ECD_Okruh ASŘ"]
[485,"ECD_Okruh ASŘ"]
[486,"ECD_Okruh ASŘ"]
[487,"ECD_Okruh ASŘ"]
[488,"ECD_Okruh ASŘ"]
[489,"ECD_Okruh ASŘ"]
[490,"ECD_Okruh ASŘ"]
[491,"ECD_Okruh ASŘ"]
[492,"ECD_Okruh ASŘ"]
[493,"ECD_Okruh ASŘ"]
[494,"ECD_Okruh ASŘ"]
[495,"ECD_Okruh ASŘ"]
[496,"ECD_Okruh ASŘ"]
[497,"ECD_Okruh ASŘ"]
[498,"ECD_Okruh ASŘ"]
[499,"ECD_Okruh ASŘ"]
[500,"ECD_Okruh ASŘ"]
[501,"ECD_Okruh ASŘ"]
[502,"ECD_Okruh ASŘ"]
[503,"ECD_Okruh ASŘ"]
[504,"ECD_Okruh ASŘ"]
[505,"ECD_Okruh ASŘ"]
[506,"ECD_Okruh ASŘ"]
[507,"ECD_Okruh ASŘ"]
[508,"ECD_Okruh ASŘ"]
[509,"ECD_Okruh ASŘ"]
[510,"ECD_Okruh ASŘ"]
[511,"ECD_Okruh ASŘ"]
[512,"ECD_Okruh ASŘ"]
[513,"ECD_Okruh ASŘ"]
[514,"ECD_Okruh ASŘ"]
[515,"ECD_Okruh ASŘ"]
[516,"ECD_Okruh ASŘ"]
[517,"ECD_Okruh ASŘ"]
[518,"ECD_Okruh ASŘ"]
[519,"ECD_Okruh ASŘ"]
[520,"ECD_Okruh ASŘ"]
[521,"ECD_Okruh ASŘ"]
[522,"ECD_Okruh ASŘ"]
[523,"ECD_Okruh ASŘ"]
[524,"ECD_Okruh ASŘ"]
[525,"ECD_Okruh ASŘ"]
[526,"ECD_Okruh ASŘ"]
[527,"ECD_Okruh ASŘ"]
[528,"ECD_Okruh ASŘ"]
[529,"ECD_Okruh ASŘ"]
[530,"ECD_Okruh ASŘ"]
[531,"ECD_Okruh ASŘ"]
[532,"ECD_Okruh ASŘ"]
[533,"ECD_Okruh ASŘ"]
[534,"ECD_Okruh ASŘ"]
[535,"ECD_Okruh ASŘ"]
[536,"ECD_Okruh ASŘ"]
[537,"ECD_Okruh ASŘ"]
[538,"ECD_Okruh ASŘ"]
[539,"ECD_Okruh ASŘ"]
[540,"ECD_Okruh ASŘ"]
[541,"ECD_Okruh ASŘ"]
[542,"ECD_Okruh ASŘ"]
[543,"ECD_Okruh ASŘ"]
[544,"ECD_Okruh ASŘ"]
[545,"ECD_Okruh ASŘ"]
[546,"ECD_Okruh ASŘ"]
[547,"ECD_Okruh ASŘ"]
[548,"ECD_Okruh ASŘ"]
[549,"ECD_Okruh ASŘ"]
[550,"ECD_Okruh ASŘ"]
[551,"ECD_Okruh ASŘ"]
[552,"ECD_Okruh ASŘ"]
[553,"ECD_Okruh ASŘ"]
[554,"ECD_Okruh ASŘ"]
[555,"ECD_Okruh ASŘ"]
[556,"ECD_Okruh ASŘ"]
[557,"ECD_Okruh ASŘ"]
[558,"ECD_Okruh ASŘ"]
[559,"ECD_Okruh ASŘ"]
[560,"ECD_Okruh ASŘ"]
[561,"ECD_Okruh ASŘ"]
[562,"ECD_Okruh ASŘ"]
[563,"ECD_Okruh ASŘ"]
[564,"ECD_Okruh ASŘ"]
[565,"ECD_Okruh ASŘ"]
[566,"ECD_Okruh ASŘ"]
[567,"ECD_Okruh ASŘ"]
[568,"ECD_Okruh ASŘ"]
[569,"ECD_Okruh ASŘ"]
[570,"ECD_Okruh ASŘ"]
[571,"ECD_Okruh ASŘ"]
[572,"ECD_Okruh ASŘ"]
[573,"ECD_Okruh ASŘ"]
[574,"ECD_Okruh ASŘ"]
[575,"ECD_Okruh ASŘ"]
[576,"ECD_Okruh ASŘ"]
[577,"ECD_Okruh ASŘ"]
[578,"ECD_Okruh ASŘ"]
[579,"ECD_Okruh ASŘ"]
[580,"ECD_Okruh ASŘ"]
[581,"ECD_Okruh ASŘ"]
[582,"ECD_Okruh ASŘ"]
[583,"ECD_Okruh ASŘ"]
[584,"ECD_Okruh ASŘ"]
[585,"ECD_Okruh ASŘ"]
[586,"ECD_Okruh ASŘ"]
[587,"ECD_Okruh ASŘ"]
[588,"ECD_Okruh ASŘ"]
[589,"ECD_Okruh ASŘ"]
[590,"ECD_Okruh ASŘ"]
[591,"ECD_Okruh ASŘ"]
[592,"ECD_Okruh ASŘ"]
[593,"ECD_Okruh ASŘ"]
[594,"ECD_Okruh ASŘ"]
[595,"ECD_Okruh ASŘ"]
[596,"ECD_Okruh ASŘ"]
[597,"ECD_Okruh ASŘ"]
[598,"ECD_Okruh ASŘ"]
[599,"ECD_Okruh ASŘ"]
[600,"ECD_Okruh ASŘ"]
[601,"ECD_Okruh ASŘ"]
[602,"ECD_Okruh ASŘ"]
[603,"ECD_Okruh ASŘ"]
[604,"ECD_Okruh ASŘ"]
[605,"ECD_Okruh ASŘ"]
[606,"ECD_Okruh ASŘ"]
[607,"ECD_Okruh ASŘ"]
[608,"ECD_Okruh ASŘ"]
[609,"ECD_Okruh ASŘ"]
[610,"ECD_Okruh ASŘ"]
[611,"ECD_Okruh ASŘ"]
[612,"ECD_Okruh ASŘ"]
[613,"ECD_Okruh ASŘ"]
[614,"ECD_Okruh ASŘ"]
[615,"ECD_Okruh ASŘ"]
[616,"ECD_Okruh ASŘ"]
[617,"ECD_Okruh ASŘ"]
[618,"ECD_Okruh ASŘ"]
[619,"ECD_Okruh ASŘ"]
[620,"ECD_Okruh ASŘ"]
[621,"ECD_Okruh ASŘ"]
[622,"ECD_Okruh ASŘ"]
[623,"ECD_Okruh ASŘ"]
[624,"ECD_Okruh ASŘ"]
[625,"ECD_Okruh ASŘ"]
[626,"ECD_Okruh ASŘ"]
[627,"ECD_Okruh ASŘ"]
[628,"ECD_Okruh ASŘ"]
[629,"ECD_Okruh ASŘ"]
[630,"ECD_Okruh ASŘ"]
[631,"ECD_Okruh ASŘ"]
[632,"ECD_Okruh ASŘ"]
[633,"ECD_Okruh ASŘ"]
[634,"ECD_Okruh ASŘ"]
[635,"ECD_Okruh ASŘ"]
[636,"ECD_Okruh ASŘ"]
[637,"ECD_Okruh ASŘ"]
[638,"ECD_Okruh ASŘ"]
[639,"ECD_Okruh ASŘ"]
[640,"ECD_Okruh ASŘ"]
[641,"ECD_Okruh ASŘ"]
[642,"ECD_Okruh ASŘ"]
[643,"ECD_Okruh ASŘ"]
[644,"ECD_Okruh ASŘ"]
[645,"ECD_Okruh ASŘ"]
[646,"ECD_Okruh ASŘ"]
[647,"ECD_Okruh ASŘ"]
[648,"ECD_Okruh ASŘ"]
[649,"ECD_Okruh ASŘ"]
[650,"ECD_Okruh ASŘ"]
[651,"ECD_Okruh ASŘ"]
[652,"ECD_Okruh ASŘ"]
[653,"ECD_Okruh ASŘ"]
[654,"ECD_Okruh ASŘ"]
[655,"ECD_Okruh ASŘ"]
[656,"ECD_Okruh ASŘ"]
[657,"ECD_Okruh ASŘ"]
[658,"ECD_Okruh ASŘ"]
[659,"ECD_Okruh ASŘ"]
[660,"ECD_Okruh ASŘ"]
[661,"ECD_Okruh ASŘ"]
[662,"ECD_Okruh ASŘ"]
[663,"ECD_Okruh ASŘ"]
[664,"ECD_Okruh ASŘ"]
[665,"ECD_Okruh ASŘ"]
[666,"ECD_Okruh ASŘ"]
[667,"ECD_Okruh ASŘ"]
[668,"ECD_Okruh ASŘ"]
[669,"ECD_Okruh ASŘ"]
[670,"ECD_Okruh ASŘ"]
[671,"ECD_Okruh ASŘ"]
[672,"ECD_Okruh ASŘ"]
[673,"ECD_Okruh ASŘ"]
[674,"ECD_Okruh ASŘ"]
[675,"ECD_Okruh ASŘ"]
[676,"ECD_Okruh ASŘ"]
[677,"ECD_Okruh ASŘ"]
[678,"ECD_Okruh ASŘ"]
[679,"ECD_Okruh ASŘ"]
[680,"ECD_Okruh ASŘ"]
[681,"ECD_Okruh ASŘ"]
[682,"ECD_Okruh ASŘ"]
[683,"ECD_Okruh ASŘ"]
[684,"ECD_Okruh ASŘ"]
[685,"ECD_Okruh ASŘ"]
[686,"ECD_Okruh ASŘ"]
[687,"ECD_Okruh ASŘ"]
[688,"ECD_Okruh ASŘ"]
[689,"ECD_Okruh ASŘ"]
[690,"ECD_Okruh ASŘ"]
[691,"ECD_Okruh ASŘ"]
[692,"ECD_Okruh ASŘ"]
[693,"ECD_Okruh ASŘ"]
[694,"ECD_Okruh ASŘ"]
[695,"ECD_Okruh ASŘ"]
[696,"ECD_Okruh ASŘ"]
[697,"ECD_Okruh ASŘ"]
[698,"ECD_Okruh ASŘ"]
[699,"ECD_Okruh ASŘ"]
[700,"ECD_Okruh ASŘ"]
[701,"ECD_Okruh ASŘ"]
[702,"ECD_Okruh ASŘ"]
[703,"ECD_Okruh ASŘ"]
[704,"ECD_Okruh ASŘ"]
[705,"ECD_Okruh ASŘ"]
[706,"ECD_Okruh ASŘ"]
[707,"ECD_Okruh ASŘ"]
[708,"ECD_Okruh ASŘ"]
[709,"ECD_Okruh ASŘ"]
[710,"ECD_Okruh ASŘ"]
[711,"ECD_Okruh ASŘ"]
[712,"ECD_Okruh ASŘ"]
[713,"ECD_Okruh ASŘ"]
[714,"ECD_Okruh ASŘ"]
[715,"ECD_Okruh ASŘ"]
[716,"ECD_Okruh ASŘ"]
[717,"ECD_Okruh ASŘ"]
[718,"ECD_Okruh ASŘ"]
[719,"ECD_Okruh ASŘ"]
[720,"ECD_Okruh ASŘ"]
[721,"ECD_Okruh ASŘ"]
[722,"ECD_Okruh ASŘ"]
[723,"ECD_Okruh ASŘ"]
[724,"ECD_Okruh ASŘ"]
[725,"ECD_Okruh ASŘ"]
[726,"ECD_Okruh ASŘ"]
[727,"ECD_Okruh ASŘ"]
[728,"ECD_Okruh ASŘ"]
[729,"ECD_Okruh ASŘ"]
[730,"ECD_Okruh ASŘ"]
[731,"ECD_Okruh ASŘ"]
[732,"ECD_Okruh ASŘ"]
[733,"ECD_Okruh ASŘ"]
[734,"ECD_Okruh ASŘ"]
[735,"ECD_Okruh ASŘ"]
[736,"ECD_Okruh ASŘ"]
[737,"ECD_Okruh ASŘ"]
[738,"ECD_Okruh ASŘ"]
[739,"ECD_Okruh ASŘ"]
[740,"ECD_Okruh ASŘ"]
[741,"ECD_Okruh ASŘ"]
[742,"ECD_Okruh ASŘ"]
[743,"ECD_Okruh ASŘ"]
[744,"ECD_Okruh ASŘ"]
[745,"ECD_Okruh ASŘ"]
[746,"ECD_Okruh ASŘ"]
[747,"ECD_Okruh ASŘ"]
[748,"ECD_Okruh ASŘ"]
[749,"ECD_Okruh ASŘ"]
[750,"ECD_Okruh ASŘ"]
[751,"ECD_Okruh ASŘ"]
[752,"ECD_Okruh ASŘ"]
[753,"ECD_Okruh ASŘ"]
[754,"ECD_Okruh ASŘ"]
[755,"ECD_Okruh ASŘ"]
[756,"ECD_Okruh ASŘ"]
[757,"ECD_Okruh ASŘ"]
[758,"ECD_Okruh ASŘ"]
[759,"ECD_Okruh ASŘ"]
[760,"ECD_Okruh ASŘ"]
[761,"ECD_Okruh ASŘ"]
[762,"ECD_Okruh ASŘ"]
[763,"ECD_Okruh ASŘ"]
[764,"ECD_Okruh ASŘ"]
[765,"ECD_Okruh ASŘ"]
[766,"ECD_Okruh ASŘ"]
[767,"ECD_Okruh ASŘ"]
[768,"ECD_Okruh ASŘ"]
[769,"ECD_Okruh ASŘ"]
[770,"ECD_Okruh ASŘ"]
[771,"ECD_Okruh ASŘ"]
[772,"ECD_Okruh ASŘ"]
[773,"ECD_Okruh ASŘ"]
[774,"ECD_Okruh ASŘ"]
[775,"ECD_Okruh ASŘ"]
[776,"ECD_Okruh ASŘ"]
[777,"ECD_Okruh ASŘ"]
[778,"ECD_Okruh ASŘ"]
[779,"ECD_Okruh ASŘ"]
[780,"ECD_Okruh ASŘ"]
[781,"ECD_Okruh ASŘ"]
[782,"ECD_Okruh ASŘ"]
[783,"ECD_Okruh ASŘ"]
[784,"ECD_Okruh ASŘ"]
[785,"ECD_Okruh ASŘ"]
[786,"ECD_Okruh ASŘ"]
[787,"ECD_Okruh ASŘ"]
[788,"ECD_Okruh ASŘ"]
[789,"ECD_Okruh ASŘ"]
[790,"ECD_Okruh ASŘ"]
[791,"ECD_Okruh ASŘ"]
[792,"ECD_Okruh ASŘ"]
[793,"ECD_Okruh ASŘ"]
[794,"ECD_Okruh ASŘ"]
[795,"ECD_Okruh ASŘ"]
[796,"ECD_Okruh ASŘ"]
[797,"ECD_Okruh ASŘ"]
[798,"ECD_Okruh ASŘ"]
[799,"ECD_Okruh ASŘ"]
[800,"ECD_Okruh ASŘ"]
[801,"ECD_Okruh ASŘ"]
[802,"ECD_Okruh ASŘ"]
[803,"ECD_Okruh ASŘ"]
[804,"ECD_Okruh ASŘ"]
[805,"ECD_Okruh ASŘ"]
[806,"ECD_Okruh ASŘ"]
[807,"ECD_Okruh ASŘ"]
[808,"ECD_Okruh ASŘ"]
[809,"ECD_Okruh ASŘ"]
[810,"ECD_Okruh ASŘ"]
[811,"ECD_Okruh ASŘ"]
[812,"ECD_Okruh ASŘ"]
[813,"ECD_Okruh ASŘ"]
[814,"ECD_Okruh ASŘ"]
[815,"ECD_Okruh ASŘ"]
[816,"ECD_Okruh ASŘ"]
[817,"ECD_Okruh ASŘ"]
[818,"ECD_Okruh ASŘ"]
[819,"ECD_Okruh ASŘ"]
[820,"ECD_Okruh ASŘ"]
[821,"ECD_Okruh ASŘ"]
[822,"ECD_Okruh ASŘ"]
[823,"ECD_Okruh ASŘ"]
[824,"ECD_Okruh ASŘ"]
[825,"ECD_Okruh ASŘ"]
[826,"ECD_Okruh ASŘ"]
[827,"ECD_Okruh ASŘ"]
[828,"ECD_Okruh ASŘ"]
[829,"ECD_Okruh ASŘ"]
[830,"ECD_Okruh ASŘ"]
[831,"ECD_Okruh ASŘ"]
[832,"ECD_Okruh ASŘ"]
[833,"ECD_Okruh ASŘ"]
[834,"ECD_Okruh ASŘ"]
[835,"ECD_Okruh ASŘ"]
[836,"ECD_Okruh ASŘ"]
[837,"ECD_Okruh ASŘ"]
[838,"ECD_Okruh ASŘ"]
[839,"ECD_Okruh ASŘ"]
[840,"ECD_Okruh ASŘ"]
[841,"ECD_Okruh ASŘ"]
[842,"ECD_Okruh ASŘ"]
[843,"ECD_Okruh ASŘ"]
[844,"ECD_Okruh ASŘ"]
[845,"ECD_Okruh ASŘ"]
[846,"ECD_Okruh ASŘ"]
[847,"ECD_Okruh ASŘ"]
[848,"ECD_Okruh ASŘ"]
[849,"ECD_Okruh ASŘ"]
[850,"ECD_Okruh ASŘ"]
[851,"ECD_Okruh ASŘ"]
[852,"ECD_Okruh ASŘ"]
[853,"ECD_Okruh ASŘ"]
[854,"ECD_Okruh ASŘ"]
[855,"ECD_Okruh ASŘ"]
[856,"ECD_Okruh ASŘ"]
[857,"ECD_Okruh ASŘ"]
[858,"ECD_Okruh ASŘ"]
[859,"ECD_Okruh ASŘ"]
[860,"ECD_Okruh ASŘ"]
[861,"ECD_Okruh ASŘ"]
[862,"ECD_Okruh ASŘ"]
[863,"ECD_Okruh ASŘ"]
[864,"ECD_Okruh ASŘ"]
[865,"ECD_Okruh ASŘ"]
[866,"ECD_Okruh ASŘ"]
[867,"ECD_Okruh ASŘ"]
[868,"ECD_Okruh ASŘ"]
[869,"ECD_Okruh ASŘ"]
[870,"ECD_Okruh ASŘ"]
[871,"ECD_Okruh ASŘ"]
[872,"ECD_Okruh ASŘ"]
[873,"ECD_Okruh ASŘ"]
[874,"ECD_Okruh ASŘ"]
[875,"ECD_Okruh ASŘ"]
[876,"ECD_Okruh ASŘ"]
[877,"ECD_Okruh ASŘ"]
[878,"ECD_Okruh ASŘ"]
[879,"ECD_Okruh ASŘ"]
[880,"ECD_Okruh ASŘ"]
[881,"ECD_Okruh ASŘ"]
[882,"ECD_Okruh ASŘ"]
[883,"ECD_Okruh ASŘ"]
[884,"ECD_Okruh ASŘ"]
[885,"ECD_Okruh ASŘ"]
[886,"ECD_Okruh ASŘ"]
[887,"ECD_Okruh ASŘ"]
[888,"ECD_Okruh ASŘ"]
[889,"ECD_Okruh ASŘ"]
[890,"ECD_Okruh ASŘ"]
[891,"ECD_Okruh ASŘ"]
[892,"ECD_Okruh ASŘ"]
[893,"ECD_Okruh ASŘ"]
[894,"ECD_Okruh ASŘ"]
[895,"ECD_Okruh ASŘ"]
[896,"ECD_Okruh ASŘ"]
[897,"ECD_Okruh ASŘ"]
[898,"ECD_Okruh ASŘ"]
[899,"ECD_Okruh ASŘ"]
[900,"ECD_Okruh ASŘ"]
[901,"ECD_Okruh ASŘ"]
[902,"ECD_Okruh ASŘ"]
[903,"ECD_Okruh ASŘ"]
[904,"ECD_Okruh ASŘ"]
[905,"ECD_Okruh ASŘ"]
[906,"ECD_Okruh ASŘ"]
[907,"ECD_Okruh ASŘ"]
[908,"ECD_Okruh ASŘ"]
[909,"ECD_Okruh ASŘ"]
[910,"ECD_Okruh ASŘ"]
[911,"ECD_Okruh ASŘ"]
[912,"ECD_Okruh ASŘ"]
[913,"ECD_Okruh ASŘ"]
[914,"ECD_Okruh ASŘ"]
[915,"ECD_Okruh ASŘ"]
[916,"ECD_Okruh ASŘ"]
[917,"ECD_Okruh ASŘ"]
[918,"ECD_Okruh ASŘ"]
[919,"ECD_Okruh ASŘ"]
[920,"ECD_Okruh ASŘ"]
[921,"ECD_Okruh ASŘ"]
[922,"ECD_Okruh ASŘ"]
[923,"ECD_Okruh ASŘ"]
[924,"ECD_Okruh ASŘ"]
[925,"ECD_Okruh ASŘ"]
[926,"ECD_Okruh ASŘ"]
[927,"ECD_Okruh ASŘ"]
[928,"ECD_Okruh ASŘ"]
[929,"ECD_Okruh ASŘ"]
[930,"ECD_Okruh ASŘ"]
[931,"ECD_Okruh ASŘ"]
[932,"ECD_Okruh ASŘ"]
[933,"ECD_Okruh ASŘ"]
[934,"ECD_Okruh ASŘ"]
[935,"ECD_Okruh ASŘ"]
[936,"ECD_Okruh ASŘ"]
[937,"ECD_Okruh ASŘ"]
[938,"ECD_Okruh ASŘ"]
[939,"ECD_Okruh ASŘ"]
[940,"ECD_Okruh ASŘ"]
[941,"ECD_Okruh ASŘ"]
[942,"ECD_Okruh ASŘ"]
[943,"ECD_Okruh ASŘ"]
[944,"ECD_Okruh ASŘ"]
[945,"ECD_Okruh ASŘ"]
[946,"ECD_Okruh ASŘ"]
[947,"ECD_Okruh ASŘ"]
[948,"ECD_Okruh ASŘ"]
[949,"ECD_Okruh ASŘ"]
[950,"ECD_Okruh ASŘ"]
[951,"ECD_Okruh ASŘ"]
[952,"ECD_Okruh ASŘ"]
[953,"ECD_Okruh ASŘ"]
[954,"ECD_Okruh ASŘ"]
[955,"ECD_Okruh ASŘ"]
[956,"ECD_Okruh ASŘ"]
[957,"ECD_Okruh ASŘ"]
[958,"ECD_Okruh ASŘ"]
[959,"ECD_Okruh ASŘ"]
[960,"ECD_Okruh ASŘ"]
[961,"ECD_Okruh ASŘ"]
[962,"ECD_Okruh ASŘ"]
[963,"ECD_Okruh ASŘ"]
[964,"ECD_Okruh ASŘ"]
[965,"ECD_Okruh ASŘ"]
[966,"ECD_Okruh ASŘ"]
[967,"ECD_Okruh ASŘ"]
[968,"ECD_Okruh ASŘ"]
[969,"ECD_Okruh ASŘ"]
[970,"ECD_Okruh ASŘ"]
[971,"ECD_Okruh ASŘ"]
[972,"ECD_Okruh ASŘ"]
[973,"ECD_Okruh ASŘ"]
[974,"ECD_Okruh ASŘ"]
[975,"ECD_Okruh ASŘ"]
[976,"ECD_Okruh ASŘ"]
[977,"ECD_Okruh ASŘ"]
[978,"ECD_Okruh ASŘ"]
[979,"ECD_Okruh ASŘ"]
[980,"ECD_Okruh ASŘ"]
[981,"ECD_Okruh ASŘ"]
[982,"ECD_Okruh ASŘ"]
[983,"ECD_Okruh ASŘ"]
[984,"ECD_Okruh ASŘ"]
[985,"ECD_Okruh ASŘ"]
[986,"ECD_Okruh ASŘ"]
[987,"ECD_Okruh ASŘ"]
[988,"ECD_Okruh ASŘ"]
[989,"ECD_Okruh ASŘ"]
[990,"ECD_Okruh ASŘ"]
[991,"ECD_Okruh ASŘ"]
[992,"ECD_Okruh ASŘ"]
[993,"ECD_Okruh ASŘ"]
[994,"ECD_Okruh ASŘ"]
[995,"ECD_Okruh ASŘ"]
[996,"ECD_Okruh ASŘ"]
[997,"ECD_Okruh ASŘ"]

{"sheet":"Návod na vyplnění","index":2,"n_rows":36,"n_cols":5,"rows_kept":36,"cut":false,"hidden":false,"merged":[[4,2,4,4],[3,2,3,4],[28,2,31,4],[25,2,25,4]]}
[]
[]
[]
[null,null,"Návod na vyplnění položek pro tiskovou sestavu"]
[null,null,"Seznam měřicích obvodů"]
[null,null,"Název pole","Obsah pole","Vyplnění"]
[null,null,"Kód třídy MATRIO","Kód třídy nebo podtřídy MATRIO - zde shodné pro celou skupinu zařízení (měřících obvodů)","automatické"]
[null,null,"DPS","Označení dílčího provozního souboru","výběr z číselníku"]
[null,null,"Označení MO","Označení měřícího obvodu","volný text"]
[null,null,"Název","Název měřícího obvodu","volný text"]
[null,null,"Měřený param.","Označení měřeného parametru - odkaz na vstupní tabulku měřených parametrů, pole Označení","volný text"]
[null,null,"Druh","Druh měření z hlediska poskytované hodnoty\n{A - spojité (analogové); B - nespojité (binární) }","výběr z číselníku"]
[null,null,"RsO min","Rozsah obvodu ve fyzikálních jednotkách min","volný text"]
[null,null,"RsO max","Rozsah obvodu ve fyzikálních jednotkách max","volný text"]
[null,null,"RsO jedn.","Fyzikální jednotky rozsahu obvodu","volný text"]
[null,null,"Systém","Označení systému dle číselníku","výběr z číselníku"]
[null,null,"Divize","Divize bezpečnostního systému, resp. nezávislého systému","výběr z číselníku"]
[null,null,"Operativní schéma","Označení operativního schéma (kde je zakreslen MO)","volný text"]
[null,null,"hook-up","Označení sestavy dle technicko-obchodní specifikace (TOS), ve které jsou komponenty měřicího obvodu (určuje i dodavatele)","volný text"]
[null,null,"TSCH obvodu","Označení typového schématu měřicího obvodu v části SKŘ. Pokud není zpracováno typové schéma, \npak uvést arch. č. výkresu konkrétního obvodu","volný text"]
[null,null,"TSCH dopl. údaje","Parametry či atributy typového schématu měřicího obvodu v části SKŘ, pokud jsou pro dané typové schéma relevantní. ","volný text"]
[null,null,"Odběr 1","Označení odběrového místa L (-). Navazuje na tabulku Impulsní potrubí, list Odběry","volný text"]
[null,null,"Odběr 2","Označení odběrového místa H (+), pokud je použito. Navazuje na tabulku Impulsní potrubí, list Odběry","volný text"]
[null,null,"Změna","Změna dle JMA: N = Nový, S = Stávající , Z = Zrušený","výběr z číselníku"]
[null,null,"Poznámka","Poznámka","volný text"]
[null,null,"Tabulku \"Seznam měřících obvodů\" vyplňute od prvního řádku, nevynechávejte řádky a pro pohyb použijte rolování."]
[]
[]
[null,null,"UPOZORNĚNÍ:\nTISK JE PŘEDNASTAVEN, tisknou se pouze řádky, kde je vyplněný údaj \"DPS\" . \nFormát tisku je nastavený dle velikosti tabulky. Tabulka se tiskne na  formát A3 \"na šířku\".\n"]
[]
[]
[]
[]
[null,null,"Pozn. Klasifikace a požadavky na kvalifikaci jsou řešeny na samostatných formulářích dle příloh CEZ_ST_0093: "]
[null,null,"ČEZ_FO_1529","Seznam klasifikovaných zařízení"]
[null,null,"ČEZ_FO_1531","Seznam kvalifikovaných zařízení"]

{"sheet":"Číselníky","index":3,"n_rows":3728,"n_cols":16,"rows_kept":3728,"cut":false,"hidden":false,"merged":[[1,2,1,15],[2,2,2,15],[3,1,5,1]]}
[]
[null,null,"Použité číselníky"]
[null,null,"Vysvětlivky:  Nad názvem atributu: TE+DU = číselník je stejný pro obě elektrárny,  TE nebo DU = číselník je pro každou elektrárnu specifický,  \nTE <>DU = podmíněné prohození dle vybrané lokality na titulním listu"]
[null,"Aktuálně vybraná lokalita na Titulním listu",1,2,3,4,5,8,24,27,28,29,30,31,32,33]
[null,null,null,"TE+DU","TE","DU","TE <>DU","TE+DU","TE+DU","TE","DU","TE <>DU","TE","DU","TE <>DU","TE+DU"]
[null,null,"Lokalita","Stupeň","Typ/Podtyp (ETE)","Typ/Podtyp (EDU)","Typ/Podtyp ","Druh měření","Změna dle JMA","DPS ETE","DPS EDU","DPS","Systém SKŘ ETE","Systém SKŘ EDU","Systém SKŘ","Divize"]
[null,{"$f":"'Titulní list'!CD14","v":"ETE"}," "," "," "," ",{"$f":"IF($B$7=\"ETE\",E7,IF($B$7=\"EDU\",F7,\" \"))","v":" "}," "," "," "," ",{"$f":"IF($B$7=\"ETE\",J7,K7)","v":" "}," "," ",{"$f":"IF($B$7=\"ETE\",M7,N7)","v":" "}," "]
[null,null,"ETE","PDPS","PPPT","H16T ",{"$f":"IF($B$7=\"ETE\",E8,IF($B$7=\"EDU\",F8,\" \"))","v":"PPPT"},"A","N","0.00","A.32.00","0.00","AD","AM1","AD",1]
[null,null,"EDU","DoSP","PPPS","H16S",{"$f":"IF($B$7=\"ETE\",E9,IF($B$7=\"EDU\",F9,\" \"))","v":"PPPS"},"B","S","0.01","A.32.01","0.01","ADO","AM2","ADO",2]
[null,null,null,"PDSŘ","EDST/SKT","H01S",{"$f":"IF($B$7=\"ETE\",E10,IF($B$7=\"EDU\",F10,\" \"))","v":"EDST/SKT"},null,"Z","0.01A","A.32.03","0.01A","ASBS","AM3","ASBS",3]
[null,null,null,null,"EDSS/SKT","H01S",{"$f":"IF($B$7=\"ETE\",E11,IF($B$7=\"EDU\",F11,\" \"))","v":"EDSS/SKT"},null,"V","004","A.32.06","004","ASDV","AM4","ASDV","N"]
[null,null,null,null,null,null,null,null,"M","0.05","A.32.08","0.05","ASHO","AM5","ASHO"]
[null,null,null,null,null,null,null,null,null,"0.05A","A.32.09","0.05A","ASPD","AO","ASPD"]
[null,null,null,null,null,null,null,null,null,"0.05S","A.32.10","0.05S","ASPO","ASRI","ASPO"]
[null,null,null,null,null,null,null,null,null,"0.05V","III.13","0.05V","ASSO","ASRP","ASSO"]
[null,null,null,null,null,null,null,null,null,"0.05W","III.14","0.05W","ASSV","ASRS","ASSV"]
[null,null,null,null,null,null,null,null,null,"0.05X","III.15","0.05X","BFVF","ASRX","BFVF"]
[null,null,null,null,null,null,null,null,null,"0.06","III.16","0.06","BNIS","AT1","BNIS"]
[null,null,null,null,null,null,null,null,null,"0.06A","III.17","0.06A","BUK","AT2","BUK"]
[null,null,null,null,null,null,null,null,null,"0.06B","III.19","0.06B","CO","AT3","CO"]
[null,null,null,null,null,null,null,null,null,"0.06C","III.20","0.06C","COV","AT4","COV"]
[null,null,null,null,null,null,null,null,null,"0.06D","III.22","0.06D","CSOT","AT5","CSOT"]
[null,null,null,null,null,null,null,null,null,"0.06H","III.25","0.06H","DEKO","COH","DEKO"]
[null,null,null,null,null,null,null,null,null,"0.06M","III.29","0.06M","DGS","CSRK","DGS"]
[null,null,null,null,null,null,null,null,null,"0.06S","III.30","0.06S","DHM","CVNZ","DHM"]
[null,null,null,null,null,null,null,null,null,"0.06T","III.31","0.06T","DIAG","DGSM","DIAG"]
[null,null,null,null,null,null,null,null,null,"0.06V","III.38","0.06V","DIL","DIAG","DIL"]
[null,null,null,null,null,null,null,null,null,"0.06X","III.40","0.06X","DSK","DP","DSK"]
[null,null,null,null,null,null,null,null,null,"0.07","III.46","0.07","EPDS","DPR","EPDS"]
[null,null,null,null,null,null,null,null,null,"0.07A","III.74","0.07A","EPS","EM1","EPS"]
[null,null,null,null,null,null,null,null,null,"0.07B","II.15","0.07B","FRAO","EM2","FRAO"]
[null,null,null,null,null,null,null,null,null,"009","IV.13","009","G-DG","HDA","G-DG"]
[null,null,null,null,null,null,null,null,null,"0.10","IV.14","0.10","GEN","IO","GEN"]
[null,null,null,null,null,null,null,null,null,"010","IV.15","010","GEO","IS","GEO"]
[null,null,null,null,null,null,null,null,null,"0.10A","IV.16","0.10A","H2","JAO","H2"]
[null,null,null,null,null,null,null,null,null,"0.10D","IV.51","0.10D","HERM","KAB","HERM"]
[null,null,null,null,null,null,null,null,null,"0.10T","IV.52","0.10T","HRB","KCHA","HRB"]
[null,null,null,null,null,null,null,null,null,"0.10V","IV.53","0.10V","HZS","KO","HZS"]
[null,null,null,null,null,null,null,null,null,"0.104","IV.54","0.104","CHM","KO1","CHM"]
[null,null,null,null,null,null,null,null,null,"0.104A","IV.55","0.104A","CHOM","KO1M","CHOM"]
[null,null,null,null,null,null,null,null,null,"0.104B","IV.57","0.104B","CHUV","KO2","CHUV"]
[null,null,null,null,null,null,null,null,null,"0.104D","IV.58","0.104D","INSI","KO3","INSI"]
[null,null,null,null,null,null,null,null,null,"0.104E","IV.60","0.104E","ISE1","N11","ISE1"]
[null,null,null,null,null,null,null,null,null,"0.105","IV.61","0.105","ISE2","N12","ISE2"]
[null,null,null,null,null,null,null,null,null,"0.105D","IV.62","0.105D","IVS","N13","IVS"]
[null,null,null,null,null,null,null,null,null,"0.105F","IV.64","0.105F","JAO1","N21","JAO1"]
[null,null,null,null,null,null,null,null,null,"0.105M","IV.67","0.105M","JAO2","N22","JAO2"]
[null,null,null,null,null,null,null,null,null,"0.105V","IV.70","0.105V","JAO3","N23","JAO3"]
[null,null,null,null,null,null,null,null,null,"0.106","IV.75","0.106","JOUL","N24","JOUL"]
[null,null,null,null,null,null,null,null,null,"0.107","IV.79","0.107","KOM","NJO","KOM"]
[null,null,null,null,null,null,null,null,null,"0.108","IV.90","0.108","KTM","NLA","KTM"]
[null,null,null,null,null,null,null,null,null,"0.11","I.15","0.11","KTMP","NV1","KTMP"]
[null,null,null,null,null,null,null,null,null,"0.11D","I.16","0.11D","KTMT","NV2","KTMT"]
[null,null,null,null,null,null,null,null,null,"0.11V","M.08","0.11V","KUCH","NV3","KUCH"]
[null,null,null,null,null,null,null,null,null,"0.144","M.12","0.144","LAB","NV4","LAB"]
[null,null,null,null,null,null,null,null,null,"0.144A","M.12.01","0.144A","LMIZ","NV5","LMIZ"]
[null,null,null,null,null,null,null,null,null,"0.144E","M.12.02","0.144E","LRKO","NV6","LRKO"]
[null,null,null,null,null,null,null,null,null,"0.144T","M.74","0.144T","LSKR","NW1","LSKR"]
[null,null,null,null,null,null,null,null,null,"0.145","M.74.01","0.145","N2","NW2","N2"]
[null,null,null,null,null,null,null,null,null,"0.145A","M.74.03","0.145A","NANA","NW3","NANA"]
[null,null,null,null,null,null,null,null,null,"0.145T","M.85.01","0.145T","NEM","NW4","NEM"]
[null,null,null,null,null,null,null,null,null,"0.146","M.85.02","0.146","NEUT","NW5","NEUT"]
[null,null,null,null,null,null,null,null,null,"0.147","M.85.03","0.147","NN1","NW6","NN1"]
[null,null,null,null,null,null,null,null,null,"0.147A","M.85.04","0.147A","NN2","NW7","NN2"]
[null,null,null,null,null,null,null,null,null,"0.147B","M.85.05","0.147B","NN3","OB1","NN3"]
[null,null,null,null,null,null,null,null,null,"0.147C","M.85.06","0.147C","NN4","OB2","NN4"]
[null,null,null,null,null,null,null,null,null,"0.147D","M.85.07","0.147D","NN5","OB3","NN5"]
[null,null,null,null,null,null,null,null,null,"0.147F","M.85.08","0.147F","NTKS","OB4","NTKS"]
[null,null,null,null,null,null,null,null,null,"0.147G","U.010","0.147G","NTO","OO","NTO"]
[null,null,null,null,null,null,null,null,null,"0.148","U.011","0.148","ODK","OS","ODK"]
[null,null,null,null,null,null,null,null,null,"0.148D","U.011.1",{"$f":"IF($B$7=\"ETE\",J71,K71)","v":"0.148D"},"ODOL","PARC",{"$f":"IF($B$7=\"ETE\",M71,N71)","v":"ODOL"}]
[null,null,null,null,null,null,null,null,null,"0.148T","U.011.2","0.148T","ODPA","PCSI","ODPA"]
[null,null,null,null,null,null,null,null,null,"0.148V","U.012","0.148V","OCH","PCSP","OCH"]
[null,null,null,null,null,null,null,null,null,"0.150","U.102.00","0.150","OSO","PCSS","OSO"]
[null,null,null,null,null,null,null,null,null,"0.151","U.102.01","0.151","OSTR","PCSX","OSTR"]
[null,null,null,null,null,null,null,null,null,"0.152","U.102.03","0.152","OV","PMSI","OV"]
[null,null,null,null,null,null,null,null,null,"0.162","U.102.06","0.162","PAL","PMSP","PAL"]
[null,null,null,null,null,null,null,null,null,"0.162T","U.102.08","0.162T","PHM","PMSS","PHM"]
[null,null,null,null,null,null,null,null,null,"0.163","U.102.09","0.163","PK","PMSX","PK"]
[null,null,null,null,null,null,null,null,null,"0.163A","U.102.10","0.163A","PRO1","PP","PRO1"]
[null,null,null,null,null,null,null,null,null,"0.163T","U.200.00","0.163T","PRO2","PR","PRO2"]
[null,null,null,null,null,null,null,null,null,"0.163V","U.200.01","0.163V","PRO3","PT1","PRO3"]
[null,null,null,null,null,null,null,null,null,"0.165","U.200.03","0.165","PT","PT2","PT"]
[null,null,null,null,null,null,null,null,null,"0.166","U.200.06","0.166","PTPO","PT3","PTPO"]
[null,null,null,null,null,null,null,null,null,"0.167","U.200.08","0.167","PTV","QA","PTV"]
[null,null,null,null,null,null,null,null,null,"0.168","U.200.09","0.168","RG","QF","RG"]
[null,null,null,null,null,null,null,null,null,"0.168B","U.200.10","0.168B","RPO","QM","RPO"]
[null,null,null,null,null,null,null,null,null,"0.169","U.202.00","0.169","RQ","QP","RQ"]
[null,null,null,null,null,null,null,null,null,"0.170","U.202.01","0.170","RRMS","QS","RRMS"]
[null,null,null,null,null,null,null,null,null,"0.170A","U.202.03","0.170A","RY","QV","RY"]
[null,null,null,null,null,null,null,null,null,"0.170D","U.202.06","0.170D","SAUT","QW","SAUT"]
[null,null,null,null,null,null,null,null,null,"0.170E","U.202.08","0.170E","SC","QX","SC"]
[null,null,null,null,null,null,null,null,null,"0.170F","U.202.09","0.170F","SD","QZE","SD"]
[null,null,null,null,null,null,null,null,null,"0.173","U.202.10","0.173","SF","QZM","SF"]
[null,null,null,null,null,null,null,null,null,"0.174","VII.30","0.174","SHZ","QZS","SHZ"]
[null,null,null,null,null,null,null,null,null,"0.174A","VII.31","0.174A","SIM","RA","SIM"]
[null,null,null,null,null,null,null,null,null,"0.174R","XII.13","0.174R","SJ","RB","SJ"]
[null,null,null,null,null,null,null,null,null,"0.174S","XI.13","0.174S","SKOL","RKO","SKOL"]
[null,null,null,null,null,null,null,null,null,"0.174T","XI.15","0.174T","SPP","RKT","SPP"]
[null,null,null,null,null,null,null,null,null,"0.174V","XI.16","0.174V","SPPR","RKV","SPPR"]
[null,null,null,null,null,null,null,null,null,"0.18","Z.12","0.18","SRAO","RL1","SRAO"]
[null,null,null,null,null,null,null,null,null,"0.18A","Z.12.01","0.18A","SSRK","RL2","SSRK"]
[null,null,null,null,null,null,null,null,null,"0.18T","Z.12.02","0.18T","TA","RM1","TA"]
[null,null,null,null,null,null,null,null,null,"0.18V","Z.83.01","0.18V","TAUT","RM2","TAUT"]
[null,null,null,null,null,null,null,null,null,"0.181","Z.83.02","0.181","TB","RM2M","TB"]
[null,null,null,null,null,null,null,null,null,"0.182","Z.83.03","0.182","TBN","RP","TBN"]
[null,null,null,null,null,null,null,null,null,"0.184","Z.83.04","0.184","TC","RQ1","TC"]
[null,null,null,null,null,null,null,null,null,"0.184A","Z.83.05","0.184A","TD","RR","TD"]
[null,null,null,null,null,null,null,null,null,"0.185","Z.83.06","0.185","TE","RRCS","TE"]
[null,null,null,null,null,null,null,null,null,"0.185A","Z.83.07","0.185A","TF","RSBB","TF"]
[null,null,null,null,null,null,null,null,null,"0.188","Z.83.08","0.188","TG","RSBBI","TG"]
[null,null,null,null,null,null,null,null,null,"0.188D","Z.942.7.00","0.188D","TH","RSBBP","TH"]
[null,null,null,null,null,null,null,null,null,"0.188G","Z.942.7.01","0.188G","TK","RSBBS","TK"]
[null,null,null,null,null,null,null,null,null,"0.188K","Z.942.7.03","0.188K","TM","RSBBX","TM"]
[null,null,null,null,null,null,null,null,null,"0.188V","Z.942.7.06","0.188V","TMDS","RSBN","TMDS"]
[null,null,null,null,null,null,null,null,null,"0.189","Z.942.7.08","0.189","TN","RSBNI","TN"]
[null,null,null,null,null,null,null,null,null,"0.19","Z.942.7.09","0.19","TOSO","RSBNP","TOSO"]
[null,null,null,null,null,null,null,null,null,"0.19A","Z.942.7.10","0.19A","TPPO","RSBNS","TPPO"]
[null,null,null,null,null,null,null,null,null,"0.19T","0.A11","0.19T","TQ","RSBNX","TQ"]
[null,null,null,null,null,null,null,null,null,"0.19V","0.A16-1","0.19V","TS10","RSBP","TS10"]
[null,null,null,null,null,null,null,null,null,"0.190","0.A16-1.01","0.190","TS20","RSBPI","TS20"]
[null,null,null,null,null,null,null,null,null,"0.190A","0.A16-1.02","0.190A","TTC","RSBPP","TTC"]
[null,null,null,null,null,null,null,null,null,"0.190B","0.A16-1.03","0.190B","TTS","RSBPX","TTS"]
[null,null,null,null,null,null,null,null,null,"0.190E","0.A16-1.04","0.190E","TX","RSBS","TX"]
[null,null,null,null,null,null,null,null,null,"0.191","0.A16-1.05","0.191","TXHS","RSBSI","TXHS"]
[null,null,null,null,null,null,null,null,null,"0.20","0.A16-1.06","0.20","TXNS","RSBSS","TXNS"]
[null,null,null,null,null,null,null,null,null,"0.20D","0.A16-1.07.1","0.20D","TY","RSBSX","TY"]
[null,null,null,null,null,null,null,null,null,"0.20L","0.A16-1.07.2","0.20L","UD","RSBT","UD"]
[null,null,null,null,null,null,null,null,null,"0.205","0.A16-1.08.1","0.205","UE","RSBTI","UE"]
[null,null,null,null,null,null,null,null,null,"0.205A","0.A16-1.08.2","0.205A","UCHV","RSBTS","UCHV"]
[null,null,null,null,null,null,null,null,null,"0.205B","0.A16-1.09","0.205B","UJ","RSBTX","UJ"]
[null,null,null,null,null,null,null,null,null,"0.205C","0.A16-1.10","0.205C","UR","RSCP","UR"]
[null,null,null,null,null,null,null,null,null,"0.210","0.A16-1.11","0.210","UX","RSCS","UX"]
[null,null,null,null,null,null,null,null,null,"0.24","0.A16-1.12","0.24","VB","RV1","VB"]
[null,null,null,null,null,null,null,null,null,"0.24A","0.A30-1",{"$f":"IF($B$7=\"ETE\",J135,K135)","v":"0.24A"},"VC","RV1M",{"$f":"IF($B$7=\"ETE\",M135,N135)","v":"VC"}]
[null,null,null,null,null,null,null,null,null,"0.24D","0.A30-1.01.1","0.24D","VF","RV2","VF"]
[null,null,null,null,null,null,null,null,null,"0.24F","0.A30-1.08","0.24F","VG","RV3","VG"]
[null,null,null,null,null,null,null,null,null,"0.24T","0.A30-1.10","0.24T","VN","RY","VN"]
[null,null,null,null,null,null,null,null,null,"0.25","0.A30-2.10","0.25","VSVZ","SCOR","VSVZ"]
[null,null,null,null,null,null,null,null,null,"0.25B","0.A9","0.25B","VTKS","SGPI","VTKS"]
[null,null,null,null,null,null,null,null,null,"0.25D","0.A9.01","0.25D","VTO","SGPP","VTO"]
[null,null,null,null,null,null,null,null,null,"0.25L","0.A9.03","0.25L","VVN","SGPX","VVN"]
[null,null,null,null,null,null,null,null,null,"0.25S","0.A9.08","0.25S","VVOD","SH","VVOD"]
[null,null,null,null,null,null,null,null,null,"0.25T","0.A9.10","0.25T","VVS","SIM","VVS"]
[null,null,null,null,null,null,null,null,null,"0.25V","0.A9.19","0.25V","VY","SK","VY"]
[null,null,null,null,null,null,null,null,null,"0.25X","0.B9","0.25X","VZTP","SMS","VZTP"]
[null,null,null,null,null,null,null,null,null,"0.25Z","0.B9.08","0.25Z","VZTS","SP","VZTS"]
[null,null,null,null,null,null,null,null,null,"0.26","0.C12","0.26","VZTT","SP3I","VZTT"]
[null,null,null,null,null,null,null,null,null,"0.26B","0.C3.1.00","0.26B","YA","SP3P","YA"]
[null,null,null,null,null,null,null,null,null,"0.27","0.C3.1.01","0.27","YB","SP3X","YB"]
[null,null,null,null,null,null,null,null,null,"0.27A","0.C3.1.03","0.27A","YC","SPY","YC"]
[null,null,null,null,null,null,null,null,null,"0.27D","0.C3.1.06","0.27D","YD","SS","YD"]
[null,null,null,null,null,null,null,null,null,"0.27E","0.C3.1.08","0.27E","YP","ST","YP"]
[null,null,null,null,null,null,null,null,null,"0.27X","0.C3.1.09","0.27X","YR","SU","YR"]
[null,null,null,null,null,null,null,null,null,"0.28","0.C3.1.10","0.28","YT","TA2","YT"]
[null,null,null,null,null,null,null,null,null,"0.28A","0.C3.2.00","0.28A","ZIV","TB1","ZIV"]
[null,null,null,null,null,null,null,null,null,"0.28B","0.C3.2.01","0.28B","ZN","TB2","ZN"]
[null,null,null,null,null,null,null,null,null,"0.28D","0.C3.2.03","0.28D","ZNAO","TC","ZNAO"]
[null,null,null,null,null,null,null,null,null,"0.28G","0.C3.2.06","0.28G","ZRAO","TD1","ZRAO"]
[null,null,null,null,null,null,null,null,null,"0.28J","0.C3.2.08","0.28J","ZVOD","TD3","ZVOD"]
[null,null,null,null,null,null,null,null,null,"0.28Q","0.C3.2.09","0.28Q","ZZ","TDS","ZZ"]
[null,null,null,null,null,null,null,null,null,"0.28R","0.C3.2.10","0.28R"," ","TE"," "]
[null,null,null,null,null,null,null,null,null,"0.28V","0.C3.3","0.28V"," ","TELE"," "]
[null,null,null,null,null,null,null,null,null,"0.28Z","0.C3.3.00","0.28Z"," ","TF1"," "]
[null,null,null,null,null,null,null,null,null,"0.29","0.C3.3.01","0.29"," ","TF3"," "]
[null,null,null,null,null,null,null,null,null,"0.29A","0.C3.3.03","0.29A"," ","TG1"," "]
[null,null,null,null,null,null,null,null,null,"0.29B","0.C3.3.06","0.29B"," ","TH1"," "]
[null,null,null,null,null,null,null,null,null,"0.29F","0.C3.3.08","0.29F"," ","TJ"," "]
[null,null,null,null,null,null,null,null,null,"0.29G","0.C3.3.09","0.29G"," ","TK1"," "]
[null,null,null,null,null,null,null,null,null,"0.29J","0.C3.3.10","0.29J"," ","TK2"," "]
[null,null,null,null,null,null,null,null,null,"0.29K","0.C5","0.29K"," ","TL1"," "]
[null,null,null,null,null,null,null,null,null,"0.29L","0.C5.01","0.29L"," ","TL2"," "]
[null,null,null,null,null,null,null,null,null,"0.29T","0.C5.08","0.29T"," ","TL3"," "]
[null,null,null,null,null,null,null,null,null,"0.29W","0.C5.10","0.29W"," ","TM"," "]
[null,null,null,null,null,null,null,null,null,"0.29X","0.C6","0.29X"," ","TN"," "]
[null,null,null,null,null,null,null,null,null,"0.29Z","0.C6M.00","0.29Z"," ","TN2"," "]
[null,null,null,null,null,null,null,null,null,"030","0.C6M.01","030"," ","TP1"," "]
[null,null,null,null,null,null,null,null,null,"0.31","0.C6M.06","0.31"," ","TP2"," "]
[null,null,null,null,null,null,null,null,null,"0.31A","0.C6M.08","0.31A"," ","TP2M"," "]
[null,null,null,null,null,null,null,null,null,"0.31E","0.C6M.10","0.31E"," ","TP3"," "]
[null,null,null,null,null,null,null,null,null,"0.31S","0.C6.00","0.31S"," ","TP3M"," "]
[null,null,null,null,null,null,null,null,null,"0.31T","0.C6.01","0.31T"," ","TP4"," "]
[null,null,null,null,null,null,null,null,null,"0.31V","0.C6.03","0.31V"," ","TP4M"," "]
[null,null,null,null,null,null,null,null,null,"0.35","0.C6.06","0.35"," ","TP7"," "]
[null,null,null,null,null,null,null,null,null,"0.35A","0.C6.08","0.35A"," ","TQ"," "]
[null,null,null,null,null,null,null,null,null,"0.35D","0.C6.09","0.35D"," ","TR"," "]
[null,null,null,null,null,null,null,null,null,"0.35E","0.C6.10","0.35E"," ","TRS"," "]
[null,null,null,null,null,null,null,null,null,"0.35R","0.C7.1.00","0.35R"," ","TRSM"," "]
[null,null,null,null,null,null,null,null,null,"0.38","0.C7.1.01","0.38"," ","TS1"," "]
[null,null,null,null,null,null,null,null,null,"0.38A","0.C7.1.03","0.38A"," ","TS2"," "]
[null,null,null,null,null,null,null,null,null,"0.38Q","0.C7.1.06","0.38Q"," ","TS7"," "]
[null,null,null,null,null,null,null,null,null,"0.38T","0.C7.1.08","0.38T"," ","TS8"," "]
[null,null,null,null,null,null,null,null,null,"0.38V","0.C7.1.09","0.38V"," ","TT"," "]
[null,null,null,null,null,null,null,null,null,"0.42","0.C7.1.10","0.42"," ","TU"," "]
[null,null,null,null,null,null,null,null,null,"0.42A","0.C7.1.1.00","0.42A"," ","TW"," "]
[null,null,null,null,null,null,null,null,null,"0.42F","0.C7.1.1.01","0.42F"," ","TY1"," "]
[null,null,null,null,null,null,null,null,null,"0.43","0.C7.1.1.03","0.43"," ","TY2"," "]
[null,null,null,null,null,null,null,null,null,"0.44","0.C7.1.1.06","0.44"," ","TY3"," "]
[null,null,null,null,null,null,null,null,null,"0.44A","0.C7.1.1.08",{"$f":"IF($B$7=\"ETE\",J199,K199)","v":"0.44A"}," ","TY5",{"$f":"IF($B$7=\"ETE\",M199,N199)","v":" "}]
[null,null,null,null,null,null,null,null,null,"0.44D","0.C7.1.1.09","0.44D"," ","UD"," "]
[null,null,null,null,null,null,null,null,null,"0.44M","0.C7.1.1.10","0.44M"," ","UDM"," "]
[null,null,null,null,null,null,null,null,null,"0.44Q","0.C7.2.00","0.44Q"," ","UJ1"," "]
[null,null,null,null,null,null,null,null,null,"0.44S","0.C7.2.01","0.44S"," ","UJ2"," "]
[null,null,null,null,null,null,null,null,null,"0.44T","0.C7.2.03","0.44T"," ","UQ1"," "]
[null,null,null,null,null,null,null,null,null,"0.44V","0.C7.2.06","0.44V"," ","UQ2"," "]
[null,null,null,null,null,null,null,null,null,"0.45","0.C7.2.08","0.45"," ","UQ3"," "]
[null,null,null,null,null,null,null,null,null,"0.45A","0.C7.2.09","0.45A"," ","US1"," "]
[null,null,null,null,null,null,null,null,null,"0.45T","0.C7.2.10","0.45T"," ","US1M"," "]
[null,null,null,null,null,null,null,null,null,"0.46","0.C7.3.00","0.46"," ","US2"," "]
[null,null,null,null,null,null,null,null,null,"0.46A","0.C7.3.01","0.46A"," ","UU1"," "]
[null,null,null,null,null,null,null,null,null,"0.46K","0.C7.3.03","0.46K"," ","UW1"," "]
[null,null,null,null,null,null,null,null,null,"0.47","0.C7.3.06","0.47"," ","UW2"," "]
[null,null,null,null,null,null,null,null,null,"0.47A","0.C7.3.08","0.47A"," ","UW3"," "]
[null,null,null,null,null,null,null,null,null,"0.47B","0.C7.3.09","0.47B"," ","UW4"," "]
[null,null,null,null,null,null,null,null,null,"0.47C","0.C7.3.10","0.47C"," ","UX"," "]
[null,null,null,null,null,null,null,null,null,"0.47T","02.00","0.47T"," ","VC1"," "]
[null,null,null,null,null,null,null,null,null,"0.47V","0.20.01","0.47V"," ","VC1M"," "]
[null,null,null,null,null,null,null,null,null,"0.48","0.20.08","0.48"," ","VF1"," "]
[null,null,null,null,null,null,null,null,null,"0.48A","0.20.09","0.48A"," ","VF2"," "]
[null,null,null,null,null,null,null,null,null,"0.48C","02.01","0.48C"," ","VF3"," "]
[null,null,null,null,null,null,null,null,null,"0.48D","0.20.10","0.48D"," ","VF3M"," "]
[null,null,null,null,null,null,null,null,null,"0.48T","02.03","0.48T"," ","VFP"," "]
[null,null,null,null,null,null,null,null,null,"0.49","02.06","0.49"," ","VFS"," "]
[null,null,null,null,null,null,null,null,null,"0.49A","02.08","0.49A"," ","VFV"," "]
[null,null,null,null,null,null,null,null,null,"0.49B","02.09","0.49B"," ","VG1"," "]
[null,null,null,null,null,null,null,null,null,"0.49C","02.10","0.49C"," ","VG1M"," "]
[null,null,null,null,null,null,null,null,null,"0.49D","0.49.01","0.49D"," ","VG2"," "]
[null,null,null,null,null,null,null,null,null,"0.49E","0.49.02","0.49E"," ","VH1"," "]
[null,null,null,null,null,null,null,null,null,"0.49F","0.49.08","0.49F"," ","VH1M"," "]
[null,null,null,null,null,null,null,null,null,"0.49H","0.49.10","0.49H"," ","VH2"," "]
[null,null,null,null,null,null,null,null,null,"0.49I","08.650","0.49I"," ","VL"," "]
[null,null,null,null,null,null,null,null,null,"0.49J","08.803","0.49J"," ","VLM"," "]
[null,null,null,null,null,null,null,null,null,"0.49T","08.803.1","0.49T"," ","VTZ"," "]
[null,null,null,null,null,null,null,null,null,"0.49U","08.803.3","0.49U"," ","VTZI"," "]
[null,null,null,null,null,null,null,null,null,"0.49V","1","0.49V"," ","VTZP"," "]
[null,null,null,null,null,null,null,null,null,"0.49W","1.A1","0.49W"," ","VTZS"," "]
[null,null,null,null,null,null,null,null,null,"0.50","1.A10","0.50"," ","VTZX"," "]
[null,null,null,null,null,null,null,null,null,"050","1.A10.01","050"," ","X"," "]
[null,null,null,null,null,null,null,null,null,"0.50A","1.A10.08","0.50A"," ","XA"," "]
[null,null,null,null,null,null,null,null,null,"0.50R","1.A10.08.01","0.50R"," ","XL"," "]
[null,null,null,null,null,null,null,null,null,"0.50S","1.A1.01","0.50S"," ","XT"," "]
[null,null,null,null,null,null,null,null,null,"0.50T","1.A10.10","0.50T"," ","YA1"," "]
[null,null,null,null,null,null,null,null,null,"0.50V","1.A10.10.01","0.50V"," ","YA2"," "]
[null,null,null,null,null,null,null,null,null,"0.52","1.A10-2","0.52"," ","YB"," "]
[null,null,null,null,null,null,null,null,null,"0.52A","1.A10-2.01","0.52A"," ","YC1"," "]
[null,null,null,null,null,null,null,null,null,"0.52D","1.A10-2.02","0.52D"," ","YD1"," "]
[null,null,null,null,null,null,null,null,null,"0.52E","1.A1.08","0.52E"," ","YP1"," "]
[null,null,null,null,null,null,null,null,null,"0.52F","1.A1.10","0.52F"," ","ZN1"," "]
[null,null,null,null,null,null,null,null,null,"0.52G","1.A12A","0.52G"," ","ZN2"," "]
[null,null,null,null,null,null,null,null,null,"0.52M","1.A12A.08","0.52M"," ","ZN3"," "]
[null,null,null,null,null,null,null,null,null,"0.52N","1.A12A.10","0.52N"," ","ZN4"," "]
[null,null,null,null,null,null,null,null,null,"0.52P","1.A12B","0.52P"," ","ZN5"," "]
[null,null,null,null,null,null,null,null,null,"0.52R","1.A12B.01","0.52R"," ","ZN6"," "]
[null,null,null,null,null,null,null,null,null,"0.52S","1.A16-1","0.52S"," ","ZN7"," "]
[null,null,null,null,null,null,null,null,null,"0.52T","1.A16-1.01","0.52T"," ","ZN8"," "]
[null,null,null,null,null,null,null,null,null,"0.52U","1.A16-1.08","0.52U"," ","ZZ"," "]
[null,null,null,null,null,null,null,null,null,"0.52V","1.A16-2","0.52V"]
[null,null,null,null,null,null,null,null,null,"0.52W","1.A16-2.01","0.52W"]
[null,null,null,null,null,null,null,null,null,"0.52X","1.A21.01","0.52X"]
[null,null,null,null,null,null,null,null,null,"0.52Y","1.A21.08","0.52Y"]
[null,null,null,null,null,null,null,null,null,"0.56","1.A21.10","0.56"]
[null,null,null,null,null,null,null,null,null,"0.56A","1.A23A","0.56A"]
[null,null,null,null,null,null,null,null,null,"0.56R","1.A23A.05",{"$f":"IF($B$7=\"ETE\",J263,K263)","v":"0.56R"}]
[null,null,null,null,null,null,null,null,null,"0.56T","1.A23A.08","0.56T"]
[null,null,null,null,null,null,null,null,null,"0.56V","1.A23A.10","0.56V"]
[null,null,null,null,null,null,null,null,null,"0.59","1.A23B","0.59"]
[null,null,null,null,null,null,null,null,null,"0.59A","1.A23B.01","0.59A"]
[null,null,null,null,null,null,null,null,null,"0.59T","1.A23B.08","0.59T"]
[null,null,null,null,null,null,null,null,null,"0.60","1.A23B.10","0.60"]
[null,null,null,null,null,null,null,null,null,"060","1.A23C","060"]
[null,null,null,null,null,null,null,null,null,"0.60A","1.A23C.01","0.60A"]
[null,null,null,null,null,null,null,null,null,"0.60D","1.A23C.08","0.60D"]
[null,null,null,null,null,null,null,null,null,"0.60E","1.A23C.10","0.60E"]
[null,null,null,null,null,null,null,null,null,"0.60G","1.A23.00","0.60G"]
[null,null,null,null,null,null,null,null,null,"0.60J","1.A23.01","0.60J"]
[null,null,null,null,null,null,null,null,null,"0.60R","1.A23.03","0.60R"]
[null,null,null,null,null,null,null,null,null,"0.60S","1.A23.05","0.60S"]
[null,null,null,null,null,null,null,null,null,"0.60T","1.A23.06","0.60T"]
[null,null,null,null,null,null,null,null,null,"0601","1.A23.08","0601"]
[null,null,null,null,null,null,null,null,null,"0602","1.A23.09","0602"]
[null,null,null,null,null,null,null,null,null,"0603","1.A23.10","0603"]
[null,null,null,null,null,null,null,null,null,"0604","1.A25","0604"]
[null,null,null,null,null,null,null,null,null,"0.61","1.A25.08","0.61"]
[null,null,null,null,null,null,null,null,null,"0.61A","1.A25.09","0.61A"]
[null,null,null,null,null,null,null,null,null,"0.61D","1.A25.10","0.61D"]
[null,null,null,null,null,null,null,null,null,"0.61E","1.A3","0.61E"]
[null,null,null,null,null,null,null,null,null,"0.61F","1.A3.01","0.61F"]
[null,null,null,null,null,null,null,null,null,"0.61J","1.A30-1.01.1","0.61J"]
[null,null,null,null,null,null,null,null,null,"0.61K","1.A4","0.61K"]
[null,null,null,null,null,null,null,null,null,"0.61L","1.A4.01","0.61L"]
[null,null,null,null,null,null,null,null,null,"0.61M","1.A4.08","0.61M"]
[null,null,null,null,null,null,null,null,null,"0.61R","1.A4.10","0.61R"]
[null,null,null,null,null,null,null,null,null,"0.61T","1.A5","0.61T"]
[null,null,null,null,null,null,null,null,null,"0.62","1.A5.01","0.62"]
[null,null,null,null,null,null,null,null,null,"0.62A","1.A5.08","0.62A"]
[null,null,null,null,null,null,null,null,null,"0.62F","1.A5.10","0.62F"]
[null,null,null,null,null,null,null,null,null,"0.62J","1.A7","0.62J"]
[null,null,null,null,null,null,null,null,null,"0.62S","1.A7.01","0.62S"]
[null,null,null,null,null,null,null,null,null,"0.63","1.A7.10","0.63"]
[null,null,null,null,null,null,null,null,null,"0.63A","1.A8","0.63A"]
[null,null,null,null,null,null,null,null,null,"0.63D","1.A8.01","0.63D"]
[null,null,null,null,null,null,null,null,null,"0.63E","1.A8.10","0.63E"]
[null,null,null,null,null,null,null,null,null,"0.63J","1.A9","0.63J"]
[null,null,null,null,null,null,null,null,null,"0.63M","1.A9.01","0.63M"]
[null,null,null,null,null,null,null,null,null,"0.64","1.A9.02","0.64"]
[null,null,null,null,null,null,null,null,null,"0.64A","1.A9.08","0.64A"]
[null,null,null,null,null,null,null,null,null,"0.65","1.A9.10","0.65"]
[null,null,null,null,null,null,null,null,null,"0.65A","1.A9.12","0.65A"]
[null,null,null,null,null,null,null,null,null,"0.65D","1.A9.14","0.65D"]
[null,null,null,null,null,null,null,null,null,"0.65E","1.B1","0.65E"]
[null,null,null,null,null,null,null,null,null,"0.65F","1.B10.08","0.65F"]
[null,null,null,null,null,null,null,null,null,"0.65J","1.B1.01","0.65J"]
[null,null,null,null,null,null,null,null,null,"0.65K","1.B1.08","0.65K"]
[null,null,null,null,null,null,null,null,null,"0.65M","1.B1.10","0.65M"]
[null,null,null,null,null,null,null,null,null,"0.65N","1.B13A","0.65N"]
[null,null,null,null,null,null,null,null,null,"0.65R","1.B13A.01","0.65R"]
[null,null,null,null,null,null,null,null,null,"0.65S","1.B13A.02","0.65S"]
[null,null,null,null,null,null,null,null,null,"0.65T","1.B13A.08","0.65T"]
[null,null,null,null,null,null,null,null,null,"0.66","1.B13B","0.66"]
[null,null,null,null,null,null,null,null,null,"0.66A","1.B13B.01","0.66A"]
[null,null,null,null,null,null,null,null,null,"0.66B","1.B13B.08","0.66B"]
[null,null,null,null,null,null,null,null,null,"0.66S","1.B13B.09","0.66S"]
[null,null,null,null,null,null,null,null,null,"0.66T","1.B13B.10","0.66T"]
[null,null,null,null,null,null,null,null,null,"0.66V","1.B3","0.66V"]
[null,null,null,null,null,null,null,null,null,"0.66X","1.B3.01","0.66X"]
[null,null,null,null,null,null,null,null,null,"0.67","1.B3.08","0.67"]
[null,null,null,null,null,null,null,null,null,"0.67A","1.B3.09",{"$f":"IF($B$7=\"ETE\",J327,K327)","v":"0.67A"}]
[null,null,null,null,null,null,null,null,null,"0.67T","1.B3.10","0.67T"]
[null,null,null,null,null,null,null,null,null,"0.68","1.B4","0.68"]
[null,null,null,null,null,null,null,null,null,"0.68A","1.B4.01","0.68A"]
[null,null,null,null,null,null,null,null,null,"0.68D","1.B4.08","0.68D"]
[null,null,null,null,null,null,null,null,null,"0.68E","1.B4.10","0.68E"]
[null,null,null,null,null,null,null,null,null,"0.68T","1.B5-1.01","0.68T"]
[null,null,null,null,null,null,null,null,null,"0.68V","1.B5-1.08","0.68V"]
[null,null,null,null,null,null,null,null,null,"0.70","1.B5-1.10","0.70"]
[null,null,null,null,null,null,null,null,null,"0.70A","1.B5-2","0.70A"]
[null,null,null,null,null,null,null,null,null,"0.70T","1.B5-2.01","0.70T"]
[null,null,null,null,null,null,null,null,null,"0.70V","1.B5-2.08","0.70V"]
[null,null,null,null,null,null,null,null,null,"0.73","1.B5-2.10","0.73"]
[null,null,null,null,null,null,null,null,null,"0.73A","1.B5-3","0.73A"]
[null,null,null,null,null,null,null,null,null,"0.73E","1.B5-3.01","0.73E"]
[null,null,null,null,null,null,null,null,null,"0.73T","1.B5-3.08","0.73T"]
[null,null,null,null,null,null,null,null,null,"0.73V","1.B5-3.10","0.73V"]
[null,null,null,null,null,null,null,null,null,"0.74","1.B7.01","0.74"]
[null,null,null,null,null,null,null,null,null,"0.74A","1.B7.08","0.74A"]
[null,null,null,null,null,null,null,null,null,"0.74T","1.I","0.74T"]
[null,null,null,null,null,null,null,null,null,"0.74V","1.II","0.74V"]
[null,null,null,null,null,null,null,null,null,"0.75","1.III","0.75"]
[null,null,null,null,null,null,null,null,null,"0.75A","1.IV","0.75A"]
[null,null,null,null,null,null,null,null,null,"0.75D","1.V","0.75D"]
[null,null,null,null,null,null,null,null,null,"0.75M","1.VI","0.75M"]
[null,null,null,null,null,null,null,null,null,"0.75T","1.VII","0.75T"]
[null,null,null,null,null,null,null,null,null,"0.75V","1.VIII","0.75V"]
[null,null,null,null,null,null,null,null,null,"0.76","1.X","0.76"]
[null,null,null,null,null,null,null,null,null,"0.76A","1.XI","0.76A"]
[null,null,null,null,null,null,null,null,null,"0.76C","1.XII","0.76C"]
[null,null,null,null,null,null,null,null,null,"0.76D","10","0.76D"]
[null,null,null,null,null,null,null,null,null,"0.76K","10.I","0.76K"]
[null,null,null,null,null,null,null,null,null,"0.76T","10.II","0.76T"]
[null,null,null,null,null,null,null,null,null,"0.76U","10.III","0.76U"]
[null,null,null,null,null,null,null,null,null,"0.78","10.IV","0.78"]
[null,null,null,null,null,null,null,null,null,"0.78A","10.V","0.78A"]
[null,null,null,null,null,null,null,null,null,"0.78G","10.VIII","0.78G"]
[null,null,null,null,null,null,null,null,null,"0.78K","10.X","0.78K"]
[null,null,null,null,null,null,null,null,null,"0.78X","10.XI","0.78X"]
[null,null,null,null,null,null,null,null,null,"0.79","10.XII","0.79"]
[null,null,null,null,null,null,null,null,null,"0.79A","101","0.79A"]
[null,null,null,null,null,null,null,null,null,"0.79D","1.01.01","0.79D"]
[null,null,null,null,null,null,null,null,null,"0.79E","101.01","0.79E"]
[null,null,null,null,null,null,null,null,null,"0.79F","1.01.02","0.79F"]
[null,null,null,null,null,null,null,null,null,"0.79J","101.02","0.79J"]
[null,null,null,null,null,null,null,null,null,"0.80","1.01.03","0.80"]
[null,null,null,null,null,null,null,null,null,"0.80D","101.03","0.80D"]
[null,null,null,null,null,null,null,null,null,"0.80E","1.01.04","0.80E"]
[null,null,null,null,null,null,null,null,null,"0.80F","1.01.05","0.80F"]
[null,null,null,null,null,null,null,null,null,"0.80H","1.01.06","0.80H"]
[null,null,null,null,null,null,null,null,null,"0.80J","1.01.07","0.80J"]
[null,null,null,null,null,null,null,null,null,"0.80K","1.01.08","0.80K"]
[null,null,null,null,null,null,null,null,null,"0.80Y","1.01.10","0.80Y"]
[null,null,null,null,null,null,null,null,null,"0.80Z","1.01.11","0.80Z"]
[null,null,null,null,null,null,null,null,null,"0.81","1.01.12","0.81"]
[null,null,null,null,null,null,null,null,null,"0.82","1.01.15","0.82"]
[null,null,null,null,null,null,null,null,null,"0.82A","1.01.16","0.82A"]
[null,null,null,null,null,null,null,null,null,"0.82T","1.01.17","0.82T"]
[null,null,null,null,null,null,null,null,null,"0.83","102","0.83"]
[null,null,null,null,null,null,null,null,null,"0.83A","1.02.01","0.83A"]
[null,null,null,null,null,null,null,null,null,"0.83B","102.01","0.83B"]
[null,null,null,null,null,null,null,null,null,"0.83T","1.02.02","0.83T"]
[null,null,null,null,null,null,null,null,null,"0.84","102.02","0.84"]
[null,null,null,null,null,null,null,null,null,"0.84Q","1.02.03","0.84Q"]
[null,null,null,null,null,null,null,null,null,"0.84T","102.03",{"$f":"IF($B$7=\"ETE\",J391,K391)","v":"0.84T"}]
[null,null,null,null,null,null,null,null,null,"0.84V","1.02.06","0.84V"]
[null,null,null,null,null,null,null,null,null,"0.85","1.02.08","0.85"]
[null,null,null,null,null,null,null,null,null,"0.85A","1.02.12","0.85A"]
[null,null,null,null,null,null,null,null,null,"0.85T","1.02.15","0.85T"]
[null,null,null,null,null,null,null,null,null,"0.85V","1.03.01","0.85V"]
[null,null,null,null,null,null,null,null,null,"0.86","1.03.02","0.86"]
[null,null,null,null,null,null,null,null,null,"0.86G","1.03.03","0.86G"]
[null,null,null,null,null,null,null,null,null,"0.86T","1.03.04","0.86T"]
[null,null,null,null,null,null,null,null,null,"0.87","1.03.05","0.87"]
[null,null,null,null,null,null,null,null,null,"0.87A","1.03.06","0.87A"]
[null,null,null,null,null,null,null,null,null,"0.87T","1.03.07","0.87T"]
[null,null,null,null,null,null,null,null,null,"0.87V","1.03.08","0.87V"]
[null,null,null,null,null,null,null,null,null,"0.87W","1.03.10","0.87W"]
[null,null,null,null,null,null,null,null,null,"0.88","1.03.12","0.88"]
[null,null,null,null,null,null,null,null,null,"0.88A","1.03.13","0.88A"]
[null,null,null,null,null,null,null,null,null,"0.88J","1.03.15","0.88J"]
[null,null,null,null,null,null,null,null,null,"0.88K","1.03.17","0.88K"]
[null,null,null,null,null,null,null,null,null,"0.88X","1.04.01","0.88X"]
[null,null,null,null,null,null,null,null,null,"0.89","1.04.02","0.89"]
[null,null,null,null,null,null,null,null,null,"0.89A","1.04.03","0.89A"]
[null,null,null,null,null,null,null,null,null,"0.89G","1.04.05","0.89G"]
[null,null,null,null,null,null,null,null,null,"0.89J","1.04.06","0.89J"]
[null,null,null,null,null,null,null,null,null,"0.89T","1.04.07","0.89T"]
[null,null,null,null,null,null,null,null,null,"0.89V","1.04.08","0.89V"]
[null,null,null,null,null,null,null,null,null,"0.90","1.04.09","0.90"]
[null,null,null,null,null,null,null,null,null,"0.90G","1.04.09.01","0.90G"]
[null,null,null,null,null,null,null,null,null,"0.90J","1.04.09.08","0.90J"]
[null,null,null,null,null,null,null,null,null,"0.91","1.04.10","0.91"]
[null,null,null,null,null,null,null,null,null,"0.92","1.04.10.4","0.92"]
[null,null,null,null,null,null,null,null,null,"0.92A","1.04.11","0.92A"]
[null,null,null,null,null,null,null,null,null,"0.92D","1.04.12","0.92D"]
[null,null,null,null,null,null,null,null,null,"0.92E","1.04.13","0.92E"]
[null,null,null,null,null,null,null,null,null,"0.92Q","1.04.14","0.92Q"]
[null,null,null,null,null,null,null,null,null,"0.92S","1.04.15","0.92S"]
[null,null,null,null,null,null,null,null,null,"0.93","1.04.16","0.93"]
[null,null,null,null,null,null,null,null,null,"0.93A","1.05.01","0.93A"]
[null,null,null,null,null,null,null,null,null,"0.93T","1.05.02","0.93T"]
[null,null,null,null,null,null,null,null,null,"0.94","1.05.03","0.94"]
[null,null,null,null,null,null,null,null,null,"0.94A","1.05.07","0.94A"]
[null,null,null,null,null,null,null,null,null,"0.94T","1.05.08","0.94T"]
[null,null,null,null,null,null,null,null,null,"0.94V","1.05.10","0.94V"]
[null,null,null,null,null,null,null,null,null,"0.95","1.06.01","0.95"]
[null,null,null,null,null,null,null,null,null,"095","1.06.02","095"]
[null,null,null,null,null,null,null,null,null,"0.95A","1.06.03","0.95A"]
[null,null,null,null,null,null,null,null,null,"0.95T","1.06.04","0.95T"]
[null,null,null,null,null,null,null,null,null,"0.96","1.06.05","0.96"]
[null,null,null,null,null,null,null,null,null,"0.96A","1.07.01","0.96A"]
[null,null,null,null,null,null,null,null,null,"0.96T","1.07.02","0.96T"]
[null,null,null,null,null,null,null,null,null,"0.98","1.07.03","0.98"]
[null,null,null,null,null,null,null,null,null,"0.98A","1.07.04","0.98A"]
[null,null,null,null,null,null,null,null,null,"0.98T","1.07.05","0.98T"]
[null,null,null,null,null,null,null,null,null,"1.01","1.07.06","1.01"]
[null,null,null,null,null,null,null,null,null,"1.01C","1.07.08","1.01C"]
[null,null,null,null,null,null,null,null,null,"1.01D","1.07.09","1.01D"]
[null,null,null,null,null,null,null,null,null,"1.01E","1.07.11","1.01E"]
[null,null,null,null,null,null,null,null,null,"1.01F","1.08.02","1.01F"]
[null,null,null,null,null,null,null,null,null,"1.01S","1.08.06","1.01S"]
[null,null,null,null,null,null,null,null,null,"1.01X","1.08.08","1.01X"]
[null,null,null,null,null,null,null,null,null,"102","1.08.10.8","102"]
[null,null,null,null,null,null,null,null,null,"103","1.08.11","103"]
[null,null,null,null,null,null,null,null,null,"1.09","1.08.12","1.09"]
[null,null,null,null,null,null,null,null,null,"1.09A","1.08.650","1.09A"]
[null,null,null,null,null,null,null,null,null,"1.09D","1.08.803.1","1.09D"]
[null,null,null,null,null,null,null,null,null,"1.09E","1.08.803.3",{"$f":"IF($B$7=\"ETE\",J455,K455)","v":"1.09E"}]
[null,null,null,null,null,null,null,null,null,"1.09S","1.09.1.01","1.09S"]
[null,null,null,null,null,null,null,null,null,"1.09X","1.09.1.02","1.09X"]
[null,null,null,null,null,null,null,null,null,"1.105","1.09.1.06","1.105"]
[null,null,null,null,null,null,null,null,null,"1.105A","1.09.1.08","1.105A"]
[null,null,null,null,null,null,null,null,null,"1.105D","1.09.1.10","1.105D"]
[null,null,null,null,null,null,null,null,null,"1.105F","1.09.1.12","1.105F"]
[null,null,null,null,null,null,null,null,null,"1.105M","1.09.1.15","1.105M"]
[null,null,null,null,null,null,null,null,null,"1.105T","1.09.2.01","1.105T"]
[null,null,null,null,null,null,null,null,null,"1.105V","1.09.2.06","1.105V"]
[null,null,null,null,null,null,null,null,null,"1.12","1.09.2.08","1.12"]
[null,null,null,null,null,null,null,null,null,"1.12A","1.09.2.10","1.12A"]
[null,null,null,null,null,null,null,null,null,"1.12T","1.09.3.01","1.12T"]
[null,null,null,null,null,null,null,null,null,"1.12V","1.09.3.02","1.12V"]
[null,null,null,null,null,null,null,null,null,"1.13","1.09.3.06","1.13"]
[null,null,null,null,null,null,null,null,null,"1.13A","1.09.3.08","1.13A"]
[null,null,null,null,null,null,null,null,null,"1.13D","1.09.3.10","1.13D"]
[null,null,null,null,null,null,null,null,null,"1.13T","1.09.4.01","1.13T"]
[null,null,null,null,null,null,null,null,null,"1.13V","1.09.4.06","1.13V"]
[null,null,null,null,null,null,null,null,null,"1.14","1.09.4.08","1.14"]
[null,null,null,null,null,null,null,null,null,"1.14A","1.09.4.10","1.14A"]
[null,null,null,null,null,null,null,null,null,"1.14D","1.09.5.01","1.14D"]
[null,null,null,null,null,null,null,null,null,"1.14R","1.09.5.06","1.14R"]
[null,null,null,null,null,null,null,null,null,"1.14T","1.09.5.08","1.14T"]
[null,null,null,null,null,null,null,null,null,"1.14V","1.09.5.10","1.14V"]
[null,null,null,null,null,null,null,null,null,"1.144","1.09.5.12","1.144"]
[null,null,null,null,null,null,null,null,null,"1.144D","1.09.6.01","1.144D"]
[null,null,null,null,null,null,null,null,null,"1.144T","1.09.6.06","1.144T"]
[null,null,null,null,null,null,null,null,null,"1.145","1.09.6.08","1.145"]
[null,null,null,null,null,null,null,null,null,"1.145D","1.09.6.10","1.145D"]
[null,null,null,null,null,null,null,null,null,"1.145E","1.09.6.12","1.145E"]
[null,null,null,null,null,null,null,null,null,"1.145T","11","1.145T"]
[null,null,null,null,null,null,null,null,null,"1.146","11.II","1.146"]
[null,null,null,null,null,null,null,null,null,"1.147","11.III","1.147"]
[null,null,null,null,null,null,null,null,null,"1.147A","11.IV","1.147A"]
[null,null,null,null,null,null,null,null,null,"1.147B","11.V","1.147B"]
[null,null,null,null,null,null,null,null,null,"1.147D","11.VI","1.147D"]
[null,null,null,null,null,null,null,null,null,"1.15","11.VII","1.15"]
[null,null,null,null,null,null,null,null,null,"1.15A","11.VIII","1.15A"]
[null,null,null,null,null,null,null,null,null,"1.15S","11.X","1.15S"]
[null,null,null,null,null,null,null,null,null,"1.15T","11.XI","1.15T"]
[null,null,null,null,null,null,null,null,null,"1.15V","11.XII","1.15V"]
[null,null,null,null,null,null,null,null,null,"1.16","1.10.01","1.16"]
[null,null,null,null,null,null,null,null,null,"1.16A","1.10.02","1.16A"]
[null,null,null,null,null,null,null,null,null,"1.16S","1.10.03","1.16S"]
[null,null,null,null,null,null,null,null,null,"1.16V","1.10.04","1.16V"]
[null,null,null,null,null,null,null,null,null,"1.16X","1.10.05","1.16X"]
[null,null,null,null,null,null,null,null,null,"1.17","1.10.06","1.17"]
[null,null,null,null,null,null,null,null,null,"1.17A","1.10.08","1.17A"]
[null,null,null,null,null,null,null,null,null,"1.17S","1.10.10","1.17S"]
[null,null,null,null,null,null,null,null,null,"1.17X","1.101.02","1.17X"]
[null,null,null,null,null,null,null,null,null,"1.172","1.101.03","1.172"]
[null,null,null,null,null,null,null,null,null,"1.172A","1.101.04","1.172A"]
[null,null,null,null,null,null,null,null,null,"1.172B","1.101.08","1.172B"]
[null,null,null,null,null,null,null,null,null,"1.172T","1.101.09.09","1.172T"]
[null,null,null,null,null,null,null,null,null,"1.172W","1.10.11","1.172W"]
[null,null,null,null,null,null,null,null,null,"1.20","1.101.12","1.20"]
[null,null,null,null,null,null,null,null,null,"1.20A","1.101.12.01","1.20A"]
[null,null,null,null,null,null,null,null,null,"1.20B","1.10.12","1.20B"]
[null,null,null,null,null,null,null,null,null,"1.20D","1.11.02","1.20D"]
[null,null,null,null,null,null,null,null,null,"1.20E","1.11.03","1.20E"]
[null,null,null,null,null,null,null,null,null,"1.20F","1.11.04","1.20F"]
[null,null,null,null,null,null,null,null,null,"1.20G","1.11.05","1.20G"]
[null,null,null,null,null,null,null,null,null,"1.20J","1.11.06","1.20J"]
[null,null,null,null,null,null,null,null,null,"1.20K","1.11.07",{"$f":"IF($B$7=\"ETE\",J519,K519)","v":"1.20K"}]
[null,null,null,null,null,null,null,null,null,"1.20L","1.11.08","1.20L"]
[null,null,null,null,null,null,null,null,null,"1.20M","1.11.10","1.20M"]
[null,null,null,null,null,null,null,null,null,"1.20N","1.11.11","1.20N"]
[null,null,null,null,null,null,null,null,null,"1.20R","1.11.12","1.20R"]
[null,null,null,null,null,null,null,null,null,"1.20S","1.11.13","1.20S"]
[null,null,null,null,null,null,null,null,null,"1.20T","1.11.15","1.20T"]
[null,null,null,null,null,null,null,null,null,"1.20V","1.11.16","1.20V"]
[null,null,null,null,null,null,null,null,null,"1.20W","1.12.01","1.20W"]
[null,null,null,null,null,null,null,null,null,"1.20X","1.12.02","1.20X"]
[null,null,null,null,null,null,null,null,null,"1.20Z","1.12.03","1.20Z"]
[null,null,null,null,null,null,null,null,null,"1.201","1.12.04","1.201"]
[null,null,null,null,null,null,null,null,null,"1.201A","1.12.05","1.201A"]
[null,null,null,null,null,null,null,null,null,"1.201B","1.12.05.08","1.201B"]
[null,null,null,null,null,null,null,null,null,"1.201C","1.12.08.1","1.201C"]
[null,null,null,null,null,null,null,null,null,"1.201E","1.12.08.3","1.201E"]
[null,null,null,null,null,null,null,null,null,"1.201X","1.12.09.1","1.201X"]
[null,null,null,null,null,null,null,null,null,"1.202","1.12.09.10","1.202"]
[null,null,null,null,null,null,null,null,null,"1.202A","1.12.09.3","1.202A"]
[null,null,null,null,null,null,null,null,null,"1.202B","1.12.10.3","1.202B"]
[null,null,null,null,null,null,null,null,null,"1.203","1.12.12","1.203"]
[null,null,null,null,null,null,null,null,null,"1.203A","1.12.13","1.203A"]
[null,null,null,null,null,null,null,null,null,"1.203B","1.13.01","1.203B"]
[null,null,null,null,null,null,null,null,null,"1.203C","1.13.06","1.203C"]
[null,null,null,null,null,null,null,null,null,"1.203D","1.13.08","1.203D"]
[null,null,null,null,null,null,null,null,null,"1.203E","1.13.10","1.203E"]
[null,null,null,null,null,null,null,null,null,"1.204","1.13.15","1.204"]
[null,null,null,null,null,null,null,null,null,"1.204A","1.14.01","1.204A"]
[null,null,null,null,null,null,null,null,null,"1.204Y","1.14.02","1.204Y"]
[null,null,null,null,null,null,null,null,null,"1.204Z","1.14.06","1.204Z"]
[null,null,null,null,null,null,null,null,null,"1.205A","1.14.08","1.205A"]
[null,null,null,null,null,null,null,null,null,"1.21","1.14.10","1.21"]
[null,null,null,null,null,null,null,null,null,"1.21D","1.14.12","1.21D"]
[null,null,null,null,null,null,null,null,null,"1.21E","1.15.01","1.21E"]
[null,null,null,null,null,null,null,null,null,"1.21F","1.15.02","1.21F"]
[null,null,null,null,null,null,null,null,null,"1.21G","1.16.01","1.21G"]
[null,null,null,null,null,null,null,null,null,"1.21J","1.16.06","1.21J"]
[null,null,null,null,null,null,null,null,null,"1.21K","1.16.08","1.21K"]
[null,null,null,null,null,null,null,null,null,"1.21R","1.16.10","1.21R"]
[null,null,null,null,null,null,null,null,null,"1.21S","1.17.02","1.21S"]
[null,null,null,null,null,null,null,null,null,"1.21W","1.17.03","1.21W"]
[null,null,null,null,null,null,null,null,null,"1.21X","1.17.04","1.21X"]
[null,null,null,null,null,null,null,null,null,"1.22","1.17.06","1.22"]
[null,null,null,null,null,null,null,null,null,"1.22A","1.17.08","1.22A"]
[null,null,null,null,null,null,null,null,null,"1.22D","1.17.10","1.22D"]
[null,null,null,null,null,null,null,null,null,"1.22E","1.17.12","1.22E"]
[null,null,null,null,null,null,null,null,null,"1.22K","1.18.1.01","1.22K"]
[null,null,null,null,null,null,null,null,null,"1.22L","1.18.1.01.08","1.22L"]
[null,null,null,null,null,null,null,null,null,"1.22M","1.18.1.02","1.22M"]
[null,null,null,null,null,null,null,null,null,"1.22R","1.18.1.02.08","1.22R"]
[null,null,null,null,null,null,null,null,null,"1.22S","1.18.1.03","1.22S"]
[null,null,null,null,null,null,null,null,null,"1.22W","1.18.1.03.08","1.22W"]
[null,null,null,null,null,null,null,null,null,"1.22X","1.18.1.10","1.22X"]
[null,null,null,null,null,null,null,null,null,"1.23","1.18.2.01","1.23"]
[null,null,null,null,null,null,null,null,null,"1.23A","1.18.2.08","1.23A"]
[null,null,null,null,null,null,null,null,null,"1.23D","1.18.2.10","1.23D"]
[null,null,null,null,null,null,null,null,null,"1.23S","1.18.3.01","1.23S"]
[null,null,null,null,null,null,null,null,null,"1.23X","1.18.3.08","1.23X"]
[null,null,null,null,null,null,null,null,null,"1.26","1.18.3.10","1.26"]
[null,null,null,null,null,null,null,null,null,"1.26A","1.19.01","1.26A"]
[null,null,null,null,null,null,null,null,null,"1.28","1.19.02","1.28"]
[null,null,null,null,null,null,null,null,null,"1.28A","1.19.03","1.28A"]
[null,null,null,null,null,null,null,null,null,"1.28D","1.19.04","1.28D"]
[null,null,null,null,null,null,null,null,null,"1.28T","1.19.05/A","1.28T"]
[null,null,null,null,null,null,null,null,null,"1.30","1.19.05/B",{"$f":"IF($B$7=\"ETE\",J583,K583)","v":"1.30"}]
[null,null,null,null,null,null,null,null,null,"1.30A","1.19.06","1.30A"]
[null,null,null,null,null,null,null,null,null,"1.30D","1.19.07","1.30D"]
[null,null,null,null,null,null,null,null,null,"1.30E","1.19.07/A","1.30E"]
[null,null,null,null,null,null,null,null,null,"1.30G","1.19.07/B","1.30G"]
[null,null,null,null,null,null,null,null,null,"1.30K","1.19.08","1.30K"]
[null,null,null,null,null,null,null,null,null,"1.30L","1.19.10","1.30L"]
[null,null,null,null,null,null,null,null,null,"1.30S","1.19.11","1.30S"]
[null,null,null,null,null,null,null,null,null,"1.30T","1.19.12","1.30T"]
[null,null,null,null,null,null,null,null,null,"1.30V","1.19.13","1.30V"]
[null,null,null,null,null,null,null,null,null,"1.30X","1.19.14","1.30X"]
[null,null,null,null,null,null,null,null,null,"1.31","1.19.15","1.31"]
[null,null,null,null,null,null,null,null,null,"1.31D","1.19.16","1.31D"]
[null,null,null,null,null,null,null,null,null,"1.31S","1.19.17","1.31S"]
[null,null,null,null,null,null,null,null,null,"1.31T","12","1.31T"]
[null,null,null,null,null,null,null,null,null,"1.31X","1,2.A20","1.31X"]
[null,null,null,null,null,null,null,null,null,"1.32","1,2.A20.01","1.32"]
[null,null,null,null,null,null,null,null,null,"1.32A","1,2.A20.08","1.32A"]
[null,null,null,null,null,null,null,null,null,"1.32D","1,2.A21","1.32D"]
[null,null,null,null,null,null,null,null,null,"1.32E","1,2.A21.01","1.32E"]
[null,null,null,null,null,null,null,null,null,"1.32G","1,2.A21.08","1.32G"]
[null,null,null,null,null,null,null,null,null,"1.32R","1,2.A21.10","1.32R"]
[null,null,null,null,null,null,null,null,null,"1.32T","1,2.B5-1","1.32T"]
[null,null,null,null,null,null,null,null,null,"1.33","1.2.B5-1.00","1.33"]
[null,null,null,null,null,null,null,null,null,"1.33R","1,2.B5-1.01","1.33R"]
[null,null,null,null,null,null,null,null,null,"1.33S","1.2.B5-1.01","1.33S"]
[null,null,null,null,null,null,null,null,null,"1.33X","1.2.B5-1.03","1.33X"]
[null,null,null,null,null,null,null,null,null,"1.34","1.2.B5-1.06","1.34"]
[null,null,null,null,null,null,null,null,null,"1.34A","1,2.B5-1.08","1.34A"]
[null,null,null,null,null,null,null,null,null,"1.34R","1.2.B5-1.08","1.34R"]
[null,null,null,null,null,null,null,null,null,"1.34S","1.2.B5-1.09","1.34S"]
[null,null,null,null,null,null,null,null,null,"1.34T","1,2.B5-1.10","1.34T"]
[null,null,null,null,null,null,null,null,null,"1.35","1.2.B5-1.10","1.35"]
[null,null,null,null,null,null,null,null,null,"1.35A","12.I","1.35A"]
[null,null,null,null,null,null,null,null,null,"1.35D","12.II","1.35D"]
[null,null,null,null,null,null,null,null,null,"1.35E","12.III","1.35E"]
[null,null,null,null,null,null,null,null,null,"1.35F","12.IV","1.35F"]
[null,null,null,null,null,null,null,null,null,"1.35G","1.2M.02","1.35G"]
[null,null,null,null,null,null,null,null,null,"1.35J","1.2M.04","1.35J"]
[null,null,null,null,null,null,null,null,null,"1.35K","1.2M.08","1.35K"]
[null,null,null,null,null,null,null,null,null,"1.35M","1.2M.09.09","1.35M"]
[null,null,null,null,null,null,null,null,null,"1.35N","1.2M.12","1.35N"]
[null,null,null,null,null,null,null,null,null,"1.35R","1.2M.12.01","1.35R"]
[null,null,null,null,null,null,null,null,null,"1.35T","12.V","1.35T"]
[null,null,null,null,null,null,null,null,null,"1.35X","12.XII","1.35X"]
[null,null,null,null,null,null,null,null,null,"1.35Z","1.20.01","1.35Z"]
[null,null,null,null,null,null,null,null,null,"1.36","1.20.02","1.36"]
[null,null,null,null,null,null,null,null,null,"1.36A","1.20.03.01","1.36A"]
[null,null,null,null,null,null,null,null,null,"1.36D","1.20.03.08","1.36D"]
[null,null,null,null,null,null,null,null,null,"1.37","1.20.03.10","1.37"]
[null,null,null,null,null,null,null,null,null,"1.37A","1.20.06","1.37A"]
[null,null,null,null,null,null,null,null,null,"1.37B","1.20.08.1","1.37B"]
[null,null,null,null,null,null,null,null,null,"1.37D","1.20.08.2","1.37D"]
[null,null,null,null,null,null,null,null,null,"1.37T","1.20.09","1.37T"]
[null,null,null,null,null,null,null,null,null,"1.39","1.20.10.1","1.39"]
[null,null,null,null,null,null,null,null,null,"1.40","1.20.10.2","1.40"]
[null,null,null,null,null,null,null,null,null,"1.40A","1.21.01","1.40A"]
[null,null,null,null,null,null,null,null,null,"1.40D","12.10.2003","1.40D"]
[null,null,null,null,null,null,null,null,null,"1.40E","1.21.06","1.40E"]
[null,null,null,null,null,null,null,null,null,"1.40F","1.21.08","1.40F"]
[null,null,null,null,null,null,null,null,null,"1.40G","1.21.10","1.40G"]
[null,null,null,null,null,null,null,null,null,"1.40J","1.22.01","1.40J"]
[null,null,null,null,null,null,null,null,null,"1.40L","1.22.08","1.40L"]
[null,null,null,null,null,null,null,null,null,"1.40V","1.22.09","1.40V"]
[null,null,null,null,null,null,null,null,null,"1.40W","1.22.10",{"$f":"IF($B$7=\"ETE\",J647,K647)","v":"1.40W"}]
[null,null,null,null,null,null,null,null,null,"1.41","1.23.01","1.41"]
[null,null,null,null,null,null,null,null,null,"1.41D","1.23.06","1.41D"]
[null,null,null,null,null,null,null,null,null,"1.41F","1.23.08","1.41F"]
[null,null,null,null,null,null,null,null,null,"1.41G","1.23.10","1.41G"]
[null,null,null,null,null,null,null,null,null,"1.41L","1.24.01","1.41L"]
[null,null,null,null,null,null,null,null,null,"1.41T","1.24.08","1.41T"]
[null,null,null,null,null,null,null,null,null,"1.41V","1.24.10","1.41V"]
[null,null,null,null,null,null,null,null,null,"1.43","1.25.01","1.43"]
[null,null,null,null,null,null,null,null,null,"1.43A","1.25.02","1.43A"]
[null,null,null,null,null,null,null,null,null,"1.43X","1.25.03","1.43X"]
[null,null,null,null,null,null,null,null,null,"1.43Y","1.25.05","1.43Y"]
[null,null,null,null,null,null,null,null,null,"1.44","1.25.06","1.44"]
[null,null,null,null,null,null,null,null,null,"1.44B","1.25.08","1.44B"]
[null,null,null,null,null,null,null,null,null,"1.44Q","1.25.16","1.44Q"]
[null,null,null,null,null,null,null,null,null,"1.44S","1.25.17","1.44S"]
[null,null,null,null,null,null,null,null,null,"1.44T","1.25.18","1.44T"]
[null,null,null,null,null,null,null,null,null,"1.44V","1.25.19","1.44V"]
[null,null,null,null,null,null,null,null,null,"1.51","1.26.1.01","1.51"]
[null,null,null,null,null,null,null,null,null,"1.51A","1.26.1.06","1.51A"]
[null,null,null,null,null,null,null,null,null,"1.51D","1.26.1.07","1.51D"]
[null,null,null,null,null,null,null,null,null,"1.51E","1.26.1.08.1","1.51E"]
[null,null,null,null,null,null,null,null,null,"1.51F","1.26.1.08.2","1.51F"]
[null,null,null,null,null,null,null,null,null,"1.51H","1.26.1.09","1.51H"]
[null,null,null,null,null,null,null,null,null,"1.51M","1.26.1.10","1.51M"]
[null,null,null,null,null,null,null,null,null,"1.51R","1.26.2.01","1.51R"]
[null,null,null,null,null,null,null,null,null,"1.51S","1.26.2.08","1.51S"]
[null,null,null,null,null,null,null,null,null,"1.51V","1.26.2.09","1.51V"]
[null,null,null,null,null,null,null,null,null,"1.51W","1.26.3.01","1.51W"]
[null,null,null,null,null,null,null,null,null,"1.51X","1.26.3.08","1.51X"]
[null,null,null,null,null,null,null,null,null,"1.57","1.26.4.01","1.57"]
[null,null,null,null,null,null,null,null,null,"1.57A","1.26.4.08","1.57A"]
[null,null,null,null,null,null,null,null,null,"1.57R","1.26.5.01","1.57R"]
[null,null,null,null,null,null,null,null,null,"1.57T","1.26.5.07","1.57T"]
[null,null,null,null,null,null,null,null,null,"1.57V","1.26.5.08","1.57V"]
[null,null,null,null,null,null,null,null,null,"1.58","1.26.6.01","1.58"]
[null,null,null,null,null,null,null,null,null,"1.58A","1.26.6.07","1.58A"]
[null,null,null,null,null,null,null,null,null,"1.58E","1.26.6.08","1.58E"]
[null,null,null,null,null,null,null,null,null,"1.58G","1.27.1.01","1.58G"]
[null,null,null,null,null,null,null,null,null,"1.58GO","1.27.2.01","1.58GO"]
[null,null,null,null,null,null,null,null,null,"1.58H","1.27.2.08","1.58H"]
[null,null,null,null,null,null,null,null,null,"1.58K","1.28.01","1.58K"]
[null,null,null,null,null,null,null,null,null,"1.58W","1.28.02","1.58W"]
[null,null,null,null,null,null,null,null,null,"1.58X","1.28.08.1","1.58X"]
[null,null,null,null,null,null,null,null,null,"1.59","1.28.08.3","1.59"]
[null,null,null,null,null,null,null,null,null,"1.59A","12.8.2003","1.59A"]
[null,null,null,null,null,null,null,null,null,"1.59B","1.29.01","1.59B"]
[null,null,null,null,null,null,null,null,null,"1.59T","1.29.02","1.59T"]
[null,null,null,null,null,null,null,null,null,"1.59V","1.29.08","1.59V"]
[null,null,null,null,null,null,null,null,null,"1.62","1.29.10","1.62"]
[null,null,null,null,null,null,null,null,null,"1.62D","12.9.2001","1.62D"]
[null,null,null,null,null,null,null,null,null,"1.62G","12.9.2003","1.62G"]
[null,null,null,null,null,null,null,null,null,"1.63","12.9.2010","1.63"]
[null,null,null,null,null,null,null,null,null,"1.63E","13","1.63E"]
[null,null,null,null,null,null,null,null,null,"1.63F","13.I","1.63F"]
[null,null,null,null,null,null,null,null,null,"1.69","13.VIII","1.69"]
[null,null,null,null,null,null,null,null,null,"1.69A","13.X","1.69A"]
[null,null,null,null,null,null,null,null,null,"1.79","1.30.01","1.79"]
[null,null,null,null,null,null,null,null,null,"1.79A","1.30.02","1.79A"]
[null,null,null,null,null,null,null,null,null,"1.80","1.30.03","1.80"]
[null,null,null,null,null,null,null,null,null,"1.80A","1.30.04","1.80A"]
[null,null,null,null,null,null,null,null,null,"1.80D","1.30.05","1.80D"]
[null,null,null,null,null,null,null,null,null,"1.80N","1.30.06","1.80N"]
[null,null,null,null,null,null,null,null,null,"1.80Q","1.30.08","1.80Q"]
[null,null,null,null,null,null,null,null,null,"1.80S","1.30.08.05",{"$f":"IF($B$7=\"ETE\",J711,K711)","v":"1.80S"}]
[null,null,null,null,null,null,null,null,null,"1.80T","1.30.08.06","1.80T"]
[null,null,null,null,null,null,null,null,null,"1.80U","1.30.10.05","1.80U"]
[null,null,null,null,null,null,null,null,null,"1.80V","1.30.10.06","1.80V"]
[null,null,null,null,null,null,null,null,null,"1.80W","1.30.10.1","1.80W"]
[null,null,null,null,null,null,null,null,null,"1.80Y","1.30.10.3","1.80Y"]
[null,null,null,null,null,null,null,null,null,"1.80Z","1.31.01","1.80Z"]
[null,null,null,null,null,null,null,null,null,"2.01","1.31.08","2.01"]
[null,null,null,null,null,null,null,null,null,"2.01D","1.31.10","2.01D"]
[null,null,null,null,null,null,null,null,null,"2.01E","13.15","2.01E"]
[null,null,null,null,null,null,null,null,null,"2.01F","1.32.XX","2.01F"]
[null,null,null,null,null,null,null,null,null,"2.01S","1.33.XX","2.01S"]
[null,null,null,null,null,null,null,null,null,"2.01X","1.34.01","2.01X"]
[null,null,null,null,null,null,null,null,null,"2.09","1.34.08","2.09"]
[null,null,null,null,null,null,null,null,null,"2.09A","1.35.01","2.09A"]
[null,null,null,null,null,null,null,null,null,"2.09D","1.35.08","2.09D"]
[null,null,null,null,null,null,null,null,null,"2.09E","1.35.10","2.09E"]
[null,null,null,null,null,null,null,null,null,"2.09S","1.36.01","2.09S"]
[null,null,null,null,null,null,null,null,null,"2.09X","1.36.02","2.09X"]
[null,null,null,null,null,null,null,null,null,"2.13","1.36.02.10","2.13"]
[null,null,null,null,null,null,null,null,null,"2.13A","1.36.08.1","2.13A"]
[null,null,null,null,null,null,null,null,null,"2.13D","1.36.08.2","2.13D"]
[null,null,null,null,null,null,null,null,null,"2.13T","1.37.01","2.13T"]
[null,null,null,null,null,null,null,null,null,"2.13V","1.37.02","2.13V"]
[null,null,null,null,null,null,null,null,null,"2.144","1.37.08","2.144"]
[null,null,null,null,null,null,null,null,null,"2.144D","1.38.01","2.144D"]
[null,null,null,null,null,null,null,null,null,"2.144T","1.38.03","2.144T"]
[null,null,null,null,null,null,null,null,null,"2.145","1.38.06","2.145"]
[null,null,null,null,null,null,null,null,null,"2.145D","1.38.08","2.145D"]
[null,null,null,null,null,null,null,null,null,"2.145T","1.38.10","2.145T"]
[null,null,null,null,null,null,null,null,null,"2.146","1.38.12","2.146"]
[null,null,null,null,null,null,null,null,null,"2.147","1.38.15","2.147"]
[null,null,null,null,null,null,null,null,null,"2.147A","1.39.01","2.147A"]
[null,null,null,null,null,null,null,null,null,"2.147B","1.39.08","2.147B"]
[null,null,null,null,null,null,null,null,null,"2.147D","1.39.10","2.147D"]
[null,null,null,null,null,null,null,null,null,"2.15","14","2.15"]
[null,null,null,null,null,null,null,null,null,"2.15A","14.I","2.15A"]
[null,null,null,null,null,null,null,null,null,"2.15S","14.II","2.15S"]
[null,null,null,null,null,null,null,null,null,"2.15T","14.VI","2.15T"]
[null,null,null,null,null,null,null,null,null,"2.15V","14.VIII","2.15V"]
[null,null,null,null,null,null,null,null,null,"2.16","14.X","2.16"]
[null,null,null,null,null,null,null,null,null,"2.16A","14.XII","2.16A"]
[null,null,null,null,null,null,null,null,null,"2.16S","1.40.01","2.16S"]
[null,null,null,null,null,null,null,null,null,"2.16V","1.40.08","2.16V"]
[null,null,null,null,null,null,null,null,null,"2.16X","1.40.10","2.16X"]
[null,null,null,null,null,null,null,null,null,"2.17","1.41.01","2.17"]
[null,null,null,null,null,null,null,null,null,"2.17A","1.41.06","2.17A"]
[null,null,null,null,null,null,null,null,null,"2.17S","1.41.07","2.17S"]
[null,null,null,null,null,null,null,null,null,"2.17X","1.41.07A","2.17X"]
[null,null,null,null,null,null,null,null,null,"2.172","1.41.07B","2.172"]
[null,null,null,null,null,null,null,null,null,"2.172A","1.41.08","2.172A"]
[null,null,null,null,null,null,null,null,null,"2.172B","1.41.10","2.172B"]
[null,null,null,null,null,null,null,null,null,"2.172T","1.41.10A","2.172T"]
[null,null,null,null,null,null,null,null,null,"2.172W","1.41.10B","2.172W"]
[null,null,null,null,null,null,null,null,null,"2.20","1.42.01","2.20"]
[null,null,null,null,null,null,null,null,null,"2.20A","1.42.07","2.20A"]
[null,null,null,null,null,null,null,null,null,"2.20B","1.42.08","2.20B"]
[null,null,null,null,null,null,null,null,null,"2.20D","1.42.10","2.20D"]
[null,null,null,null,null,null,null,null,null,"2.20E","1.45.01","2.20E"]
[null,null,null,null,null,null,null,null,null,"2.20F","1.45.02","2.20F"]
[null,null,null,null,null,null,null,null,null,"2.20G","1.45.03","2.20G"]
[null,null,null,null,null,null,null,null,null,"2.20J","1.45.04","2.20J"]
[null,null,null,null,null,null,null,null,null,"2.20K","1.45.05","2.20K"]
[null,null,null,null,null,null,null,null,null,"2.20L","1.45.06","2.20L"]
[null,null,null,null,null,null,null,null,null,"2.20M","1.45.07",{"$f":"IF($B$7=\"ETE\",J775,K775)","v":"2.20M"}]
[null,null,null,null,null,null,null,null,null,"2.20N","1.45.08","2.20N"]
[null,null,null,null,null,null,null,null,null,"2.20R","1.45.09","2.20R"]
[null,null,null,null,null,null,null,null,null,"2.20S","1.45.10","2.20S"]
[null,null,null,null,null,null,null,null,null,"2.20T","1.45.11","2.20T"]
[null,null,null,null,null,null,null,null,null,"2.20V","1.46.01","2.20V"]
[null,null,null,null,null,null,null,null,null,"2.20W","1.46.08","2.20W"]
[null,null,null,null,null,null,null,null,null,"2.20X","1.46.10","2.20X"]
[null,null,null,null,null,null,null,null,null,"2.20Z","1.47.01","2.20Z"]
[null,null,null,null,null,null,null,null,null,"2.201","1.47.02","2.201"]
[null,null,null,null,null,null,null,null,null,"2.201A","1.47.06","2.201A"]
[null,null,null,null,null,null,null,null,null,"2.201B","1.47.08","2.201B"]
[null,null,null,null,null,null,null,null,null,"2.201C","1.47.10","2.201C"]
[null,null,null,null,null,null,null,null,null,"2.201E","1.47.12","2.201E"]
[null,null,null,null,null,null,null,null,null,"2.201X","1.48.01","2.201X"]
[null,null,null,null,null,null,null,null,null,"2.202","1.48.02","2.202"]
[null,null,null,null,null,null,null,null,null,"2.202A","1.48.03","2.202A"]
[null,null,null,null,null,null,null,null,null,"2.202B","1.48.04","2.202B"]
[null,null,null,null,null,null,null,null,null,"2.203","1.48.05","2.203"]
[null,null,null,null,null,null,null,null,null,"2.203A","1.48.06","2.203A"]
[null,null,null,null,null,null,null,null,null,"2.203B","1.48.07","2.203B"]
[null,null,null,null,null,null,null,null,null,"2.203C","1.48.08.1","2.203C"]
[null,null,null,null,null,null,null,null,null,"2.203D","1.48.08.2","2.203D"]
[null,null,null,null,null,null,null,null,null,"2.203E","1.48.09.1","2.203E"]
[null,null,null,null,null,null,null,null,null,"2.204","1.48.09.2","2.204"]
[null,null,null,null,null,null,null,null,null,"2.204A","1.48.10","2.204A"]
[null,null,null,null,null,null,null,null,null,"2.204Y","1.48.11","2.204Y"]
[null,null,null,null,null,null,null,null,null,"2.204Z","1.48.12","2.204Z"]
[null,null,null,null,null,null,null,null,null,"2.205A","1.48.15","2.205A"]
[null,null,null,null,null,null,null,null,null,"2.21","1.48.16","2.21"]
[null,null,null,null,null,null,null,null,null,"2.21D","1.48.17","2.21D"]
[null,null,null,null,null,null,null,null,null,"2.21E","1.48.18","2.21E"]
[null,null,null,null,null,null,null,null,null,"2.21F","1.48.19","2.21F"]
[null,null,null,null,null,null,null,null,null,"2.21G","1.48.20","2.21G"]
[null,null,null,null,null,null,null,null,null,"2.21J","15","2.21J"]
[null,null,null,null,null,null,null,null,null,"2.21K","16","2.21K"]
[null,null,null,null,null,null,null,null,null,"2.21R","16.I","2.21R"]
[null,null,null,null,null,null,null,null,null,"2.21S","16.VI","2.21S"]
[null,null,null,null,null,null,null,null,null,"2.21W","16.VIII","2.21W"]
[null,null,null,null,null,null,null,null,null,"2.21X","16.X","2.21X"]
[null,null,null,null,null,null,null,null,null,"2.22","17","2.22"]
[null,null,null,null,null,null,null,null,null,"2.22A","17.II","2.22A"]
[null,null,null,null,null,null,null,null,null,"2.22D","17.III","2.22D"]
[null,null,null,null,null,null,null,null,null,"2.22E","17.IV","2.22E"]
[null,null,null,null,null,null,null,null,null,"2.22K","17.VI","2.22K"]
[null,null,null,null,null,null,null,null,null,"2.22L","17.VIII","2.22L"]
[null,null,null,null,null,null,null,null,null,"2.22M","17.X","2.22M"]
[null,null,null,null,null,null,null,null,null,"2.22R","17.XII","2.22R"]
[null,null,null,null,null,null,null,null,null,"2.22S","1.77.08","2.22S"]
[null,null,null,null,null,null,null,null,null,"2.22W","1.77.08.2","2.22W"]
[null,null,null,null,null,null,null,null,null,"2.22X","18.I","2.22X"]
[null,null,null,null,null,null,null,null,null,"2.23","18.II","2.23"]
[null,null,null,null,null,null,null,null,null,"2.23A","18.III","2.23A"]
[null,null,null,null,null,null,null,null,null,"2.23D","1.80.01","2.23D"]
[null,null,null,null,null,null,null,null,null,"2.23S","1.80.01.2","2.23S"]
[null,null,null,null,null,null,null,null,null,"2.23X","1.80.01.3","2.23X"]
[null,null,null,null,null,null,null,null,null,"2.26","1.80.01.4","2.26"]
[null,null,null,null,null,null,null,null,null,"2.26A","1.80.01.5","2.26A"]
[null,null,null,null,null,null,null,null,null,"2.27B","1.80.03","2.27B"]
[null,null,null,null,null,null,null,null,null,"2.28","1.80.04","2.28"]
[null,null,null,null,null,null,null,null,null,"2.28A","1.80.08","2.28A"]
[null,null,null,null,null,null,null,null,null,"2.28D","1.80.09","2.28D"]
[null,null,null,null,null,null,null,null,null,"2.28T","1.81.01","2.28T"]
[null,null,null,null,null,null,null,null,null,"2.30","18.1.01.08","2.30"]
[null,null,null,null,null,null,null,null,null,"2.30A","18.1.01.10",{"$f":"IF($B$7=\"ETE\",J839,K839)","v":"2.30A"}]
[null,null,null,null,null,null,null,null,null,"2.30D","1.81.02","2.30D"]
[null,null,null,null,null,null,null,null,null,"2.30E","18.1.02.08","2.30E"]
[null,null,null,null,null,null,null,null,null,"2.30G","18.1.03.08","2.30G"]
[null,null,null,null,null,null,null,null,null,"2.30K","1.81.09","2.30K"]
[null,null,null,null,null,null,null,null,null,"2.30L","18.1.2001","2.30L"]
[null,null,null,null,null,null,null,null,null,"2.30S","18.1.2002","2.30S"]
[null,null,null,null,null,null,null,null,null,"2.30T","18.1.2003","2.30T"]
[null,null,null,null,null,null,null,null,null,"2.30V","18.1.2010","2.30V"]
[null,null,null,null,null,null,null,null,null,"2.30X","1.82.02","2.30X"]
[null,null,null,null,null,null,null,null,null,"2.31","1.82.08","2.31"]
[null,null,null,null,null,null,null,null,null,"2.31D","18.2.2001","2.31D"]
[null,null,null,null,null,null,null,null,null,"2.31S","18.2.2008","2.31S"]
[null,null,null,null,null,null,null,null,null,"2.31T","18.2.2010","2.31T"]
[null,null,null,null,null,null,null,null,null,"2.31X","1.83.01","2.31X"]
[null,null,null,null,null,null,null,null,null,"2.32","1.83.01Z","2.32"]
[null,null,null,null,null,null,null,null,null,"2.32A","1.83.02","2.32A"]
[null,null,null,null,null,null,null,null,null,"2.32D","1.83.02Z","2.32D"]
[null,null,null,null,null,null,null,null,null,"2.32E","1.83.03","2.32E"]
[null,null,null,null,null,null,null,null,null,"2.32G","1.83.03Z","2.32G"]
[null,null,null,null,null,null,null,null,null,"2.32R","1.83.04Z","2.32R"]
[null,null,null,null,null,null,null,null,null,"2.32T","1.83.05","2.32T"]
[null,null,null,null,null,null,null,null,null,"2.33","1.83.05Z","2.33"]
[null,null,null,null,null,null,null,null,null,"2.33R","1.83.06","2.33R"]
[null,null,null,null,null,null,null,null,null,"2.33S","1.83.06Z","2.33S"]
[null,null,null,null,null,null,null,null,null,"2.33X","1.83.07Z","2.33X"]
[null,null,null,null,null,null,null,null,null,"2.34","1.83.08","2.34"]
[null,null,null,null,null,null,null,null,null,"2.34A","1.83.08Z","2.34A"]
[null,null,null,null,null,null,null,null,null,"2.34R","1.83.10","2.34R"]
[null,null,null,null,null,null,null,null,null,"2.34S","1.83.11","2.34S"]
[null,null,null,null,null,null,null,null,null,"2.34T","1.83.12","2.34T"]
[null,null,null,null,null,null,null,null,null,"2.35","1.83.15","2.35"]
[null,null,null,null,null,null,null,null,null,"2.35A","1.83.18","2.35A"]
[null,null,null,null,null,null,null,null,null,"2.35D","18.3.2001","2.35D"]
[null,null,null,null,null,null,null,null,null,"2.35E","18.3.2008","2.35E"]
[null,null,null,null,null,null,null,null,null,"2.35F","18.3.2010","2.35F"]
[null,null,null,null,null,null,null,null,null,"2.35G","1.83.34","2.35G"]
[null,null,null,null,null,null,null,null,null,"2.35J","1.83.35","2.35J"]
[null,null,null,null,null,null,null,null,null,"2.35K","1.83.36","2.35K"]
[null,null,null,null,null,null,null,null,null,"2.35M","1.83.38","2.35M"]
[null,null,null,null,null,null,null,null,null,"2.35N","1.83.39","2.35N"]
[null,null,null,null,null,null,null,null,null,"2.35R","1.83.40","2.35R"]
[null,null,null,null,null,null,null,null,null,"2.35T","1.83.41","2.35T"]
[null,null,null,null,null,null,null,null,null,"2.35X","1.83.42","2.35X"]
[null,null,null,null,null,null,null,null,null,"2.36","1.83.43","2.36"]
[null,null,null,null,null,null,null,null,null,"2.36A","1.83.44","2.36A"]
[null,null,null,null,null,null,null,null,null,"2.36D","1.83.45","2.36D"]
[null,null,null,null,null,null,null,null,null,"2.37","1.83.46","2.37"]
[null,null,null,null,null,null,null,null,null,"2.37A","1.83.47","2.37A"]
[null,null,null,null,null,null,null,null,null,"2.37B","1.83.48","2.37B"]
[null,null,null,null,null,null,null,null,null,"2.37D","1.84.01","2.37D"]
[null,null,null,null,null,null,null,null,null,"2.37T","1.84.02","2.37T"]
[null,null,null,null,null,null,null,null,null,"2.39","1.84.03","2.39"]
[null,null,null,null,null,null,null,null,null,"2.40","1.84.04","2.40"]
[null,null,null,null,null,null,null,null,null,"2.40A","1.85.01","2.40A"]
[null,null,null,null,null,null,null,null,null,"2.40D","1.85.01M","2.40D"]
[null,null,null,null,null,null,null,null,null,"2.40E","1.85.01.2M","2.40E"]
[null,null,null,null,null,null,null,null,null,"2.40F","1.85.02","2.40F"]
[null,null,null,null,null,null,null,null,null,"2.40G","1.85.02M","2.40G"]
[null,null,null,null,null,null,null,null,null,"2.40J","1.85.03","2.40J"]
[null,null,null,null,null,null,null,null,null,"2.40L","1.85.03M","2.40L"]
[null,null,null,null,null,null,null,null,null,"2.40V","1.85.03.2M","2.40V"]
[null,null,null,null,null,null,null,null,null,"2.40W","1.85.04","2.40W"]
[null,null,null,null,null,null,null,null,null,"2.41","1.85.04M","2.41"]
[null,null,null,null,null,null,null,null,null,"2.41D","1.85.04.2M",{"$f":"IF($B$7=\"ETE\",J903,K903)","v":"2.41D"}]
[null,null,null,null,null,null,null,null,null,"2.41F","1.85.05","2.41F"]
[null,null,null,null,null,null,null,null,null,"2.41G","1.85.05M","2.41G"]
[null,null,null,null,null,null,null,null,null,"2.41H","1.85.05.2M","2.41H"]
[null,null,null,null,null,null,null,null,null,"2.41L","1.85.06M","2.41L"]
[null,null,null,null,null,null,null,null,null,"2.41T","1.85.07M","2.41T"]
[null,null,null,null,null,null,null,null,null,"2.41V","1.85.07.2M","2.41V"]
[null,null,null,null,null,null,null,null,null,"2.41X","1.85.08M","2.41X"]
[null,null,null,null,null,null,null,null,null,"2.43","1.85.08.2M","2.43"]
[null,null,null,null,null,null,null,null,null,"2.43A","1.87.10","2.43A"]
[null,null,null,null,null,null,null,null,null,"2.43X","1.89.01","2.43X"]
[null,null,null,null,null,null,null,null,null,"2.43Y","1.89.02","2.43Y"]
[null,null,null,null,null,null,null,null,null,"2.44","1.89.03","2.44"]
[null,null,null,null,null,null,null,null,null,"2.44B","1.89.04","2.44B"]
[null,null,null,null,null,null,null,null,null,"2.44Q","1.89.06","2.44Q"]
[null,null,null,null,null,null,null,null,null,"2.44S","1.89.08","2.44S"]
[null,null,null,null,null,null,null,null,null,"2.44T","1.89.09","2.44T"]
[null,null,null,null,null,null,null,null,null,"2.44V","1.89.09.01","2.44V"]
[null,null,null,null,null,null,null,null,null,"2.51","1.89.09.02","2.51"]
[null,null,null,null,null,null,null,null,null,"2.51A","1.89.09.08","2.51A"]
[null,null,null,null,null,null,null,null,null,"2.51D","1.89.09.10","2.51D"]
[null,null,null,null,null,null,null,null,null,"2.51E","1.89.10","2.51E"]
[null,null,null,null,null,null,null,null,null,"2.51F","1.89.11","2.51F"]
[null,null,null,null,null,null,null,null,null,"2.51H","1.89.12.08","2.51H"]
[null,null,null,null,null,null,null,null,null,"2.51M","1.89.12.10","2.51M"]
[null,null,null,null,null,null,null,null,null,"2.51R","1.89.13","2.51R"]
[null,null,null,null,null,null,null,null,null,"2.51S","19","2.51S"]
[null,null,null,null,null,null,null,null,null,"2.51V","19.I","2.51V"]
[null,null,null,null,null,null,null,null,null,"2.51W","19.II","2.51W"]
[null,null,null,null,null,null,null,null,null,"2.51X","19.III","2.51X"]
[null,null,null,null,null,null,null,null,null,"2.57","19.IV","2.57"]
[null,null,null,null,null,null,null,null,null,"2.57A","19.VI","2.57A"]
[null,null,null,null,null,null,null,null,null,"2.57R","19.VII","2.57R"]
[null,null,null,null,null,null,null,null,null,"2.57T","19.VIII","2.57T"]
[null,null,null,null,null,null,null,null,null,"2.57V","19.X","2.57V"]
[null,null,null,null,null,null,null,null,null,"2.58","19.XI","2.58"]
[null,null,null,null,null,null,null,null,null,"2.58A","19.XII","2.58A"]
[null,null,null,null,null,null,null,null,null,"2.58E","1.90.01","2.58E"]
[null,null,null,null,null,null,null,null,null,"2.58G","1.90.08","2.58G"]
[null,null,null,null,null,null,null,null,null,"2.58GO","1.90.10","2.58GO"]
[null,null,null,null,null,null,null,null,null,"2.58H","19.05A,B","2.58H"]
[null,null,null,null,null,null,null,null,null,"2.58K","19.07A","2.58K"]
[null,null,null,null,null,null,null,null,null,"2.58W","19.07B","2.58W"]
[null,null,null,null,null,null,null,null,null,"2.58X","19.13","2.58X"]
[null,null,null,null,null,null,null,null,null,"2.59","19.14","2.59"]
[null,null,null,null,null,null,null,null,null,"2.59A","19.15","2.59A"]
[null,null,null,null,null,null,null,null,null,"2.59B","19.16","2.59B"]
[null,null,null,null,null,null,null,null,null,"2.59T","19.17","2.59T"]
[null,null,null,null,null,null,null,null,null,"2.59V","1.95.00","2.59V"]
[null,null,null,null,null,null,null,null,null,"2.62","2","2.62"]
[null,null,null,null,null,null,null,null,null,"2.62D","2.A1","2.62D"]
[null,null,null,null,null,null,null,null,null,"2.62G","2.A10","2.62G"]
[null,null,null,null,null,null,null,null,null,"2.63","2.A10.01","2.63"]
[null,null,null,null,null,null,null,null,null,"2.63E","2.A10.08","2.63E"]
[null,null,null,null,null,null,null,null,null,"2.63F","2.A10.08.01","2.63F"]
[null,null,null,null,null,null,null,null,null,"2.69","2.A1.01","2.69"]
[null,null,null,null,null,null,null,null,null,"2.69A","2.A10.10","2.69A"]
[null,null,null,null,null,null,null,null,null,"2.80","2.A10.10.01","2.80"]
[null,null,null,null,null,null,null,null,null,"2.80A","2.A10-2","2.80A"]
[null,null,null,null,null,null,null,null,null,"2.80D","2.A10-2.01","2.80D"]
[null,null,null,null,null,null,null,null,null,"2.80H","2.A10-2.02","2.80H"]
[null,null,null,null,null,null,null,null,null,"2.80N","2.A1.08","2.80N"]
[null,null,null,null,null,null,null,null,null,"2.80Q","2.A1.10","2.80Q"]
[null,null,null,null,null,null,null,null,null,"2.80S","2.A12A","2.80S"]
[null,null,null,null,null,null,null,null,null,"2.80T","2.A12A.08",{"$f":"IF($B$7=\"ETE\",J967,K967)","v":"2.80T"}]
[null,null,null,null,null,null,null,null,null,"2.80U","2.A12A.10","2.80U"]
[null,null,null,null,null,null,null,null,null,"2.80V","2.A12B","2.80V"]
[null,null,null,null,null,null,null,null,null,"2.80W","2.A12B.01","2.80W"]
[null,null,null,null,null,null,null,null,null,"2.80Y","2.A16-1","2.80Y"]
[null,null,null,null,null,null,null,null,null,"2.80Z","2.A16-1.01","2.80Z"]
[null,null,null,null,null,null,null,null,null,"5.165","2.A16-1.08","5.165"]
[null,null,null,null,null,null,null,null,null,"5.79","2.A16-2","5.79"]
[null,null,null,null,null,null,null,null,null,"7.44","2.A16-2.01","7.44"]
[null,null,null,null,null,null,null,null,null,"7.44A","2.A21.01","7.44A"]
[null,null,null,null,null,null,null,null,null,"7.44Q","2.A21.08","7.44Q"]
[null,null,null,null,null,null,null,null,null,"7.44T","2.A21.10","7.44T"]
[null,null,null,null,null,null,null,null,null,"7.44V","2.A23A","7.44V"]
[null,null,null,null,null,null,null,null,null,"8.44","2.A23A.05","8.44"]
[null,null,null,null,null,null,null,null,null,"8.44A","2.A23A.08","8.44A"]
[null,null,null,null,null,null,null,null,null,"8.44Q","2.A23A.10","8.44Q"]
[null,null,null,null,null,null,null,null,null,"8.44T","2.A23B","8.44T"]
[null,null,null,null,null,null,null,null,null,"8.44V","2.A23B.01","8.44V"]
[null,null,null,null,null,null,null,null,null,"8.47T","2.A23B.08","8.47T"]
[null,null,null,null,null,null,null,null,null,"9.01","2.A23B.10","9.01"]
[null,null,null,null,null,null,null,null,null,"9.01A","2.A23C","9.01A"]
[null,null,null,null,null,null,null,null,null,"9.01B","2.A23C.01","9.01B"]
[null,null,null,null,null,null,null,null,null,"9.01C","2.A23C.08","9.01C"]
[null,null,null,null,null,null,null,null,null,"9.05","2.A23C.10","9.05"]
[null,null,null,null,null,null,null,null,null,"9.145E","2.A23.00","9.145E"]
[null,null,null,null,null,null,null,null,null,"9.28","2.A23.01","9.28"]
[null,null,null,null,null,null,null,null,null,"9.36","2.A23.03","9.36"]
[null,null,null,null,null,null,null,null,null,"9.36A","2.A23.05","9.36A"]
[null,null,null,null,null,null,null,null,null,"9.36V","2.A23.06","9.36V"]
[null,null,null,null,null,null,null,null,null,"9.42","2.A23.08","9.42"]
[null,null,null,null,null,null,null,null,null,"9.43","2.A23.09","9.43"]
[null,null,null,null,null,null,null,null,null,"9.47","2.A23.10","9.47"]
[null,null,null,null,null,null,null,null,null,"9.47A","2.A25","9.47A"]
[null,null,null,null,null,null,null,null,null,"9.47T","2.A25.08","9.47T"]
[null,null,null,null,null,null,null,null,null,"9.49","2.A25.09","9.49"]
[null,null,null,null,null,null,null,null,null,"9.50","2.A25.10","9.50"]
[null,null,null,null,null,null,null,null,null,"952","2.A3","952"]
[null,null,null,null,null,null,null,null,null,"0.32A","2.A3.01","0.32A"]
[null,null,null,null,null,null,null,null,null,"0.32V","2.A4","0.32V"]
[null,null,null,null,null,null,null,null,null,"0.32T","2.A4.01","0.32T"]
[null,null,null,null,null,null,null,null,null,"0.33A","2.A4.08","0.33A"]
[null,null,null,null,null,null,null,null,null,"0.33V","2.A4.10","0.33V"]
[null,null,null,null,null,null,null,null,null,"0.33T","2.A5","0.33T"]
[null,null,null,null,null,null,null,null,null,"0.34A","2.A5.01","0.34A"]
[null,null,null,null,null,null,null,null,null,"0.34V","2.A5.08","0.34V"]
[null,null,null,null,null,null,null,null,null,"0.34T","2.A5.10","0.34T"]
[null,null,null,null,null,null,null,null,null,"N/A","2.A7","N/A"]
[null,null,null,null,null,null,null,null,null," ","2.A7.01"," "]
[null,null,null,null,null,null,null,null,null," ","2.A7.10"," "]
[null,null,null,null,null,null,null,null,null," ","2.A8"," "]
[null,null,null,null,null,null,null,null,null," ","2.A8.01"," "]
[null,null,null,null,null,null,null,null,null," ","2.A8.10"," "]
[null,null,null,null,null,null,null,null,null," ","2.A9"," "]
[null,null,null,null,null,null,null,null,null," ","2.A9.01"," "]
[null,null,null,null,null,null,null,null,null," ","2.A9.02"," "]
[null,null,null,null,null,null,null,null,null," ","2.A9.08"," "]
[null,null,null,null,null,null,null,null,null," ","2.A9.10"," "]
[null,null,null,null,null,null,null,null,null," ","2.A9.12"," "]
[null,null,null,null,null,null,null,null,null," ","2.A9.14"," "]
[null,null,null,null,null,null,null,null,null," ","2.B1"," "]
[null,null,null,null,null,null,null,null,null," ","2.B10.08"," "]
[null,null,null,null,null,null,null,null,null," ","2.B1.01"," "]
[null,null,null,null,null,null,null,null,null," ","2.B1.08"," "]
[null,null,null,null,null,null,null,null,null," ","2.B1.10"," "]
[null,null,null,null,null,null,null,null,null," ","2.B13A",{"$f":"IF($B$7=\"ETE\",J1031,K1031)","v":" "}]
[null,null,null,null,null,null,null,null,null," ","2.B13A.01"," "]
[null,null,null,null,null,null,null,null,null," ","2.B13A.02"," "]
[null,null,null,null,null,null,null,null,null," ","2.B13A.08"," "]
[null,null,null,null,null,null,null,null,null," ","2.B13B"," "]
[null,null,null,null,null,null,null,null,null," ","2.B13B.01"," "]
[null,null,null,null,null,null,null,null,null," ","2.B13B.08"," "]
[null,null,null,null,null,null,null,null,null," ","2.B13B.09"," "]
[null,null,null,null,null,null,null,null,null," ","2.B13B.10"," "]
[null,null,null,null,null,null,null,null,null," ","2.B3"," "]
[null,null,null,null,null,null,null,null,null," ","2.B3.01"," "]
[null,null,null,null,null,null,null,null,null," ","2.B3.08"," "]
[null,null,null,null,null,null,null,null,null," ","2.B3.09"," "]
[null,null,null,null,null,null,null,null,null," ","2.B3.10"," "]
[null,null,null,null,null,null,null,null,null," ","2.B4"," "]
[null,null,null,null,null,null,null,null,null," ","2.B4.01"," "]
[null,null,null,null,null,null,null,null,null," ","2.B4.08"," "]
[null,null,null,null,null,null,null,null,null," ","2.B4.10"," "]
[null,null,null,null,null,null,null,null,null," ","2.B5-1.01"," "]
[null,null,null,null,null,null,null,null,null," ","2.B5-1.08"," "]
[null,null,null,null,null,null,null,null,null," ","2.B5-1.10"," "]
[null,null,null,null,null,null,null,null,null," ","2.B5-2"," "]
[null,null,null,null,null,null,null,null,null," ","2.B5-2.01"," "]
[null,null,null,null,null,null,null,null,null," ","2.B5-2.08"," "]
[null,null,null,null,null,null,null,null,null," ","2.B5-2.10"," "]
[null,null,null,null,null,null,null,null,null," ","2.B5-3"," "]
[null,null,null,null,null,null,null,null,null," ","2.B5-3.01"," "]
[null,null,null,null,null,null,null,null,null," ","2.B5-3.08"," "]
[null,null,null,null,null,null,null,null,null," ","2.B5-3.10"," "]
[null,null,null,null,null,null,null,null,null," ","2.B7.08"," "]
[null,null,null,null,null,null,null,null,null," ","2.I"," "]
[null,null,null,null,null,null,null,null,null," ","2.II"," "]
[null,null,null,null,null,null,null,null,null," ","2.III"," "]
[null,null,null,null,null,null,null,null,null," ","2M.08"," "]
[null,null,null,null,null,null,null,null,null," ","2M.101.03"," "]
[null,null,null,null,null,null,null,null,null," ","2M.101.04"," "]
[null,null,null,null,null,null,null,null,null," ","2M.12"," "]
[null,null,null,null,null,null,null,null,null," ","2M.12.01"," "]
[null,null,null,null,null,null,null,null,null," ","2M.12.02"," "]
[null,null,null,null,null,null,null,null,null," ","2M.74"," "]
[null,null,null,null,null,null,null,null,null," ","2M.74.01"," "]
[null,null,null,null,null,null,null,null,null," ","2M.74.03"," "]
[null,null,null,null,null,null,null,null,null," ","2M.840.00"," "]
[null,null,null,null,null,null,null,null,null," ","2M.840.01"," "]
[null,null,null,null,null,null,null,null,null," ","2M.840.03"," "]
[null,null,null,null,null,null,null,null,null," ","2M.840.06"," "]
[null,null,null,null,null,null,null,null,null," ","2M.840.08"," "]
[null,null,null,null,null,null,null,null,null," ","2M.840.09"," "]
[null,null,null,null,null,null,null,null,null," ","2M.840.10"," "]
[null,null,null,null,null,null,null,null,null," ","2M.85"," "]
[null,null,null,null,null,null,null,null,null," ","2M.85.01"," "]
[null,null,null,null,null,null,null,null,null," ","2M.85.02"," "]
[null,null,null,null,null,null,null,null,null," ","2M.85.03"," "]
[null,null,null,null,null,null,null,null,null," ","2M.85.04"," "]
[null,null,null,null,null,null,null,null,null," ","2M.85.05"," "]
[null,null,null,null,null,null,null,null,null," ","2M.85.06"," "]
[null,null,null,null,null,null,null,null,null," ","2M.85.07"," "]
[null,null,null,null,null,null,null,null,null," ","2M.85.08"," "]
[null,null,null,null,null,null,null,null,null," ","2.VI"," "]
[null,null,null,null,null,null,null,null,null," ","2.VIII"," "]
[null,null,null,null,null,null,null,null,null," ","2.XII"," "]
[null,null,null,null,null,null,null,null,null," ","20"," "]
[null,null,null,null,null,null,null,null,null," ","20.I"," "]
[null,null,null,null,null,null,null,null,null," ","20.II"," "]
[null,null,null,null,null,null,null,null,null," ","20.III",{"$f":"IF($B$7=\"ETE\",J1095,K1095)","v":" "}]
[null,null,null,null,null,null,null,null,null," ","20.IX"," "]
[null,null,null,null,null,null,null,null,null," ","20.VI"," "]
[null,null,null,null,null,null,null,null,null," ","20.10.2001"," "]
[null,null,null,null,null,null,null,null,null," ","20.10.2002"," "]
[null,null,null,null,null,null,null,null,null," ","20.8.2001"," "]
[null,null,null,null,null,null,null,null,null," ","20.8.2002"," "]
[null,null,null,null,null,null,null,null,null," ","21"," "]
[null,null,null,null,null,null,null,null,null," ","21.I"," "]
[null,null,null,null,null,null,null,null,null," ","21.VIII"," "]
[null,null,null,null,null,null,null,null,null," ","21.X"," "]
[null,null,null,null,null,null,null,null,null," ","22"," "]
[null,null,null,null,null,null,null,null,null," ","22.I"," "]
[null,null,null,null,null,null,null,null,null," ","22.IX"," "]
[null,null,null,null,null,null,null,null,null," ","22.VIII"," "]
[null,null,null,null,null,null,null,null,null," ","22.X"," "]
[null,null,null,null,null,null,null,null,null," ","23"," "]
[null,null,null,null,null,null,null,null,null," ","23.I"," "]
[null,null,null,null,null,null,null,null,null," ","23.VIII"," "]
[null,null,null,null,null,null,null,null,null," ","23.X"," "]
[null,null,null,null,null,null,null,null,null," ","24"," "]
[null,null,null,null,null,null,null,null,null," ","24.I"," "]
[null,null,null,null,null,null,null,null,null," ","24.VIII"," "]
[null,null,null,null,null,null,null,null,null," ","24.X"," "]
[null,null,null,null,null,null,null,null,null," ","25"," "]
[null,null,null,null,null,null,null,null,null," ","25.I"," "]
[null,null,null,null,null,null,null,null,null," ","25.II"," "]
[null,null,null,null,null,null,null,null,null," ","25.III"," "]
[null,null,null,null,null,null,null,null,null," ","25.V"," "]
[null,null,null,null,null,null,null,null,null," ","25.VI"," "]
[null,null,null,null,null,null,null,null,null," ","25.VIII"," "]
[null,null,null,null,null,null,null,null,null," ","2.51.01"," "]
[null,null,null,null,null,null,null,null,null," ","2.51.02"," "]
[null,null,null,null,null,null,null,null,null," ","2.51.03"," "]
[null,null,null,null,null,null,null,null,null," ","2.51.04"," "]
[null,null,null,null,null,null,null,null,null," ","2.51.05"," "]
[null,null,null,null,null,null,null,null,null," ","2.51.06"," "]
[null,null,null,null,null,null,null,null,null," ","2.51.07"," "]
[null,null,null,null,null,null,null,null,null," ","2.51.08"," "]
[null,null,null,null,null,null,null,null,null," ","2.51.10"," "]
[null,null,null,null,null,null,null,null,null," ","2.51.11"," "]
[null,null,null,null,null,null,null,null,null," ","2.51.12"," "]
[null,null,null,null,null,null,null,null,null," ","2.51.15"," "]
[null,null,null,null,null,null,null,null,null," ","2.51.16"," "]
[null,null,null,null,null,null,null,null,null," ","2.51.17"," "]
[null,null,null,null,null,null,null,null,null," ","25.16"," "]
[null,null,null,null,null,null,null,null,null," ","25.17"," "]
[null,null,null,null,null,null,null,null,null," ","25.18"," "]
[null,null,null,null,null,null,null,null,null," ","25.19"," "]
[null,null,null,null,null,null,null,null,null," ","2.52.02"," "]
[null,null,null,null,null,null,null,null,null," ","2.52.03"," "]
[null,null,null,null,null,null,null,null,null," ","2.52.06"," "]
[null,null,null,null,null,null,null,null,null," ","2.52.08"," "]
[null,null,null,null,null,null,null,null,null," ","2.52.12"," "]
[null,null,null,null,null,null,null,null,null," ","2.52.15"," "]
[null,null,null,null,null,null,null,null,null," ","2.53.01"," "]
[null,null,null,null,null,null,null,null,null," ","2.53.02"," "]
[null,null,null,null,null,null,null,null,null," ","2.53.03"," "]
[null,null,null,null,null,null,null,null,null," ","2.53.04"," "]
[null,null,null,null,null,null,null,null,null," ","2.53.05"," "]
[null,null,null,null,null,null,null,null,null," ","2.53.06"," "]
[null,null,null,null,null,null,null,null,null," ","2.53.07"," "]
[null,null,null,null,null,null,null,null,null," ","2.53.08"," "]
[null,null,null,null,null,null,null,null,null," ","2.53.10"," "]
[null,null,null,null,null,null,null,null,null," ","2.53.12",{"$f":"IF($B$7=\"ETE\",J1159,K1159)","v":" "}]
[null,null,null,null,null,null,null,null,null," ","2.53.13"," "]
[null,null,null,null,null,null,null,null,null," ","2.53.15"," "]
[null,null,null,null,null,null,null,null,null," ","2.53.17"," "]
[null,null,null,null,null,null,null,null,null," ","2.54.01"," "]
[null,null,null,null,null,null,null,null,null," ","2.54.02"," "]
[null,null,null,null,null,null,null,null,null," ","2.54.03"," "]
[null,null,null,null,null,null,null,null,null," ","2.54.05"," "]
[null,null,null,null,null,null,null,null,null," ","2.54.06"," "]
[null,null,null,null,null,null,null,null,null," ","2.54.07"," "]
[null,null,null,null,null,null,null,null,null," ","2.54.08"," "]
[null,null,null,null,null,null,null,null,null," ","2.54.09"," "]
[null,null,null,null,null,null,null,null,null," ","2.54.09.01"," "]
[null,null,null,null,null,null,null,null,null," ","2.54.09.08"," "]
[null,null,null,null,null,null,null,null,null," ","2.54.10"," "]
[null,null,null,null,null,null,null,null,null," ","2.54.10.4"," "]
[null,null,null,null,null,null,null,null,null," ","2.54.11"," "]
[null,null,null,null,null,null,null,null,null," ","2.54.12"," "]
[null,null,null,null,null,null,null,null,null," ","2.54.13"," "]
[null,null,null,null,null,null,null,null,null," ","2.54.14"," "]
[null,null,null,null,null,null,null,null,null," ","2.54.15"," "]
[null,null,null,null,null,null,null,null,null," ","2.54.16"," "]
[null,null,null,null,null,null,null,null,null," ","2.55.01"," "]
[null,null,null,null,null,null,null,null,null," ","2.55.07"," "]
[null,null,null,null,null,null,null,null,null," ","2.55.08"," "]
[null,null,null,null,null,null,null,null,null," ","2.55.10"," "]
[null,null,null,null,null,null,null,null,null," ","2.56.08"," "]
[null,null,null,null,null,null,null,null,null," ","2.57.01"," "]
[null,null,null,null,null,null,null,null,null," ","2.57.02"," "]
[null,null,null,null,null,null,null,null,null," ","2.57.08"," "]
[null,null,null,null,null,null,null,null,null," ","2.57.09"," "]
[null,null,null,null,null,null,null,null,null," ","2.58.02"," "]
[null,null,null,null,null,null,null,null,null," ","2.58.08"," "]
[null,null,null,null,null,null,null,null,null," ","2.58.10.8"," "]
[null,null,null,null,null,null,null,null,null," ","2.58.17"," "]
[null,null,null,null,null,null,null,null,null," ","2.59.1.01"," "]
[null,null,null,null,null,null,null,null,null," ","2.59.1.02"," "]
[null,null,null,null,null,null,null,null,null," ","2.59.1.06"," "]
[null,null,null,null,null,null,null,null,null," ","2.59.1.08"," "]
[null,null,null,null,null,null,null,null,null," ","2.59.1.10"," "]
[null,null,null,null,null,null,null,null,null," ","2.59.1.12"," "]
[null,null,null,null,null,null,null,null,null," ","2.59.1.15"," "]
[null,null,null,null,null,null,null,null,null," ","2.59.3.01"," "]
[null,null,null,null,null,null,null,null,null," ","2.59.3.02"," "]
[null,null,null,null,null,null,null,null,null," ","2.59.3.08"," "]
[null,null,null,null,null,null,null,null,null," ","2.59.3.10"," "]
[null,null,null,null,null,null,null,null,null," ","26.I"," "]
[null,null,null,null,null,null,null,null,null," ","26.II"," "]
[null,null,null,null,null,null,null,null,null," ","26.III"," "]
[null,null,null,null,null,null,null,null,null," ","26.IV"," "]
[null,null,null,null,null,null,null,null,null," ","26.V"," "]
[null,null,null,null,null,null,null,null,null," ","26.VI"," "]
[null,null,null,null,null,null,null,null,null," ","2.60.01"," "]
[null,null,null,null,null,null,null,null,null," ","2.60.02"," "]
[null,null,null,null,null,null,null,null,null," ","2.60.03"," "]
[null,null,null,null,null,null,null,null,null," ","2.60.04"," "]
[null,null,null,null,null,null,null,null,null," ","2.60.05"," "]
[null,null,null,null,null,null,null,null,null," ","2.60.06"," "]
[null,null,null,null,null,null,null,null,null," ","2.60.08"," "]
[null,null,null,null,null,null,null,null,null," ","2.60.10"," "]
[null,null,null,null,null,null,null,null,null," ","2.60.11"," "]
[null,null,null,null,null,null,null,null,null," ","2.61.02"," "]
[null,null,null,null,null,null,null,null,null," ","2.61.06"," "]
[null,null,null,null,null,null,null,null,null," ","2.61.07"," "]
[null,null,null,null,null,null,null,null,null," ","2.61.08",{"$f":"IF($B$7=\"ETE\",J1223,K1223)","v":" "}]
[null,null,null,null,null,null,null,null,null," ","26.1.08.1"," "]
[null,null,null,null,null,null,null,null,null," ","26.1.08.2"," "]
[null,null,null,null,null,null,null,null,null," ","2.61.10"," "]
[null,null,null,null,null,null,null,null,null," ","2.61.11"," "]
[null,null,null,null,null,null,null,null,null," ","2.61.16"," "]
[null,null,null,null,null,null,null,null,null," ","26.1.2001"," "]
[null,null,null,null,null,null,null,null,null," ","26.1.2006"," "]
[null,null,null,null,null,null,null,null,null," ","26.1.2007"," "]
[null,null,null,null,null,null,null,null,null," ","26.1.2009"," "]
[null,null,null,null,null,null,null,null,null," ","26.1.2010"," "]
[null,null,null,null,null,null,null,null,null," ","2.62.01"," "]
[null,null,null,null,null,null,null,null,null," ","26.2.2001"," "]
[null,null,null,null,null,null,null,null,null," ","26.2.2008"," "]
[null,null,null,null,null,null,null,null,null," ","26.2.2009"," "]
[null,null,null,null,null,null,null,null,null," ","2.63.01"," "]
[null,null,null,null,null,null,null,null,null," ","26.3.2001"," "]
[null,null,null,null,null,null,null,null,null," ","26.3.2008"," "]
[null,null,null,null,null,null,null,null,null," ","2.64.01"," "]
[null,null,null,null,null,null,null,null,null," ","2.64.02"," "]
[null,null,null,null,null,null,null,null,null," ","2.64.04"," "]
[null,null,null,null,null,null,null,null,null," ","2.64.06"," "]
[null,null,null,null,null,null,null,null,null," ","2.64.08"," "]
[null,null,null,null,null,null,null,null,null," ","2.64.10"," "]
[null,null,null,null,null,null,null,null,null," ","2.64.12"," "]
[null,null,null,null,null,null,null,null,null," ","26.4.2001"," "]
[null,null,null,null,null,null,null,null,null," ","26.4.2008"," "]
[null,null,null,null,null,null,null,null,null," ","26.5.2001"," "]
[null,null,null,null,null,null,null,null,null," ","26.5.2007"," "]
[null,null,null,null,null,null,null,null,null," ","26.5.2008"," "]
[null,null,null,null,null,null,null,null,null," ","26.6.2001"," "]
[null,null,null,null,null,null,null,null,null," ","26.6.2007"," "]
[null,null,null,null,null,null,null,null,null," ","26.6.2008"," "]
[null,null,null,null,null,null,null,null,null," ","2.67.02"," "]
[null,null,null,null,null,null,null,null,null," ","2.67.03"," "]
[null,null,null,null,null,null,null,null,null," ","2.67.04"," "]
[null,null,null,null,null,null,null,null,null," ","2.67.06"," "]
[null,null,null,null,null,null,null,null,null," ","2.67.08"," "]
[null,null,null,null,null,null,null,null,null," ","2.67.10"," "]
[null,null,null,null,null,null,null,null,null," ","2.67.12"," "]
[null,null,null,null,null,null,null,null,null," ","2.69.07"," "]
[null,null,null,null,null,null,null,null,null," ","2.69.07/B"," "]
[null,null,null,null,null,null,null,null,null," ","2.69.10"," "]
[null,null,null,null,null,null,null,null,null," ","2.69.14"," "]
[null,null,null,null,null,null,null,null,null," ","27.I"," "]
[null,null,null,null,null,null,null,null,null," ","27.II"," "]
[null,null,null,null,null,null,null,null,null," ","2.70.01"," "]
[null,null,null,null,null,null,null,null,null," ","2.70.02"," "]
[null,null,null,null,null,null,null,null,null," ","2.70.03.01"," "]
[null,null,null,null,null,null,null,null,null," ","2.70.03.08"," "]
[null,null,null,null,null,null,null,null,null," ","2.70.03.10"," "]
[null,null,null,null,null,null,null,null,null," ","2.70.06"," "]
[null,null,null,null,null,null,null,null,null," ","2.70.08.1"," "]
[null,null,null,null,null,null,null,null,null," ","2.70.08.2"," "]
[null,null,null,null,null,null,null,null,null," ","2.70.09"," "]
[null,null,null,null,null,null,null,null,null," ","2.70.10.1"," "]
[null,null,null,null,null,null,null,null,null," ","2.70.10.2"," "]
[null,null,null,null,null,null,null,null,null," ","27.1.2001"," "]
[null,null,null,null,null,null,null,null,null," ","27.2.2001"," "]
[null,null,null,null,null,null,null,null,null," ","27.2.2008"," "]
[null,null,null,null,null,null,null,null,null," ","2.74.01"," "]
[null,null,null,null,null,null,null,null,null," ","2.74.03"," "]
[null,null,null,null,null,null,null,null,null," ","2.75.01"," "]
[null,null,null,null,null,null,null,null,null," ","2.75.08"," "]
[null,null,null,null,null,null,null,null,null," ","2.79.01",{"$f":"IF($B$7=\"ETE\",J1287,K1287)","v":" "}]
[null,null,null,null,null,null,null,null,null," ","2.79.02"," "]
[null,null,null,null,null,null,null,null,null," ","2.79.08"," "]
[null,null,null,null,null,null,null,null,null," ","2.79.10"," "]
[null,null,null,null,null,null,null,null,null," ","28"," "]
[null,null,null,null,null,null,null,null,null," ","28.I"," "]
[null,null,null,null,null,null,null,null,null," ","28.II"," "]
[null,null,null,null,null,null,null,null,null," ","28.8.2001"," "]
[null,null,null,null,null,null,null,null,null," ","28.8.2003"," "]
[null,null,null,null,null,null,null,null,null," ","29"," "]
[null,null,null,null,null,null,null,null,null," ","29.I"," "]
[null,null,null,null,null,null,null,null,null," ","29.VIII"," "]
[null,null,null,null,null,null,null,null,null," ","29.X"," "]
[null,null,null,null,null,null,null,null,null," ","2.90.01"," "]
[null,null,null,null,null,null,null,null,null," ","2.90.08"," "]
[null,null,null,null,null,null,null,null,null," ","2.90.10"," "]
[null,null,null,null,null,null,null,null,null," ","29.02"," "]
[null,null,null,null,null,null,null,null,null," ","3"," "]
[null,null,null,null,null,null,null,null,null," ","3.A1"," "]
[null,null,null,null,null,null,null,null,null," ","3.A10"," "]
[null,null,null,null,null,null,null,null,null," ","3.A10.01"," "]
[null,null,null,null,null,null,null,null,null," ","3.A10.08"," "]
[null,null,null,null,null,null,null,null,null," ","3.A10.08.01"," "]
[null,null,null,null,null,null,null,null,null," ","3.A1.01"," "]
[null,null,null,null,null,null,null,null,null," ","3.A10.10"," "]
[null,null,null,null,null,null,null,null,null," ","3.A10.10.01"," "]
[null,null,null,null,null,null,null,null,null," ","3.A10-2"," "]
[null,null,null,null,null,null,null,null,null," ","3.A10-2.01"," "]
[null,null,null,null,null,null,null,null,null," ","3.A10-2.02"," "]
[null,null,null,null,null,null,null,null,null," ","3.A1.08"," "]
[null,null,null,null,null,null,null,null,null," ","3.A1.10"," "]
[null,null,null,null,null,null,null,null,null," ","3.A12A"," "]
[null,null,null,null,null,null,null,null,null," ","3.A12A.08"," "]
[null,null,null,null,null,null,null,null,null," ","3.A12A.10"," "]
[null,null,null,null,null,null,null,null,null," ","3.A12B"," "]
[null,null,null,null,null,null,null,null,null," ","3.A12B.01"," "]
[null,null,null,null,null,null,null,null,null," ","3.A16-1"," "]
[null,null,null,null,null,null,null,null,null," ","3.A16-1.01"," "]
[null,null,null,null,null,null,null,null,null," ","3.A16-1.08"," "]
[null,null,null,null,null,null,null,null,null," ","3.A16-2"," "]
[null,null,null,null,null,null,null,null,null," ","3.A16-2.01"," "]
[null,null,null,null,null,null,null,null,null," ","3.A21.01"," "]
[null,null,null,null,null,null,null,null,null," ","3.A21.08"," "]
[null,null,null,null,null,null,null,null,null," ","3.A21.10"," "]
[null,null,null,null,null,null,null,null,null," ","3.A23A"," "]
[null,null,null,null,null,null,null,null,null," ","3.A23A.05"," "]
[null,null,null,null,null,null,null,null,null," ","3.A23A.08"," "]
[null,null,null,null,null,null,null,null,null," ","3.A23A.10"," "]
[null,null,null,null,null,null,null,null,null," ","3.A23B"," "]
[null,null,null,null,null,null,null,null,null," ","3.A23B.01"," "]
[null,null,null,null,null,null,null,null,null," ","3.A23B.08"," "]
[null,null,null,null,null,null,null,null,null," ","3.A23B.10"," "]
[null,null,null,null,null,null,null,null,null," ","3.A23C"," "]
[null,null,null,null,null,null,null,null,null," ","3.A23C.01"," "]
[null,null,null,null,null,null,null,null,null," ","3.A23C.08"," "]
[null,null,null,null,null,null,null,null,null," ","3.A23C.10"," "]
[null,null,null,null,null,null,null,null,null," ","3.A23.00"," "]
[null,null,null,null,null,null,null,null,null," ","3.A23.01"," "]
[null,null,null,null,null,null,null,null,null," ","3.A23.03"," "]
[null,null,null,null,null,null,null,null,null," ","3.A23.05"," "]
[null,null,null,null,null,null,null,null,null," ","3.A23.06"," "]
[null,null,null,null,null,null,null,null,null," ","3.A23.08"," "]
[null,null,null,null,null,null,null,null,null," ","3.A23.09"," "]
[null,null,null,null,null,null,null,null,null," ","3.A23.10"," "]
[null,null,null,null,null,null,null,null,null," ","3.A25",{"$f":"IF($B$7=\"ETE\",J1351,K1351)","v":" "}]
[null,null,null,null,null,null,null,null,null," ","3.A25.08"," "]
[null,null,null,null,null,null,null,null,null," ","3.A25.09"," "]
[null,null,null,null,null,null,null,null,null," ","3.A25.10"," "]
[null,null,null,null,null,null,null,null,null," ","3.A3"," "]
[null,null,null,null,null,null,null,null,null," ","3.A3.01"," "]
[null,null,null,null,null,null,null,null,null," ","3.A4"," "]
[null,null,null,null,null,null,null,null,null," ","3.A4.01"," "]
[null,null,null,null,null,null,null,null,null," ","3.A4.08"," "]
[null,null,null,null,null,null,null,null,null," ","3.A4.10"," "]
[null,null,null,null,null,null,null,null,null," ","3.A5"," "]
[null,null,null,null,null,null,null,null,null," ","3.A5.01"," "]
[null,null,null,null,null,null,null,null,null," ","3.A5.08"," "]
[null,null,null,null,null,null,null,null,null," ","3.A5.10"," "]
[null,null,null,null,null,null,null,null,null," ","3.A7"," "]
[null,null,null,null,null,null,null,null,null," ","3.A7.01"," "]
[null,null,null,null,null,null,null,null,null," ","3.A7.10"," "]
[null,null,null,null,null,null,null,null,null," ","3.A8"," "]
[null,null,null,null,null,null,null,null,null," ","3.A8.01"," "]
[null,null,null,null,null,null,null,null,null," ","3.A8.10"," "]
[null,null,null,null,null,null,null,null,null," ","3.A9"," "]
[null,null,null,null,null,null,null,null,null," ","3.A9.01"," "]
[null,null,null,null,null,null,null,null,null," ","3.A9.02"," "]
[null,null,null,null,null,null,null,null,null," ","3.A9.08"," "]
[null,null,null,null,null,null,null,null,null," ","3.A9.10"," "]
[null,null,null,null,null,null,null,null,null," ","3.A9.12"," "]
[null,null,null,null,null,null,null,null,null," ","3.A9.14"," "]
[null,null,null,null,null,null,null,null,null," ","3.B1"," "]
[null,null,null,null,null,null,null,null,null," ","3.B10.08"," "]
[null,null,null,null,null,null,null,null,null," ","3.B1.01"," "]
[null,null,null,null,null,null,null,null,null," ","3.B1.08"," "]
[null,null,null,null,null,null,null,null,null," ","3.B1.10"," "]
[null,null,null,null,null,null,null,null,null," ","3.B13A"," "]
[null,null,null,null,null,null,null,null,null," ","3.B13A.01"," "]
[null,null,null,null,null,null,null,null,null," ","3.B13A.02"," "]
[null,null,null,null,null,null,null,null,null," ","3.B13A.08"," "]
[null,null,null,null,null,null,null,null,null," ","3.B13B"," "]
[null,null,null,null,null,null,null,null,null," ","3.B13B.01"," "]
[null,null,null,null,null,null,null,null,null," ","3.B13B.08"," "]
[null,null,null,null,null,null,null,null,null," ","3.B13B.09"," "]
[null,null,null,null,null,null,null,null,null," ","3.B13B.10"," "]
[null,null,null,null,null,null,null,null,null," ","3.B3"," "]
[null,null,null,null,null,null,null,null,null," ","3.B3.01"," "]
[null,null,null,null,null,null,null,null,null," ","3.B3.08"," "]
[null,null,null,null,null,null,null,null,null," ","3.B3.09"," "]
[null,null,null,null,null,null,null,null,null," ","3.B3.10"," "]
[null,null,null,null,null,null,null,null,null," ","3.B4"," "]
[null,null,null,null,null,null,null,null,null," ","3.B4.01"," "]
[null,null,null,null,null,null,null,null,null," ","3.B4.08"," "]
[null,null,null,null,null,null,null,null,null," ","3.B4.10"," "]
[null,null,null,null,null,null,null,null,null," ","3.B5-1.01"," "]
[null,null,null,null,null,null,null,null,null," ","3.B5-1.08"," "]
[null,null,null,null,null,null,null,null,null," ","3.B5-1.10"," "]
[null,null,null,null,null,null,null,null,null," ","3.B5-2"," "]
[null,null,null,null,null,null,null,null,null," ","3.B5-2.01"," "]
[null,null,null,null,null,null,null,null,null," ","3.B5-2.08"," "]
[null,null,null,null,null,null,null,null,null," ","3.B5-2.10"," "]
[null,null,null,null,null,null,null,null,null," ","3.B5-3"," "]
[null,null,null,null,null,null,null,null,null," ","3.B5-3.01"," "]
[null,null,null,null,null,null,null,null,null," ","3.B5-3.08"," "]
[null,null,null,null,null,null,null,null,null," ","3.B5-3.10"," "]
[null,null,null,null,null,null,null,null,null," ","3.B7.08"," "]
[null,null,null,null,null,null,null,null,null," ","3.I"," "]
[null,null,null,null,null,null,null,null,null," ","3.II"," "]
[null,null,null,null,null,null,null,null,null," ","3.III",{"$f":"IF($B$7=\"ETE\",J1415,K1415)","v":" "}]
[null,null,null,null,null,null,null,null,null," ","3.IV"," "]
[null,null,null,null,null,null,null,null,null," ","3.V"," "]
[null,null,null,null,null,null,null,null,null," ","3.VI"," "]
[null,null,null,null,null,null,null,null,null," ","3.VII"," "]
[null,null,null,null,null,null,null,null,null," ","3.VIII"," "]
[null,null,null,null,null,null,null,null,null," ","3.X"," "]
[null,null,null,null,null,null,null,null,null," ","3.XI"," "]
[null,null,null,null,null,null,null,null,null," ","3.XII"," "]
[null,null,null,null,null,null,null,null,null," ","30"," "]
[null,null,null,null,null,null,null,null,null," ","30.I"," "]
[null,null,null,null,null,null,null,null,null," ","30.III"," "]
[null,null,null,null,null,null,null,null,null," ","30.V"," "]
[null,null,null,null,null,null,null,null,null," ","30.VI"," "]
[null,null,null,null,null,null,null,null,null," ","30.VIII"," "]
[null,null,null,null,null,null,null,null,null," ","3.01.01"," "]
[null,null,null,null,null,null,null,null,null," ","3.01.02"," "]
[null,null,null,null,null,null,null,null,null," ","30.10.2001"," "]
[null,null,null,null,null,null,null,null,null," ","30.10.2003"," "]
[null,null,null,null,null,null,null,null,null," ","30.10.2005"," "]
[null,null,null,null,null,null,null,null,null," ","30.10.2006"," "]
[null,null,null,null,null,null,null,null,null," ","3.01.03"," "]
[null,null,null,null,null,null,null,null,null," ","3.01.04"," "]
[null,null,null,null,null,null,null,null,null," ","3.01.05"," "]
[null,null,null,null,null,null,null,null,null," ","3.01.06"," "]
[null,null,null,null,null,null,null,null,null," ","3.01.07"," "]
[null,null,null,null,null,null,null,null,null," ","3.01.08"," "]
[null,null,null,null,null,null,null,null,null," ","3.01.10"," "]
[null,null,null,null,null,null,null,null,null," ","3.01.11"," "]
[null,null,null,null,null,null,null,null,null," ","3.01.12"," "]
[null,null,null,null,null,null,null,null,null," ","3.01.15"," "]
[null,null,null,null,null,null,null,null,null," ","3.01.16"," "]
[null,null,null,null,null,null,null,null,null," ","3.01.17"," "]
[null,null,null,null,null,null,null,null,null," ","3.02.01"," "]
[null,null,null,null,null,null,null,null,null," ","3.02.02"," "]
[null,null,null,null,null,null,null,null,null," ","3.02.03"," "]
[null,null,null,null,null,null,null,null,null," ","3.02.06"," "]
[null,null,null,null,null,null,null,null,null," ","3.02.08"," "]
[null,null,null,null,null,null,null,null,null," ","3.02.12"," "]
[null,null,null,null,null,null,null,null,null," ","3.02.15"," "]
[null,null,null,null,null,null,null,null,null," ","3.03.01"," "]
[null,null,null,null,null,null,null,null,null," ","3.03.02"," "]
[null,null,null,null,null,null,null,null,null," ","3.03.03"," "]
[null,null,null,null,null,null,null,null,null," ","3.03.04"," "]
[null,null,null,null,null,null,null,null,null," ","3.03.05"," "]
[null,null,null,null,null,null,null,null,null," ","3.03.06"," "]
[null,null,null,null,null,null,null,null,null," ","3.03.07"," "]
[null,null,null,null,null,null,null,null,null," ","3.03.08"," "]
[null,null,null,null,null,null,null,null,null," ","3.03.10"," "]
[null,null,null,null,null,null,null,null,null," ","3.03.12"," "]
[null,null,null,null,null,null,null,null,null," ","3.03.13"," "]
[null,null,null,null,null,null,null,null,null," ","3.03.15"," "]
[null,null,null,null,null,null,null,null,null," ","3.03.17"," "]
[null,null,null,null,null,null,null,null,null," ","3.04.01"," "]
[null,null,null,null,null,null,null,null,null," ","3.04.02"," "]
[null,null,null,null,null,null,null,null,null," ","3.04.03"," "]
[null,null,null,null,null,null,null,null,null," ","3.04.05"," "]
[null,null,null,null,null,null,null,null,null," ","3.04.06"," "]
[null,null,null,null,null,null,null,null,null," ","3.04.07"," "]
[null,null,null,null,null,null,null,null,null," ","3.04.08"," "]
[null,null,null,null,null,null,null,null,null," ","3.04.09"," "]
[null,null,null,null,null,null,null,null,null," ","3.04.09.01"," "]
[null,null,null,null,null,null,null,null,null," ","3.04.09.08"," "]
[null,null,null,null,null,null,null,null,null," ","3.04.10"," "]
[null,null,null,null,null,null,null,null,null," ","3.04.10.4",{"$f":"IF($B$7=\"ETE\",J1479,K1479)","v":" "}]
[null,null,null,null,null,null,null,null,null," ","3.04.11"," "]
[null,null,null,null,null,null,null,null,null," ","3.04.12"," "]
[null,null,null,null,null,null,null,null,null," ","3.04.13"," "]
[null,null,null,null,null,null,null,null,null," ","3.04.14"," "]
[null,null,null,null,null,null,null,null,null," ","3.04.15"," "]
[null,null,null,null,null,null,null,null,null," ","3.04.16"," "]
[null,null,null,null,null,null,null,null,null," ","3.04.17"," "]
[null,null,null,null,null,null,null,null,null," ","3.04.17.01"," "]
[null,null,null,null,null,null,null,null,null," ","3.04.17.06"," "]
[null,null,null,null,null,null,null,null,null," ","3.04.17.08"," "]
[null,null,null,null,null,null,null,null,null," ","3.05.01"," "]
[null,null,null,null,null,null,null,null,null," ","3.05.02"," "]
[null,null,null,null,null,null,null,null,null," ","3.05.07"," "]
[null,null,null,null,null,null,null,null,null," ","3.05.08"," "]
[null,null,null,null,null,null,null,null,null," ","3.05.10"," "]
[null,null,null,null,null,null,null,null,null," ","3.07.01"," "]
[null,null,null,null,null,null,null,null,null," ","3.07.02"," "]
[null,null,null,null,null,null,null,null,null," ","3.07.03"," "]
[null,null,null,null,null,null,null,null,null," ","3.07.04"," "]
[null,null,null,null,null,null,null,null,null," ","3.07.05"," "]
[null,null,null,null,null,null,null,null,null," ","3.07.06"," "]
[null,null,null,null,null,null,null,null,null," ","3.07.08"," "]
[null,null,null,null,null,null,null,null,null," ","3.07.09"," "]
[null,null,null,null,null,null,null,null,null," ","3.07.10"," "]
[null,null,null,null,null,null,null,null,null," ","3.08.02"," "]
[null,null,null,null,null,null,null,null,null," ","3.08.08"," "]
[null,null,null,null,null,null,null,null,null," ","3.08.10.8"," "]
[null,null,null,null,null,null,null,null,null," ","3.08.17"," "]
[null,null,null,null,null,null,null,null,null," ","30.8.2005"," "]
[null,null,null,null,null,null,null,null,null," ","30.8.2006"," "]
[null,null,null,null,null,null,null,null,null," ","3.08.803"," "]
[null,null,null,null,null,null,null,null,null," ","3.08.803.1"," "]
[null,null,null,null,null,null,null,null,null," ","3.08.803.3"," "]
[null,null,null,null,null,null,null,null,null," ","3.09.1.01"," "]
[null,null,null,null,null,null,null,null,null," ","3.09.1.02"," "]
[null,null,null,null,null,null,null,null,null," ","3.09.1.06"," "]
[null,null,null,null,null,null,null,null,null," ","3.09.1.08"," "]
[null,null,null,null,null,null,null,null,null," ","3.09.1.10"," "]
[null,null,null,null,null,null,null,null,null," ","3.09.1.12"," "]
[null,null,null,null,null,null,null,null,null," ","3.09.1.15"," "]
[null,null,null,null,null,null,null,null,null," ","3.09.2.01"," "]
[null,null,null,null,null,null,null,null,null," ","3.09.2.06"," "]
[null,null,null,null,null,null,null,null,null," ","3.09.2.08"," "]
[null,null,null,null,null,null,null,null,null," ","3.09.2.10"," "]
[null,null,null,null,null,null,null,null,null," ","3.09.3.01"," "]
[null,null,null,null,null,null,null,null,null," ","3.09.3.02"," "]
[null,null,null,null,null,null,null,null,null," ","3.09.3.06"," "]
[null,null,null,null,null,null,null,null,null," ","3.09.3.08"," "]
[null,null,null,null,null,null,null,null,null," ","3.09.3.10"," "]
[null,null,null,null,null,null,null,null,null," ","3.09.4.01"," "]
[null,null,null,null,null,null,null,null,null," ","3.09.4.06"," "]
[null,null,null,null,null,null,null,null,null," ","3.09.4.08"," "]
[null,null,null,null,null,null,null,null,null," ","3.09.4.10"," "]
[null,null,null,null,null,null,null,null,null," ","31"," "]
[null,null,null,null,null,null,null,null,null," ","31.I"," "]
[null,null,null,null,null,null,null,null,null," ","31.VIII"," "]
[null,null,null,null,null,null,null,null,null," ","31.X"," "]
[null,null,null,null,null,null,null,null,null," ","3.10.01"," "]
[null,null,null,null,null,null,null,null,null," ","3.10.02"," "]
[null,null,null,null,null,null,null,null,null," ","3.10.03"," "]
[null,null,null,null,null,null,null,null,null," ","3.10.04"," "]
[null,null,null,null,null,null,null,null,null," ","3.10.05"," "]
[null,null,null,null,null,null,null,null,null," ","3.10.06"," "]
[null,null,null,null,null,null,null,null,null," ","3.10.08",{"$f":"IF($B$7=\"ETE\",J1543,K1543)","v":" "}]
[null,null,null,null,null,null,null,null,null," ","3.10.10"," "]
[null,null,null,null,null,null,null,null,null," ","3.10.11"," "]
[null,null,null,null,null,null,null,null,null," ","3.10.12"," "]
[null,null,null,null,null,null,null,null,null," ","3.10.2001"," "]
[null,null,null,null,null,null,null,null,null," ","3.10.2002"," "]
[null,null,null,null,null,null,null,null,null," ","3.10.2003"," "]
[null,null,null,null,null,null,null,null,null," ","3.10.2004"," "]
[null,null,null,null,null,null,null,null,null," ","3.10.2005"," "]
[null,null,null,null,null,null,null,null,null," ","3.10.2008"," "]
[null,null,null,null,null,null,null,null,null," ","3.10.2010"," "]
[null,null,null,null,null,null,null,null,null," ","3.10.2011"," "]
[null,null,null,null,null,null,null,null,null," ","3.10.2012"," "]
[null,null,null,null,null,null,null,null,null," ","3.11.02"," "]
[null,null,null,null,null,null,null,null,null," ","3.11.03"," "]
[null,null,null,null,null,null,null,null,null," ","3.11.04"," "]
[null,null,null,null,null,null,null,null,null," ","3.11.05"," "]
[null,null,null,null,null,null,null,null,null," ","3.11.06"," "]
[null,null,null,null,null,null,null,null,null," ","3.11.07"," "]
[null,null,null,null,null,null,null,null,null," ","3.11.08"," "]
[null,null,null,null,null,null,null,null,null," ","3.11.10"," "]
[null,null,null,null,null,null,null,null,null," ","3.11.11"," "]
[null,null,null,null,null,null,null,null,null," ","3.11.12"," "]
[null,null,null,null,null,null,null,null,null," ","3.11.13"," "]
[null,null,null,null,null,null,null,null,null," ","3.11.15"," "]
[null,null,null,null,null,null,null,null,null," ","3.11.16"," "]
[null,null,null,null,null,null,null,null,null," ","3.11.2002"," "]
[null,null,null,null,null,null,null,null,null," ","3.11.2003"," "]
[null,null,null,null,null,null,null,null,null," ","3.11.2004"," "]
[null,null,null,null,null,null,null,null,null," ","3.11.2005"," "]
[null,null,null,null,null,null,null,null,null," ","3.11.2006"," "]
[null,null,null,null,null,null,null,null,null," ","3.11.2007"," "]
[null,null,null,null,null,null,null,null,null," ","3.11.2008"," "]
[null,null,null,null,null,null,null,null,null," ","3.11.2010"," "]
[null,null,null,null,null,null,null,null,null," ","3.11.2011"," "]
[null,null,null,null,null,null,null,null,null," ","3.11.2012"," "]
[null,null,null,null,null,null,null,null,null," ","3.11.2013"," "]
[null,null,null,null,null,null,null,null,null," ","3.11.2015"," "]
[null,null,null,null,null,null,null,null,null," ","3.11.2016"," "]
[null,null,null,null,null,null,null,null,null," ","3.1.2001"," "]
[null,null,null,null,null,null,null,null,null," ","3.1.2002"," "]
[null,null,null,null,null,null,null,null,null," ","3.1.2003"," "]
[null,null,null,null,null,null,null,null,null," ","3.1.2004"," "]
[null,null,null,null,null,null,null,null,null," ","3.1.2005"," "]
[null,null,null,null,null,null,null,null,null," ","3.1.2006"," "]
[null,null,null,null,null,null,null,null,null," ","3.1.2007"," "]
[null,null,null,null,null,null,null,null,null," ","3.1.2008"," "]
[null,null,null,null,null,null,null,null,null," ","3.12.01"," "]
[null,null,null,null,null,null,null,null,null," ","3.1.2010"," "]
[null,null,null,null,null,null,null,null,null," ","3.1.2011"," "]
[null,null,null,null,null,null,null,null,null," ","3.1.2012"," "]
[null,null,null,null,null,null,null,null,null," ","3.1.2015"," "]
[null,null,null,null,null,null,null,null,null," ","3.1.2016"," "]
[null,null,null,null,null,null,null,null,null," ","3.12.04"," "]
[null,null,null,null,null,null,null,null,null," ","3.12.05"," "]
[null,null,null,null,null,null,null,null,null," ","3.12.05.08"," "]
[null,null,null,null,null,null,null,null,null," ","3.12.08.1"," "]
[null,null,null,null,null,null,null,null,null," ","3.12.09.1"," "]
[null,null,null,null,null,null,null,null,null," ","3.12.09.10"," "]
[null,null,null,null,null,null,null,null,null," ","3.12.2001"," "]
[null,null,null,null,null,null,null,null,null," ","3.12.2004"," "]
[null,null,null,null,null,null,null,null,null," ","3.12.2005"," "]
[null,null,null,null,null,null,null,null,null," ","3.13.01"," "]
[null,null,null,null,null,null,null,null,null," ","3.13.06"," "]
[null,null,null,null,null,null,null,null,null," ","3.13.08",{"$f":"IF($B$7=\"ETE\",J1607,K1607)","v":" "}]
[null,null,null,null,null,null,null,null,null," ","3.13.10"," "]
[null,null,null,null,null,null,null,null,null," ","3.13.15"," "]
[null,null,null,null,null,null,null,null,null," ","3.14.01"," "]
[null,null,null,null,null,null,null,null,null," ","3.14.02"," "]
[null,null,null,null,null,null,null,null,null," ","3.14.06"," "]
[null,null,null,null,null,null,null,null,null," ","3.14.08"," "]
[null,null,null,null,null,null,null,null,null," ","3.14.10"," "]
[null,null,null,null,null,null,null,null,null," ","3.14.12"," "]
[null,null,null,null,null,null,null,null,null," ","3.15.01"," "]
[null,null,null,null,null,null,null,null,null," ","3.15.02"," "]
[null,null,null,null,null,null,null,null,null," ","3.16.01"," "]
[null,null,null,null,null,null,null,null,null," ","3.16.06"," "]
[null,null,null,null,null,null,null,null,null," ","3.16.08"," "]
[null,null,null,null,null,null,null,null,null," ","3.16.10"," "]
[null,null,null,null,null,null,null,null,null," ","3.17.02"," "]
[null,null,null,null,null,null,null,null,null," ","3.17.03"," "]
[null,null,null,null,null,null,null,null,null," ","3.17.04"," "]
[null,null,null,null,null,null,null,null,null," ","3.17.06"," "]
[null,null,null,null,null,null,null,null,null," ","3.17.08"," "]
[null,null,null,null,null,null,null,null,null," ","3.17.10"," "]
[null,null,null,null,null,null,null,null,null," ","3.17.12"," "]
[null,null,null,null,null,null,null,null,null," ","3.18.1.01.10"," "]
[null,null,null,null,null,null,null,null,null," ","3.18.1.03"," "]
[null,null,null,null,null,null,null,null,null," ","3.18.1.03.08"," "]
[null,null,null,null,null,null,null,null,null," ","3.18.1.10"," "]
[null,null,null,null,null,null,null,null,null," ","3.19.01"," "]
[null,null,null,null,null,null,null,null,null," ","3.19.02"," "]
[null,null,null,null,null,null,null,null,null," ","3.19.03"," "]
[null,null,null,null,null,null,null,null,null," ","3.19.04"," "]
[null,null,null,null,null,null,null,null,null," ","3.19.05/A"," "]
[null,null,null,null,null,null,null,null,null," ","3.19.05A,B"," "]
[null,null,null,null,null,null,null,null,null," ","3.19.05/B"," "]
[null,null,null,null,null,null,null,null,null," ","3.19.06"," "]
[null,null,null,null,null,null,null,null,null," ","3.19.07"," "]
[null,null,null,null,null,null,null,null,null," ","3.19.07/A"," "]
[null,null,null,null,null,null,null,null,null," ","3.19.07A"," "]
[null,null,null,null,null,null,null,null,null," ","3.19.07/B"," "]
[null,null,null,null,null,null,null,null,null," ","3.19.07B"," "]
[null,null,null,null,null,null,null,null,null," ","3.19.08"," "]
[null,null,null,null,null,null,null,null,null," ","3.19.10"," "]
[null,null,null,null,null,null,null,null,null," ","3.19.11"," "]
[null,null,null,null,null,null,null,null,null," ","3.19.12"," "]
[null,null,null,null,null,null,null,null,null," ","3.19.13"," "]
[null,null,null,null,null,null,null,null,null," ","3.19.14"," "]
[null,null,null,null,null,null,null,null,null," ","3.19.15"," "]
[null,null,null,null,null,null,null,null,null," ","3.19.16"," "]
[null,null,null,null,null,null,null,null,null," ","3.19.17.08"," "]
[null,null,null,null,null,null,null,null,null," ","32"," "]
[null,null,null,null,null,null,null,null,null," ","3.20.01"," "]
[null,null,null,null,null,null,null,null,null," ","3.20.02"," "]
[null,null,null,null,null,null,null,null,null," ","3.20.03"," "]
[null,null,null,null,null,null,null,null,null," ","3.20.03.01"," "]
[null,null,null,null,null,null,null,null,null," ","3.20.03.08"," "]
[null,null,null,null,null,null,null,null,null," ","3.20.03.10"," "]
[null,null,null,null,null,null,null,null,null," ","3.20.06"," "]
[null,null,null,null,null,null,null,null,null," ","3.20.08.1"," "]
[null,null,null,null,null,null,null,null,null," ","3.20.08.2"," "]
[null,null,null,null,null,null,null,null,null," ","3.20.09"," "]
[null,null,null,null,null,null,null,null,null," ","320/100.00"," "]
[null,null,null,null,null,null,null,null,null," ","320/100.01"," "]
[null,null,null,null,null,null,null,null,null," ","320/100.03"," "]
[null,null,null,null,null,null,null,null,null," ","320/100.06"," "]
[null,null,null,null,null,null,null,null,null," ","320/100.08"," "]
[null,null,null,null,null,null,null,null,null," ","320/100.09",{"$f":"IF($B$7=\"ETE\",J1671,K1671)","v":" "}]
[null,null,null,null,null,null,null,null,null," ","320/100.10"," "]
[null,null,null,null,null,null,null,null,null," ","3.20.10.1"," "]
[null,null,null,null,null,null,null,null,null," ","3.20.10.2"," "]
[null,null,null,null,null,null,null,null,null," ","320/1-03.00"," "]
[null,null,null,null,null,null,null,null,null," ","320/1-03.01"," "]
[null,null,null,null,null,null,null,null,null," ","320/1-05.00"," "]
[null,null,null,null,null,null,null,null,null," ","320/1-05.01"," "]
[null,null,null,null,null,null,null,null,null," ","320/1-05.03"," "]
[null,null,null,null,null,null,null,null,null," ","320/1-05.06"," "]
[null,null,null,null,null,null,null,null,null," ","320/1-05.08"," "]
[null,null,null,null,null,null,null,null,null," ","320/1-05.09"," "]
[null,null,null,null,null,null,null,null,null," ","320/1-05.10"," "]
[null,null,null,null,null,null,null,null,null," ","320/1-17.00"," "]
[null,null,null,null,null,null,null,null,null," ","320/1-17.01"," "]
[null,null,null,null,null,null,null,null,null," ","320/1-17.03"," "]
[null,null,null,null,null,null,null,null,null," ","320/1-17.06"," "]
[null,null,null,null,null,null,null,null,null," ","320/1-17.08"," "]
[null,null,null,null,null,null,null,null,null," ","320/1-17.09"," "]
[null,null,null,null,null,null,null,null,null," ","320/1-17.10"," "]
[null,null,null,null,null,null,null,null,null," ","320/1-18.00"," "]
[null,null,null,null,null,null,null,null,null," ","320/1-18.01"," "]
[null,null,null,null,null,null,null,null,null," ","320/1-18.03"," "]
[null,null,null,null,null,null,null,null,null," ","320/1-18.06"," "]
[null,null,null,null,null,null,null,null,null," ","320/1-18.08"," "]
[null,null,null,null,null,null,null,null,null," ","320/1-18.09"," "]
[null,null,null,null,null,null,null,null,null," ","320/1-18.10"," "]
[null,null,null,null,null,null,null,null,null," ","320/1-20.00"," "]
[null,null,null,null,null,null,null,null,null," ","320/1-20.01"," "]
[null,null,null,null,null,null,null,null,null," ","320/1-20.03"," "]
[null,null,null,null,null,null,null,null,null," ","320/1-20.06"," "]
[null,null,null,null,null,null,null,null,null," ","320/1-20.08"," "]
[null,null,null,null,null,null,null,null,null," ","320/1-20.09"," "]
[null,null,null,null,null,null,null,null,null," ","320/1-20.10"," "]
[null,null,null,null,null,null,null,null,null," ","321/3-03.00"," "]
[null,null,null,null,null,null,null,null,null," ","321/3-03.01"," "]
[null,null,null,null,null,null,null,null,null," ","321/3-03.03"," "]
[null,null,null,null,null,null,null,null,null," ","321/3-03.06"," "]
[null,null,null,null,null,null,null,null,null," ","321/3-03.08"," "]
[null,null,null,null,null,null,null,null,null," ","321/3-03.09"," "]
[null,null,null,null,null,null,null,null,null," ","321/3-03.10"," "]
[null,null,null,null,null,null,null,null,null," ","321/3-03.1.00"," "]
[null,null,null,null,null,null,null,null,null," ","321/3-03.1.01"," "]
[null,null,null,null,null,null,null,null,null," ","321/3-03.1.03"," "]
[null,null,null,null,null,null,null,null,null," ","321/3-03.1.06"," "]
[null,null,null,null,null,null,null,null,null," ","321/3-03.1.08"," "]
[null,null,null,null,null,null,null,null,null," ","321/3-03.1.09"," "]
[null,null,null,null,null,null,null,null,null," ","321/3-03.1.10"," "]
[null,null,null,null,null,null,null,null,null," ","321/4-01.00"," "]
[null,null,null,null,null,null,null,null,null," ","321/4-01.01"," "]
[null,null,null,null,null,null,null,null,null," ","321/4-01.03"," "]
[null,null,null,null,null,null,null,null,null," ","321/4-01.06"," "]
[null,null,null,null,null,null,null,null,null," ","321/4-01.08"," "]
[null,null,null,null,null,null,null,null,null," ","321/4-01.09"," "]
[null,null,null,null,null,null,null,null,null," ","321/4-01.10"," "]
[null,null,null,null,null,null,null,null,null," ","321/4-02.00"," "]
[null,null,null,null,null,null,null,null,null," ","321/4-02.01"," "]
[null,null,null,null,null,null,null,null,null," ","321/4-02.03"," "]
[null,null,null,null,null,null,null,null,null," ","321/4-02.06"," "]
[null,null,null,null,null,null,null,null,null," ","321/4-02.08"," "]
[null,null,null,null,null,null,null,null,null," ","321/4-02.09"," "]
[null,null,null,null,null,null,null,null,null," ","321/4-02.10"," "]
[null,null,null,null,null,null,null,null,null," ","3.2.2001"," "]
[null,null,null,null,null,null,null,null,null," ","3.2.2002"," "]
[null,null,null,null,null,null,null,null,null," ","3.2.2003",{"$f":"IF($B$7=\"ETE\",J1735,K1735)","v":" "}]
[null,null,null,null,null,null,null,null,null," ","3.2.2006"," "]
[null,null,null,null,null,null,null,null,null," ","3.2.2008"," "]
[null,null,null,null,null,null,null,null,null," ","3.22.01"," "]
[null,null,null,null,null,null,null,null,null," ","3.2.2012"," "]
[null,null,null,null,null,null,null,null,null," ","3.2.2015"," "]
[null,null,null,null,null,null,null,null,null," ","3.22.08"," "]
[null,null,null,null,null,null,null,null,null," ","3.22.09"," "]
[null,null,null,null,null,null,null,null,null," ","3.22.09.10"," "]
[null,null,null,null,null,null,null,null,null," ","3.22.10"," "]
[null,null,null,null,null,null,null,null,null," ","3.25.01"," "]
[null,null,null,null,null,null,null,null,null," ","3.25.02"," "]
[null,null,null,null,null,null,null,null,null," ","3.25.03"," "]
[null,null,null,null,null,null,null,null,null," ","3.25.05"," "]
[null,null,null,null,null,null,null,null,null," ","3.25.06"," "]
[null,null,null,null,null,null,null,null,null," ","3.25.08"," "]
[null,null,null,null,null,null,null,null,null," ","3.25.16"," "]
[null,null,null,null,null,null,null,null,null," ","3.25.17"," "]
[null,null,null,null,null,null,null,null,null," ","3.25.18"," "]
[null,null,null,null,null,null,null,null,null," ","3.25.19"," "]
[null,null,null,null,null,null,null,null,null," ","3.29.01"," "]
[null,null,null,null,null,null,null,null,null," ","3.29.02"," "]
[null,null,null,null,null,null,null,null,null," ","3.29.08"," "]
[null,null,null,null,null,null,null,null,null," ","3.29.10"," "]
[null,null,null,null,null,null,null,null,null," ","33"," "]
[null,null,null,null,null,null,null,null,null," ","3.30.01"," "]
[null,null,null,null,null,null,null,null,null," ","3.30.02"," "]
[null,null,null,null,null,null,null,null,null," ","3.30.03"," "]
[null,null,null,null,null,null,null,null,null," ","3.30.04"," "]
[null,null,null,null,null,null,null,null,null," ","3.30.06"," "]
[null,null,null,null,null,null,null,null,null," ","3.30.07"," "]
[null,null,null,null,null,null,null,null,null," ","3.30.10.02"," "]
[null,null,null,null,null,null,null,null,null," ","3.30.10.04"," "]
[null,null,null,null,null,null,null,null,null," ","3.30.10.1"," "]
[null,null,null,null,null,null,null,null,null," ","3.30.10.2"," "]
[null,null,null,null,null,null,null,null,null," ","3.30.10.3"," "]
[null,null,null,null,null,null,null,null,null," ","3.30.10.6"," "]
[null,null,null,null,null,null,null,null,null," ","3.31.01"," "]
[null,null,null,null,null,null,null,null,null," ","3.31.08"," "]
[null,null,null,null,null,null,null,null,null," ","3.31.10"," "]
[null,null,null,null,null,null,null,null,null," ","3.31.12"," "]
[null,null,null,null,null,null,null,null,null," ","3.3.2001"," "]
[null,null,null,null,null,null,null,null,null," ","3.3.2002"," "]
[null,null,null,null,null,null,null,null,null," ","3.3.2003"," "]
[null,null,null,null,null,null,null,null,null," ","3.3.2004"," "]
[null,null,null,null,null,null,null,null,null," ","3.3.2005"," "]
[null,null,null,null,null,null,null,null,null," ","3.3.2006"," "]
[null,null,null,null,null,null,null,null,null," ","3.3.2007"," "]
[null,null,null,null,null,null,null,null,null," ","3.3.2008"," "]
[null,null,null,null,null,null,null,null,null," ","3.3.2010"," "]
[null,null,null,null,null,null,null,null,null," ","3.3.2012"," "]
[null,null,null,null,null,null,null,null,null," ","3.3.2013"," "]
[null,null,null,null,null,null,null,null,null," ","3.3.2015"," "]
[null,null,null,null,null,null,null,null,null," ","3.3.2017"," "]
[null,null,null,null,null,null,null,null,null," ","3.37.01"," "]
[null,null,null,null,null,null,null,null,null," ","3.37.08"," "]
[null,null,null,null,null,null,null,null,null," ","3.38.01"," "]
[null,null,null,null,null,null,null,null,null," ","3.38.03"," "]
[null,null,null,null,null,null,null,null,null," ","3.38.06"," "]
[null,null,null,null,null,null,null,null,null," ","3.38.08"," "]
[null,null,null,null,null,null,null,null,null," ","3.38.10"," "]
[null,null,null,null,null,null,null,null,null," ","3.38.12"," "]
[null,null,null,null,null,null,null,null,null," ","3.38.15"," "]
[null,null,null,null,null,null,null,null,null," ","34"," "]
[null,null,null,null,null,null,null,null,null," ","3,4.A20",{"$f":"IF($B$7=\"ETE\",J1799,K1799)","v":" "}]
[null,null,null,null,null,null,null,null,null," ","3,4.A20.01"," "]
[null,null,null,null,null,null,null,null,null," ","3,4.A20.08"," "]
[null,null,null,null,null,null,null,null,null," ","3,4.A21"," "]
[null,null,null,null,null,null,null,null,null," ","3,4.A21.01"," "]
[null,null,null,null,null,null,null,null,null," ","3,4.A21.08"," "]
[null,null,null,null,null,null,null,null,null," ","3,4.A21.10"," "]
[null,null,null,null,null,null,null,null,null," ","3,4.B5-1"," "]
[null,null,null,null,null,null,null,null,null," ","3.4.B5-1.00"," "]
[null,null,null,null,null,null,null,null,null," ","3,4.B5-1.01"," "]
[null,null,null,null,null,null,null,null,null," ","3.4.B5-1.01"," "]
[null,null,null,null,null,null,null,null,null," ","3.4.B5-1.03"," "]
[null,null,null,null,null,null,null,null,null," ","3.4.B5-1.06"," "]
[null,null,null,null,null,null,null,null,null," ","3,4.B5-1.08"," "]
[null,null,null,null,null,null,null,null,null," ","3.4.B5-1.08"," "]
[null,null,null,null,null,null,null,null,null," ","3.4.B5-1.09"," "]
[null,null,null,null,null,null,null,null,null," ","3,4.B5-1.10"," "]
[null,null,null,null,null,null,null,null,null," ","3.4.B5-1.10"," "]
[null,null,null,null,null,null,null,null,null," ","3.40.01"," "]
[null,null,null,null,null,null,null,null,null," ","3.40.08"," "]
[null,null,null,null,null,null,null,null,null," ","34.01"," "]
[null,null,null,null,null,null,null,null,null," ","3.40.10"," "]
[null,null,null,null,null,null,null,null,null," ","340/1-01.08"," "]
[null,null,null,null,null,null,null,null,null," ","340/1-03.08"," "]
[null,null,null,null,null,null,null,null,null," ","34.08"," "]
[null,null,null,null,null,null,null,null,null," ","3.4.2001"," "]
[null,null,null,null,null,null,null,null,null," ","3.4.2002"," "]
[null,null,null,null,null,null,null,null,null," ","3.4.2003"," "]
[null,null,null,null,null,null,null,null,null," ","3.4.2005"," "]
[null,null,null,null,null,null,null,null,null," ","3.4.2006"," "]
[null,null,null,null,null,null,null,null,null," ","3.4.2007"," "]
[null,null,null,null,null,null,null,null,null," ","3.4.2008"," "]
[null,null,null,null,null,null,null,null,null," ","3.4.2010"," "]
[null,null,null,null,null,null,null,null,null," ","3.4.2011"," "]
[null,null,null,null,null,null,null,null,null," ","3.4.2012"," "]
[null,null,null,null,null,null,null,null,null," ","3.4.2013"," "]
[null,null,null,null,null,null,null,null,null," ","3.4.2014"," "]
[null,null,null,null,null,null,null,null,null," ","3.4.2015"," "]
[null,null,null,null,null,null,null,null,null," ","3.4.2016"," "]
[null,null,null,null,null,null,null,null,null," ","3.4.2017"," "]
[null,null,null,null,null,null,null,null,null," ","3.46.01"," "]
[null,null,null,null,null,null,null,null,null," ","3.46.08"," "]
[null,null,null,null,null,null,null,null,null," ","3.46.10"," "]
[null,null,null,null,null,null,null,null,null," ","35"," "]
[null,null,null,null,null,null,null,null,null," ","35.01"," "]
[null,null,null,null,null,null,null,null,null," ","350/1-01.00"," "]
[null,null,null,null,null,null,null,null,null," ","350/1-01.01"," "]
[null,null,null,null,null,null,null,null,null," ","350/1-01.03"," "]
[null,null,null,null,null,null,null,null,null," ","350/1-01.06"," "]
[null,null,null,null,null,null,null,null,null," ","350/1-01.08"," "]
[null,null,null,null,null,null,null,null,null," ","350/1-01.09"," "]
[null,null,null,null,null,null,null,null,null," ","350/1-01.10"," "]
[null,null,null,null,null,null,null,null,null," ","350/1-02.00"," "]
[null,null,null,null,null,null,null,null,null," ","350/1-02.01"," "]
[null,null,null,null,null,null,null,null,null," ","350/1-02.03"," "]
[null,null,null,null,null,null,null,null,null," ","350/1-02.06"," "]
[null,null,null,null,null,null,null,null,null," ","350/1-02.08"," "]
[null,null,null,null,null,null,null,null,null," ","350/1-02.09"," "]
[null,null,null,null,null,null,null,null,null," ","350/1-02.10"," "]
[null,null,null,null,null,null,null,null,null," ","35.08"," "]
[null,null,null,null,null,null,null,null,null," ","35.10"," "]
[null,null,null,null,null,null,null,null,null," ","3.5.2001"," "]
[null,null,null,null,null,null,null,null,null," ","3.5.2002"," "]
[null,null,null,null,null,null,null,null,null," ","3.5.2007"," "]
[null,null,null,null,null,null,null,null,null," ","3.5.2008",{"$f":"IF($B$7=\"ETE\",J1863,K1863)","v":" "}]
[null,null,null,null,null,null,null,null,null," ","3.5.2010"," "]
[null,null,null,null,null,null,null,null,null," ","355/4-01.00"," "]
[null,null,null,null,null,null,null,null,null," ","355/4-01.01"," "]
[null,null,null,null,null,null,null,null,null," ","355/4-01.03"," "]
[null,null,null,null,null,null,null,null,null," ","355/4-01.06"," "]
[null,null,null,null,null,null,null,null,null," ","355/4-01.08"," "]
[null,null,null,null,null,null,null,null,null," ","355/4-01.09"," "]
[null,null,null,null,null,null,null,null,null," ","355/4-01.10"," "]
[null,null,null,null,null,null,null,null,null," ","36"," "]
[null,null,null,null,null,null,null,null,null," ","36.01"," "]
[null,null,null,null,null,null,null,null,null," ","360/1-01.00"," "]
[null,null,null,null,null,null,null,null,null," ","360/1-01.01"," "]
[null,null,null,null,null,null,null,null,null," ","360/1-01.03"," "]
[null,null,null,null,null,null,null,null,null," ","360/1-01.06"," "]
[null,null,null,null,null,null,null,null,null," ","360/1-01.08"," "]
[null,null,null,null,null,null,null,null,null," ","360/1-01.09"," "]
[null,null,null,null,null,null,null,null,null," ","360/1-01.10"," "]
[null,null,null,null,null,null,null,null,null," ","360/1-11.00"," "]
[null,null,null,null,null,null,null,null,null," ","360/1-11.01"," "]
[null,null,null,null,null,null,null,null,null," ","360/1-11.03"," "]
[null,null,null,null,null,null,null,null,null," ","360/1-11.06"," "]
[null,null,null,null,null,null,null,null,null," ","360/1-11.08"," "]
[null,null,null,null,null,null,null,null,null," ","360/1-11.09"," "]
[null,null,null,null,null,null,null,null,null," ","360/1-11.10"," "]
[null,null,null,null,null,null,null,null,null," ","36.02"," "]
[null,null,null,null,null,null,null,null,null," ","36.02.10"," "]
[null,null,null,null,null,null,null,null,null," ","36.08.1"," "]
[null,null,null,null,null,null,null,null,null," ","36.08.2"," "]
[null,null,null,null,null,null,null,null,null," ","361/1-01.00"," "]
[null,null,null,null,null,null,null,null,null," ","361/1-01.01"," "]
[null,null,null,null,null,null,null,null,null," ","361/1-01.03"," "]
[null,null,null,null,null,null,null,null,null," ","361/1-01.06"," "]
[null,null,null,null,null,null,null,null,null," ","361/1-01.08"," "]
[null,null,null,null,null,null,null,null,null," ","361/1-01.09"," "]
[null,null,null,null,null,null,null,null,null," ","361/1-01.10"," "]
[null,null,null,null,null,null,null,null,null," ","361/1-11.00"," "]
[null,null,null,null,null,null,null,null,null," ","361/1-11.01"," "]
[null,null,null,null,null,null,null,null,null," ","361/1-11.03"," "]
[null,null,null,null,null,null,null,null,null," ","361/1-11.06"," "]
[null,null,null,null,null,null,null,null,null," ","361/1-11.08"," "]
[null,null,null,null,null,null,null,null,null," ","361/1-11.09"," "]
[null,null,null,null,null,null,null,null,null," ","361/1-11.10"," "]
[null,null,null,null,null,null,null,null,null," ","361/3-03.00"," "]
[null,null,null,null,null,null,null,null,null," ","361/3-03.01"," "]
[null,null,null,null,null,null,null,null,null," ","361/3-03.03"," "]
[null,null,null,null,null,null,null,null,null," ","361/3-03.06"," "]
[null,null,null,null,null,null,null,null,null," ","361/3-03.08"," "]
[null,null,null,null,null,null,null,null,null," ","361/3-03.09"," "]
[null,null,null,null,null,null,null,null,null," ","361/3-03.10"," "]
[null,null,null,null,null,null,null,null,null," ","363/1-01.00"," "]
[null,null,null,null,null,null,null,null,null," ","363/1-01.01"," "]
[null,null,null,null,null,null,null,null,null," ","363/1-01.03"," "]
[null,null,null,null,null,null,null,null,null," ","363/1-01.06"," "]
[null,null,null,null,null,null,null,null,null," ","363/1-01.08"," "]
[null,null,null,null,null,null,null,null,null," ","363/1-01.09"," "]
[null,null,null,null,null,null,null,null,null," ","363/1-01.10"," "]
[null,null,null,null,null,null,null,null,null," ","363/1-02.00"," "]
[null,null,null,null,null,null,null,null,null," ","363/1-02.01"," "]
[null,null,null,null,null,null,null,null,null," ","363/1-02.03"," "]
[null,null,null,null,null,null,null,null,null," ","363/1-02.06"," "]
[null,null,null,null,null,null,null,null,null," ","363/1-02.08"," "]
[null,null,null,null,null,null,null,null,null," ","363/1-02.09"," "]
[null,null,null,null,null,null,null,null,null," ","363/1-02.10"," "]
[null,null,null,null,null,null,null,null,null," ","364/1-01.00",{"$f":"IF($B$7=\"ETE\",J1927,K1927)","v":" "}]
[null,null,null,null,null,null,null,null,null," ","364/1-01.01"," "]
[null,null,null,null,null,null,null,null,null," ","364/1-01.03"," "]
[null,null,null,null,null,null,null,null,null," ","364/1-01.06"," "]
[null,null,null,null,null,null,null,null,null," ","364/1-01.08"," "]
[null,null,null,null,null,null,null,null,null," ","364/1-01.09"," "]
[null,null,null,null,null,null,null,null,null," ","364/1-01.10"," "]
[null,null,null,null,null,null,null,null,null," ","367/1-01.00"," "]
[null,null,null,null,null,null,null,null,null," ","367/1-01.01"," "]
[null,null,null,null,null,null,null,null,null," ","367/1-01.03"," "]
[null,null,null,null,null,null,null,null,null," ","367/1-01.06"," "]
[null,null,null,null,null,null,null,null,null," ","367/1-01.08"," "]
[null,null,null,null,null,null,null,null,null," ","367/1-01.09"," "]
[null,null,null,null,null,null,null,null,null," ","367/1-01.10"," "]
[null,null,null,null,null,null,null,null,null," ","368/1-01.00"," "]
[null,null,null,null,null,null,null,null,null," ","368/1-01.01"," "]
[null,null,null,null,null,null,null,null,null," ","368/1-01.03"," "]
[null,null,null,null,null,null,null,null,null," ","368/1-01.06"," "]
[null,null,null,null,null,null,null,null,null," ","368/1-01.08"," "]
[null,null,null,null,null,null,null,null,null," ","368/1-01.09"," "]
[null,null,null,null,null,null,null,null,null," ","368/1-01.10"," "]
[null,null,null,null,null,null,null,null,null," ","368/1-02.03"," "]
[null,null,null,null,null,null,null,null,null," ","368/1-02.06"," "]
[null,null,null,null,null,null,null,null,null," ","368/1-02.08"," "]
[null,null,null,null,null,null,null,null,null," ","368/1-02.09"," "]
[null,null,null,null,null,null,null,null,null," ","368/1-02.10"," "]
[null,null,null,null,null,null,null,null,null," ","368/1-11.03"," "]
[null,null,null,null,null,null,null,null,null," ","368/1-11.06"," "]
[null,null,null,null,null,null,null,null,null," ","368/1-11.08"," "]
[null,null,null,null,null,null,null,null,null," ","368/1-11.09"," "]
[null,null,null,null,null,null,null,null,null," ","368/1-11.10"," "]
[null,null,null,null,null,null,null,null,null," ","37"," "]
[null,null,null,null,null,null,null,null,null," ","37.01"," "]
[null,null,null,null,null,null,null,null,null," ","37.02"," "]
[null,null,null,null,null,null,null,null,null," ","37.04"," "]
[null,null,null,null,null,null,null,null,null," ","37.08"," "]
[null,null,null,null,null,null,null,null,null," ","371/1-01.00"," "]
[null,null,null,null,null,null,null,null,null," ","371/1-01.01"," "]
[null,null,null,null,null,null,null,null,null," ","371/1-01.03"," "]
[null,null,null,null,null,null,null,null,null," ","371/1-01.06"," "]
[null,null,null,null,null,null,null,null,null," ","371/1-01.08"," "]
[null,null,null,null,null,null,null,null,null," ","371/1-01.09"," "]
[null,null,null,null,null,null,null,null,null," ","371/1-01.10"," "]
[null,null,null,null,null,null,null,null,null," ","371/1-11.00"," "]
[null,null,null,null,null,null,null,null,null," ","371/1-11.01"," "]
[null,null,null,null,null,null,null,null,null," ","371/1-11.03"," "]
[null,null,null,null,null,null,null,null,null," ","371/1-11.06"," "]
[null,null,null,null,null,null,null,null,null," ","371/1-11.08"," "]
[null,null,null,null,null,null,null,null,null," ","371/1-11.09"," "]
[null,null,null,null,null,null,null,null,null," ","371/1-11.10"," "]
[null,null,null,null,null,null,null,null,null," ","371/3-03.00"," "]
[null,null,null,null,null,null,null,null,null," ","371/3-03.01"," "]
[null,null,null,null,null,null,null,null,null," ","371/3-03.03"," "]
[null,null,null,null,null,null,null,null,null," ","371/3-03.06"," "]
[null,null,null,null,null,null,null,null,null," ","371/3-03.08"," "]
[null,null,null,null,null,null,null,null,null," ","371/3-03.09"," "]
[null,null,null,null,null,null,null,null,null," ","371/3-03.10"," "]
[null,null,null,null,null,null,null,null,null," ","3.7.2001"," "]
[null,null,null,null,null,null,null,null,null," ","3.7.2002"," "]
[null,null,null,null,null,null,null,null,null," ","3.7.2003"," "]
[null,null,null,null,null,null,null,null,null," ","3.7.2004"," "]
[null,null,null,null,null,null,null,null,null," ","3.7.2005"," "]
[null,null,null,null,null,null,null,null,null," ","3.7.2006"," "]
[null,null,null,null,null,null,null,null,null," ","3.7.2008"," "]
[null,null,null,null,null,null,null,null,null," ","3.7.2009",{"$f":"IF($B$7=\"ETE\",J1991,K1991)","v":" "}]
[null,null,null,null,null,null,null,null,null," ","372/1-01.00"," "]
[null,null,null,null,null,null,null,null,null," ","372/1-01.01"," "]
[null,null,null,null,null,null,null,null,null," ","372/1-01.03"," "]
[null,null,null,null,null,null,null,null,null," ","372/1-01.06"," "]
[null,null,null,null,null,null,null,null,null," ","372/1-01.08"," "]
[null,null,null,null,null,null,null,null,null," ","372/1-01.09"," "]
[null,null,null,null,null,null,null,null,null," ","372/1-01.10"," "]
[null,null,null,null,null,null,null,null,null," ","3.74.01"," "]
[null,null,null,null,null,null,null,null,null," ","3.74.03"," "]
[null,null,null,null,null,null,null,null,null," ","3.74.1"," "]
[null,null,null,null,null,null,null,null,null," ","377/1-01.00"," "]
[null,null,null,null,null,null,null,null,null," ","377/1-01.01"," "]
[null,null,null,null,null,null,null,null,null," ","377/1-01.03"," "]
[null,null,null,null,null,null,null,null,null," ","377/1-01.06"," "]
[null,null,null,null,null,null,null,null,null," ","377/1-01.08"," "]
[null,null,null,null,null,null,null,null,null," ","377/1-01.09"," "]
[null,null,null,null,null,null,null,null,null," ","377/1-01.10"," "]
[null,null,null,null,null,null,null,null,null," ","377/6-02.00"," "]
[null,null,null,null,null,null,null,null,null," ","377/6-02.01"," "]
[null,null,null,null,null,null,null,null,null," ","377/6-02.03"," "]
[null,null,null,null,null,null,null,null,null," ","377/6-02.06"," "]
[null,null,null,null,null,null,null,null,null," ","377/6-02.08"," "]
[null,null,null,null,null,null,null,null,null," ","377/6-02.09"," "]
[null,null,null,null,null,null,null,null,null," ","377/6-02.10"," "]
[null,null,null,null,null,null,null,null,null," ","38"," "]
[null,null,null,null,null,null,null,null,null," ","38.01"," "]
[null,null,null,null,null,null,null,null,null," ","38.03"," "]
[null,null,null,null,null,null,null,null,null," ","38.06"," "]
[null,null,null,null,null,null,null,null,null," ","38.08"," "]
[null,null,null,null,null,null,null,null,null," ","38.10"," "]
[null,null,null,null,null,null,null,null,null," ","381/1-01.00"," "]
[null,null,null,null,null,null,null,null,null," ","381/1-01.01"," "]
[null,null,null,null,null,null,null,null,null," ","381/1-01.03"," "]
[null,null,null,null,null,null,null,null,null," ","381/1-01.06"," "]
[null,null,null,null,null,null,null,null,null," ","381/1-01.08"," "]
[null,null,null,null,null,null,null,null,null," ","381/1-01.09"," "]
[null,null,null,null,null,null,null,null,null," ","381/1-01.10"," "]
[null,null,null,null,null,null,null,null,null," ","381/1-02.00"," "]
[null,null,null,null,null,null,null,null,null," ","381/1-02.01"," "]
[null,null,null,null,null,null,null,null,null," ","381/1-02.03"," "]
[null,null,null,null,null,null,null,null,null," ","381/1-02.06"," "]
[null,null,null,null,null,null,null,null,null," ","381/1-02.08"," "]
[null,null,null,null,null,null,null,null,null," ","381/1-02.09"," "]
[null,null,null,null,null,null,null,null,null," ","381/1-02.10"," "]
[null,null,null,null,null,null,null,null,null," ","38.12"," "]
[null,null,null,null,null,null,null,null,null," ","38.15"," "]
[null,null,null,null,null,null,null,null,null," ","3.8.2002"," "]
[null,null,null,null,null,null,null,null,null," ","3.8.2008"," "]
[null,null,null,null,null,null,null,null,null," ","39"," "]
[null,null,null,null,null,null,null,null,null," ","39.01"," "]
[null,null,null,null,null,null,null,null,null," ","39.08"," "]
[null,null,null,null,null,null,null,null,null," ","39.10"," "]
[null,null,null,null,null,null,null,null,null," ","3.9.2001"," "]
[null,null,null,null,null,null,null,null,null," ","3.9.2002"," "]
[null,null,null,null,null,null,null,null,null," ","3.9.2003"," "]
[null,null,null,null,null,null,null,null,null," ","3.9.2004"," "]
[null,null,null,null,null,null,null,null,null," ","4"," "]
[null,null,null,null,null,null,null,null,null," ","4.A1"," "]
[null,null,null,null,null,null,null,null,null," ","4.A10"," "]
[null,null,null,null,null,null,null,null,null," ","4.A10.01"," "]
[null,null,null,null,null,null,null,null,null," ","4.A10.08"," "]
[null,null,null,null,null,null,null,null,null," ","4.A10.08.01"," "]
[null,null,null,null,null,null,null,null,null," ","4.A1.01"," "]
[null,null,null,null,null,null,null,null,null," ","4.A10.10",{"$f":"IF($B$7=\"ETE\",J2055,K2055)","v":" "}]
[null,null,null,null,null,null,null,null,null," ","4.A10.10.01"," "]
[null,null,null,null,null,null,null,null,null," ","4.A10-2"," "]
[null,null,null,null,null,null,null,null,null," ","4.A10-2.01"," "]
[null,null,null,null,null,null,null,null,null," ","4.A10-2.02"," "]
[null,null,null,null,null,null,null,null,null," ","4.A1.08"," "]
[null,null,null,null,null,null,null,null,null," ","4.A1.10"," "]
[null,null,null,null,null,null,null,null,null," ","4.A12A"," "]
[null,null,null,null,null,null,null,null,null," ","4.A12A.08"," "]
[null,null,null,null,null,null,null,null,null," ","4.A12A.10"," "]
[null,null,null,null,null,null,null,null,null," ","4.A12B"," "]
[null,null,null,null,null,null,null,null,null," ","4.A12B.01"," "]
[null,null,null,null,null,null,null,null,null," ","4.A16-1"," "]
[null,null,null,null,null,null,null,null,null," ","4.A16-1.01"," "]
[null,null,null,null,null,null,null,null,null," ","4.A16-1.08"," "]
[null,null,null,null,null,null,null,null,null," ","4.A16-2"," "]
[null,null,null,null,null,null,null,null,null," ","4.A16-2.01"," "]
[null,null,null,null,null,null,null,null,null," ","4.A21.01"," "]
[null,null,null,null,null,null,null,null,null," ","4.A21.08"," "]
[null,null,null,null,null,null,null,null,null," ","4.A21.10"," "]
[null,null,null,null,null,null,null,null,null," ","4.A23A"," "]
[null,null,null,null,null,null,null,null,null," ","4.A23A.05"," "]
[null,null,null,null,null,null,null,null,null," ","4.A23A.08"," "]
[null,null,null,null,null,null,null,null,null," ","4.A23A.10"," "]
[null,null,null,null,null,null,null,null,null," ","4.A23B"," "]
[null,null,null,null,null,null,null,null,null," ","4.A23B.01"," "]
[null,null,null,null,null,null,null,null,null," ","4.A23B.08"," "]
[null,null,null,null,null,null,null,null,null," ","4.A23B.10"," "]
[null,null,null,null,null,null,null,null,null," ","4.A23C"," "]
[null,null,null,null,null,null,null,null,null," ","4.A23C.01"," "]
[null,null,null,null,null,null,null,null,null," ","4.A23C.08"," "]
[null,null,null,null,null,null,null,null,null," ","4.A23C.10"," "]
[null,null,null,null,null,null,null,null,null," ","4.A23.00"," "]
[null,null,null,null,null,null,null,null,null," ","4.A23.01"," "]
[null,null,null,null,null,null,null,null,null," ","4.A23.03"," "]
[null,null,null,null,null,null,null,null,null," ","4.A23.05"," "]
[null,null,null,null,null,null,null,null,null," ","4.A23.06"," "]
[null,null,null,null,null,null,null,null,null," ","4.A23.08"," "]
[null,null,null,null,null,null,null,null,null," ","4.A23.09"," "]
[null,null,null,null,null,null,null,null,null," ","4.A23.10"," "]
[null,null,null,null,null,null,null,null,null," ","4.A25"," "]
[null,null,null,null,null,null,null,null,null," ","4.A25.08"," "]
[null,null,null,null,null,null,null,null,null," ","4.A25.09"," "]
[null,null,null,null,null,null,null,null,null," ","4.A25.10"," "]
[null,null,null,null,null,null,null,null,null," ","4.A3"," "]
[null,null,null,null,null,null,null,null,null," ","4.A3.01"," "]
[null,null,null,null,null,null,null,null,null," ","4.A4"," "]
[null,null,null,null,null,null,null,null,null," ","4.A4.01"," "]
[null,null,null,null,null,null,null,null,null," ","4.A4.08"," "]
[null,null,null,null,null,null,null,null,null," ","4.A4.10"," "]
[null,null,null,null,null,null,null,null,null," ","4.A5"," "]
[null,null,null,null,null,null,null,null,null," ","4.A5.01"," "]
[null,null,null,null,null,null,null,null,null," ","4.A5.08"," "]
[null,null,null,null,null,null,null,null,null," ","4.A5.10"," "]
[null,null,null,null,null,null,null,null,null," ","4.A7"," "]
[null,null,null,null,null,null,null,null,null," ","4.A7.01"," "]
[null,null,null,null,null,null,null,null,null," ","4.A7.10"," "]
[null,null,null,null,null,null,null,null,null," ","4.A8"," "]
[null,null,null,null,null,null,null,null,null," ","4.A8.01"," "]
[null,null,null,null,null,null,null,null,null," ","4.A8.10"," "]
[null,null,null,null,null,null,null,null,null," ","4.A9"," "]
[null,null,null,null,null,null,null,null,null," ","4.A9.01"," "]
[null,null,null,null,null,null,null,null,null," ","4.A9.02"," "]
[null,null,null,null,null,null,null,null,null," ","4.A9.08"," "]
[null,null,null,null,null,null,null,null,null," ","4.A9.10",{"$f":"IF($B$7=\"ETE\",J2119,K2119)","v":" "}]
[null,null,null,null,null,null,null,null,null," ","4.A9.12"," "]
[null,null,null,null,null,null,null,null,null," ","4.A9.14"," "]
[null,null,null,null,null,null,null,null,null," ","4.B1"," "]
[null,null,null,null,null,null,null,null,null," ","4.B10.08"," "]
[null,null,null,null,null,null,null,null,null," ","4.B1.01"," "]
[null,null,null,null,null,null,null,null,null," ","4.B1.08"," "]
[null,null,null,null,null,null,null,null,null," ","4.B1.10"," "]
[null,null,null,null,null,null,null,null,null," ","4.B13A"," "]
[null,null,null,null,null,null,null,null,null," ","4.B13A.01"," "]
[null,null,null,null,null,null,null,null,null," ","4.B13A.02"," "]
[null,null,null,null,null,null,null,null,null," ","4.B13A.08"," "]
[null,null,null,null,null,null,null,null,null," ","4.B13B"," "]
[null,null,null,null,null,null,null,null,null," ","4.B13B.01"," "]
[null,null,null,null,null,null,null,null,null," ","4.B13B.08"," "]
[null,null,null,null,null,null,null,null,null," ","4.B13B.09"," "]
[null,null,null,null,null,null,null,null,null," ","4.B13B.10"," "]
[null,null,null,null,null,null,null,null,null," ","4.B3"," "]
[null,null,null,null,null,null,null,null,null," ","4.B3.01"," "]
[null,null,null,null,null,null,null,null,null," ","4.B3.08"," "]
[null,null,null,null,null,null,null,null,null," ","4.B3.09"," "]
[null,null,null,null,null,null,null,null,null," ","4.B3.10"," "]
[null,null,null,null,null,null,null,null,null," ","4.B4"," "]
[null,null,null,null,null,null,null,null,null," ","4.B4.01"," "]
[null,null,null,null,null,null,null,null,null," ","4.B4.08"," "]
[null,null,null,null,null,null,null,null,null," ","4.B4.10"," "]
[null,null,null,null,null,null,null,null,null," ","4.B5-1.01"," "]
[null,null,null,null,null,null,null,null,null," ","4.B5-1.08"," "]
[null,null,null,null,null,null,null,null,null," ","4.B5-1.10"," "]
[null,null,null,null,null,null,null,null,null," ","4.B5-2"," "]
[null,null,null,null,null,null,null,null,null," ","4.B5-2.01"," "]
[null,null,null,null,null,null,null,null,null," ","4.B5-2.08"," "]
[null,null,null,null,null,null,null,null,null," ","4.B5-2.10"," "]
[null,null,null,null,null,null,null,null,null," ","4.B5-3"," "]
[null,null,null,null,null,null,null,null,null," ","4.B5-3.01"," "]
[null,null,null,null,null,null,null,null,null," ","4.B5-3.08"," "]
[null,null,null,null,null,null,null,null,null," ","4.B5-3.10"," "]
[null,null,null,null,null,null,null,null,null," ","4.B7.08"," "]
[null,null,null,null,null,null,null,null,null," ","4.I"," "]
[null,null,null,null,null,null,null,null,null," ","4.II"," "]
[null,null,null,null,null,null,null,null,null," ","4.III"," "]
[null,null,null,null,null,null,null,null,null," ","4.V"," "]
[null,null,null,null,null,null,null,null,null," ","4.VI"," "]
[null,null,null,null,null,null,null,null,null," ","4.VII"," "]
[null,null,null,null,null,null,null,null,null," ","4.VIII"," "]
[null,null,null,null,null,null,null,null,null," ","4.X"," "]
[null,null,null,null,null,null,null,null,null," ","4.XI"," "]
[null,null,null,null,null,null,null,null,null," ","4.XII"," "]
[null,null,null,null,null,null,null,null,null," ","40"," "]
[null,null,null,null,null,null,null,null,null," ","40.01"," "]
[null,null,null,null,null,null,null,null,null," ","40.08"," "]
[null,null,null,null,null,null,null,null,null," ","40.10"," "]
[null,null,null,null,null,null,null,null,null," ","401/1-01.00"," "]
[null,null,null,null,null,null,null,null,null," ","401/1-01.01"," "]
[null,null,null,null,null,null,null,null,null," ","401/1-01.03"," "]
[null,null,null,null,null,null,null,null,null," ","401/1-01.06"," "]
[null,null,null,null,null,null,null,null,null," ","401/1-01.08"," "]
[null,null,null,null,null,null,null,null,null," ","401/1-01.09"," "]
[null,null,null,null,null,null,null,null,null," ","401/1-01.10"," "]
[null,null,null,null,null,null,null,null,null," ","401/1-02.00"," "]
[null,null,null,null,null,null,null,null,null," ","401/1-02.01"," "]
[null,null,null,null,null,null,null,null,null," ","401/1-02.03"," "]
[null,null,null,null,null,null,null,null,null," ","401/1-02.06"," "]
[null,null,null,null,null,null,null,null,null," ","401/1-02.08"," "]
[null,null,null,null,null,null,null,null,null," ","401/1-02.09",{"$f":"IF($B$7=\"ETE\",J2183,K2183)","v":" "}]
[null,null,null,null,null,null,null,null,null," ","401/1-02.10"," "]
[null,null,null,null,null,null,null,null,null," ","41"," "]
[null,null,null,null,null,null,null,null,null," ","41.01"," "]
[null,null,null,null,null,null,null,null,null," ","4.10.2004"," "]
[null,null,null,null,null,null,null,null,null," ","41.07"," "]
[null,null,null,null,null,null,null,null,null," ","41.07B"," "]
[null,null,null,null,null,null,null,null,null," ","41.08"," "]
[null,null,null,null,null,null,null,null,null," ","41.10"," "]
[null,null,null,null,null,null,null,null,null," ","41.10A"," "]
[null,null,null,null,null,null,null,null,null," ","41.10B"," "]
[null,null,null,null,null,null,null,null,null," ","42"," "]
[null,null,null,null,null,null,null,null,null," ","42.01"," "]
[null,null,null,null,null,null,null,null,null," ","42.07"," "]
[null,null,null,null,null,null,null,null,null," ","42.08"," "]
[null,null,null,null,null,null,null,null,null," ","42.10"," "]
[null,null,null,null,null,null,null,null,null," ","43"," "]
[null,null,null,null,null,null,null,null,null," ","43.308.01"," "]
[null,null,null,null,null,null,null,null,null," ","43.308.02"," "]
[null,null,null,null,null,null,null,null,null," ","43.308.03"," "]
[null,null,null,null,null,null,null,null,null," ","43.308.04"," "]
[null,null,null,null,null,null,null,null,null," ","43.308.05"," "]
[null,null,null,null,null,null,null,null,null," ","43.308.06"," "]
[null,null,null,null,null,null,null,null,null," ","43.308.07"," "]
[null,null,null,null,null,null,null,null,null," ","43.663.01"," "]
[null,null,null,null,null,null,null,null,null," ","43.663.02"," "]
[null,null,null,null,null,null,null,null,null," ","43.664.01"," "]
[null,null,null,null,null,null,null,null,null," ","43.664.02"," "]
[null,null,null,null,null,null,null,null,null," ","43.664.05"," "]
[null,null,null,null,null,null,null,null,null," ","43.664.06"," "]
[null,null,null,null,null,null,null,null,null," ","43.664.07"," "]
[null,null,null,null,null,null,null,null,null," ","44"," "]
[null,null,null,null,null,null,null,null,null," ","441/1-01.00"," "]
[null,null,null,null,null,null,null,null,null," ","441/1-01.01"," "]
[null,null,null,null,null,null,null,null,null," ","441/1-01.03"," "]
[null,null,null,null,null,null,null,null,null," ","441/1-01.06"," "]
[null,null,null,null,null,null,null,null,null," ","441/1-01.08"," "]
[null,null,null,null,null,null,null,null,null," ","441/1-01.09"," "]
[null,null,null,null,null,null,null,null,null," ","441/1-01.10"," "]
[null,null,null,null,null,null,null,null,null," ","442/1-01.00"," "]
[null,null,null,null,null,null,null,null,null," ","442/1-01.01"," "]
[null,null,null,null,null,null,null,null,null," ","442/1-01.03"," "]
[null,null,null,null,null,null,null,null,null," ","442/1-01.06"," "]
[null,null,null,null,null,null,null,null,null," ","442/1-01.08"," "]
[null,null,null,null,null,null,null,null,null," ","442/1-01.09"," "]
[null,null,null,null,null,null,null,null,null," ","442/1-01.10"," "]
[null,null,null,null,null,null,null,null,null," ","442/3-01.00"," "]
[null,null,null,null,null,null,null,null,null," ","442/3-01.01"," "]
[null,null,null,null,null,null,null,null,null," ","442/3-01.03"," "]
[null,null,null,null,null,null,null,null,null," ","442/3-01.06"," "]
[null,null,null,null,null,null,null,null,null," ","442/3-01.08"," "]
[null,null,null,null,null,null,null,null,null," ","442/3-01.09"," "]
[null,null,null,null,null,null,null,null,null," ","442/3-01.10"," "]
[null,null,null,null,null,null,null,null,null," ","45"," "]
[null,null,null,null,null,null,null,null,null," ","45.01"," "]
[null,null,null,null,null,null,null,null,null," ","45.02"," "]
[null,null,null,null,null,null,null,null,null," ","45.03"," "]
[null,null,null,null,null,null,null,null,null," ","45.04"," "]
[null,null,null,null,null,null,null,null,null," ","45.05"," "]
[null,null,null,null,null,null,null,null,null," ","45.06"," "]
[null,null,null,null,null,null,null,null,null," ","45.07"," "]
[null,null,null,null,null,null,null,null,null," ","45.08"," "]
[null,null,null,null,null,null,null,null,null," ","45.09"," "]
[null,null,null,null,null,null,null,null,null," ","45.10"," "]
[null,null,null,null,null,null,null,null,null," ","4.51.01",{"$f":"IF($B$7=\"ETE\",J2247,K2247)","v":" "}]
[null,null,null,null,null,null,null,null,null," ","4.51.02"," "]
[null,null,null,null,null,null,null,null,null," ","4.51.03"," "]
[null,null,null,null,null,null,null,null,null," ","4.51.04"," "]
[null,null,null,null,null,null,null,null,null," ","4.51.05"," "]
[null,null,null,null,null,null,null,null,null," ","4.51.06"," "]
[null,null,null,null,null,null,null,null,null," ","4.51.07"," "]
[null,null,null,null,null,null,null,null,null," ","4.51.08"," "]
[null,null,null,null,null,null,null,null,null," ","4.51.10"," "]
[null,null,null,null,null,null,null,null,null," ","4.51.11"," "]
[null,null,null,null,null,null,null,null,null," ","4.51.12"," "]
[null,null,null,null,null,null,null,null,null," ","4.51.15"," "]
[null,null,null,null,null,null,null,null,null," ","4.51.16"," "]
[null,null,null,null,null,null,null,null,null," ","4.51.17"," "]
[null,null,null,null,null,null,null,null,null," ","4.52.02"," "]
[null,null,null,null,null,null,null,null,null," ","4.52.03"," "]
[null,null,null,null,null,null,null,null,null," ","4.52.06"," "]
[null,null,null,null,null,null,null,null,null," ","4.52.08"," "]
[null,null,null,null,null,null,null,null,null," ","4.52.12"," "]
[null,null,null,null,null,null,null,null,null," ","4.52.15"," "]
[null,null,null,null,null,null,null,null,null," ","4.53.01"," "]
[null,null,null,null,null,null,null,null,null," ","4.53.02"," "]
[null,null,null,null,null,null,null,null,null," ","4.53.03"," "]
[null,null,null,null,null,null,null,null,null," ","4.53.04"," "]
[null,null,null,null,null,null,null,null,null," ","4.53.05"," "]
[null,null,null,null,null,null,null,null,null," ","4.53.06"," "]
[null,null,null,null,null,null,null,null,null," ","4.53.07"," "]
[null,null,null,null,null,null,null,null,null," ","4.53.08"," "]
[null,null,null,null,null,null,null,null,null," ","4.53.10"," "]
[null,null,null,null,null,null,null,null,null," ","4.53.12"," "]
[null,null,null,null,null,null,null,null,null," ","4.53.13"," "]
[null,null,null,null,null,null,null,null,null," ","4.53.15"," "]
[null,null,null,null,null,null,null,null,null," ","4.53.17"," "]
[null,null,null,null,null,null,null,null,null," ","4.54.01"," "]
[null,null,null,null,null,null,null,null,null," ","4.54.02"," "]
[null,null,null,null,null,null,null,null,null," ","4.54.03"," "]
[null,null,null,null,null,null,null,null,null," ","4.54.05"," "]
[null,null,null,null,null,null,null,null,null," ","4.54.06"," "]
[null,null,null,null,null,null,null,null,null," ","4.54.07"," "]
[null,null,null,null,null,null,null,null,null," ","4.54.08"," "]
[null,null,null,null,null,null,null,null,null," ","4.54.09"," "]
[null,null,null,null,null,null,null,null,null," ","4.54.09.01"," "]
[null,null,null,null,null,null,null,null,null," ","4.54.09.08"," "]
[null,null,null,null,null,null,null,null,null," ","4.54.10"," "]
[null,null,null,null,null,null,null,null,null," ","4.54.10.4"," "]
[null,null,null,null,null,null,null,null,null," ","4.54.11"," "]
[null,null,null,null,null,null,null,null,null," ","4.54.12"," "]
[null,null,null,null,null,null,null,null,null," ","4.54.13"," "]
[null,null,null,null,null,null,null,null,null," ","4.54.14"," "]
[null,null,null,null,null,null,null,null,null," ","4.54.15"," "]
[null,null,null,null,null,null,null,null,null," ","4.54.16"," "]
[null,null,null,null,null,null,null,null,null," ","4.55.01"," "]
[null,null,null,null,null,null,null,null,null," ","4.55.07"," "]
[null,null,null,null,null,null,null,null,null," ","4.55.08"," "]
[null,null,null,null,null,null,null,null,null," ","4.55.10"," "]
[null,null,null,null,null,null,null,null,null," ","4.57.01"," "]
[null,null,null,null,null,null,null,null,null," ","4.57.02"," "]
[null,null,null,null,null,null,null,null,null," ","4.57.08"," "]
[null,null,null,null,null,null,null,null,null," ","4.57.09"," "]
[null,null,null,null,null,null,null,null,null," ","4.57.10"," "]
[null,null,null,null,null,null,null,null,null," ","4.58.02"," "]
[null,null,null,null,null,null,null,null,null," ","4.58.08"," "]
[null,null,null,null,null,null,null,null,null," ","4.58.10.8"," "]
[null,null,null,null,null,null,null,null,null," ","4.58.17"," "]
[null,null,null,null,null,null,null,null,null," ","4.59.1",{"$f":"IF($B$7=\"ETE\",J2311,K2311)","v":" "}]
[null,null,null,null,null,null,null,null,null," ","4.59.1.01"," "]
[null,null,null,null,null,null,null,null,null," ","4.59.1.02"," "]
[null,null,null,null,null,null,null,null,null," ","4.59.1.06"," "]
[null,null,null,null,null,null,null,null,null," ","4.59.1.08"," "]
[null,null,null,null,null,null,null,null,null," ","4.59.1.10"," "]
[null,null,null,null,null,null,null,null,null," ","4.59.1.12"," "]
[null,null,null,null,null,null,null,null,null," ","4.59.1.15"," "]
[null,null,null,null,null,null,null,null,null," ","4.59.3"," "]
[null,null,null,null,null,null,null,null,null," ","4.59.3.01"," "]
[null,null,null,null,null,null,null,null,null," ","4.59.3.02"," "]
[null,null,null,null,null,null,null,null,null," ","4.59.3.08"," "]
[null,null,null,null,null,null,null,null,null," ","4.59.3.10"," "]
[null,null,null,null,null,null,null,null,null," ","46"," "]
[null,null,null,null,null,null,null,null,null," ","4.60.01"," "]
[null,null,null,null,null,null,null,null,null," ","4.60.02"," "]
[null,null,null,null,null,null,null,null,null," ","4.60.03"," "]
[null,null,null,null,null,null,null,null,null," ","4.60.04"," "]
[null,null,null,null,null,null,null,null,null," ","4.60.05"," "]
[null,null,null,null,null,null,null,null,null," ","4.60.06"," "]
[null,null,null,null,null,null,null,null,null," ","4.60.08"," "]
[null,null,null,null,null,null,null,null,null," ","46.01"," "]
[null,null,null,null,null,null,null,null,null," ","4.60.10"," "]
[null,null,null,null,null,null,null,null,null," ","460/1-01.00"," "]
[null,null,null,null,null,null,null,null,null," ","460/1-01.01"," "]
[null,null,null,null,null,null,null,null,null," ","460/1-01.03"," "]
[null,null,null,null,null,null,null,null,null," ","460/1-01.06"," "]
[null,null,null,null,null,null,null,null,null," ","460/1-01.08"," "]
[null,null,null,null,null,null,null,null,null," ","460/1-01.09"," "]
[null,null,null,null,null,null,null,null,null," ","460/1-01.10"," "]
[null,null,null,null,null,null,null,null,null," ","460/1-02.00"," "]
[null,null,null,null,null,null,null,null,null," ","460/1-02.01"," "]
[null,null,null,null,null,null,null,null,null," ","460/1-02.03"," "]
[null,null,null,null,null,null,null,null,null," ","460/1-02.06"," "]
[null,null,null,null,null,null,null,null,null," ","460/1-02.08"," "]
[null,null,null,null,null,null,null,null,null," ","460/1-02.09"," "]
[null,null,null,null,null,null,null,null,null," ","460/1-02.10"," "]
[null,null,null,null,null,null,null,null,null," ","4.60.11"," "]
[null,null,null,null,null,null,null,null,null," ","46.08"," "]
[null,null,null,null,null,null,null,null,null," ","46.10"," "]
[null,null,null,null,null,null,null,null,null," ","4.61.02"," "]
[null,null,null,null,null,null,null,null,null," ","4.61.06"," "]
[null,null,null,null,null,null,null,null,null," ","4.61.07"," "]
[null,null,null,null,null,null,null,null,null," ","4.61.08"," "]
[null,null,null,null,null,null,null,null,null," ","4.61.10"," "]
[null,null,null,null,null,null,null,null,null," ","4.61.11"," "]
[null,null,null,null,null,null,null,null,null," ","4.61.16"," "]
[null,null,null,null,null,null,null,null,null," ","4.62.01"," "]
[null,null,null,null,null,null,null,null,null," ","4.63.01"," "]
[null,null,null,null,null,null,null,null,null," ","4.64.01"," "]
[null,null,null,null,null,null,null,null,null," ","4.64.02"," "]
[null,null,null,null,null,null,null,null,null," ","4.64.06"," "]
[null,null,null,null,null,null,null,null,null," ","4.64.08"," "]
[null,null,null,null,null,null,null,null,null," ","4.64.10"," "]
[null,null,null,null,null,null,null,null,null," ","4.64.12"," "]
[null,null,null,null,null,null,null,null,null," ","4.67.02"," "]
[null,null,null,null,null,null,null,null,null," ","4.67.03"," "]
[null,null,null,null,null,null,null,null,null," ","4.67.04"," "]
[null,null,null,null,null,null,null,null,null," ","4.67.06"," "]
[null,null,null,null,null,null,null,null,null," ","4.67.08"," "]
[null,null,null,null,null,null,null,null,null," ","4.67.10"," "]
[null,null,null,null,null,null,null,null,null," ","4.67.12"," "]
[null,null,null,null,null,null,null,null,null," ","4.69.07"," "]
[null,null,null,null,null,null,null,null,null," ","4.69.07/B"," "]
[null,null,null,null,null,null,null,null,null," ","4.69.07B",{"$f":"IF($B$7=\"ETE\",J2375,K2375)","v":" "}]
[null,null,null,null,null,null,null,null,null," ","4.69.10"," "]
[null,null,null,null,null,null,null,null,null," ","4.69.14"," "]
[null,null,null,null,null,null,null,null,null," ","47"," "]
[null,null,null,null,null,null,null,null,null," ","4.70.01"," "]
[null,null,null,null,null,null,null,null,null," ","4.70.02"," "]
[null,null,null,null,null,null,null,null,null," ","4.70.03"," "]
[null,null,null,null,null,null,null,null,null," ","4.70.03.01"," "]
[null,null,null,null,null,null,null,null,null," ","4.70.03.08"," "]
[null,null,null,null,null,null,null,null,null," ","4.70.03.10"," "]
[null,null,null,null,null,null,null,null,null," ","4.70.06"," "]
[null,null,null,null,null,null,null,null,null," ","4.70.08.1"," "]
[null,null,null,null,null,null,null,null,null," ","4.70.08.2"," "]
[null,null,null,null,null,null,null,null,null," ","4.70.09"," "]
[null,null,null,null,null,null,null,null,null," ","47.01"," "]
[null,null,null,null,null,null,null,null,null," ","4.70.10.1"," "]
[null,null,null,null,null,null,null,null,null," ","4.70.10.2"," "]
[null,null,null,null,null,null,null,null,null," ","47.02"," "]
[null,null,null,null,null,null,null,null,null," ","47.06"," "]
[null,null,null,null,null,null,null,null,null," ","47.08"," "]
[null,null,null,null,null,null,null,null,null," ","47.10"," "]
[null,null,null,null,null,null,null,null,null," ","47.12"," "]
[null,null,null,null,null,null,null,null,null," ","4.75.01"," "]
[null,null,null,null,null,null,null,null,null," ","4.75.08"," "]
[null,null,null,null,null,null,null,null,null," ","4.79.01"," "]
[null,null,null,null,null,null,null,null,null," ","4.79.02"," "]
[null,null,null,null,null,null,null,null,null," ","4.79.08"," "]
[null,null,null,null,null,null,null,null,null," ","4.79.10"," "]
[null,null,null,null,null,null,null,null,null," ","48"," "]
[null,null,null,null,null,null,null,null,null," ","48.01"," "]
[null,null,null,null,null,null,null,null,null," ","48.02"," "]
[null,null,null,null,null,null,null,null,null," ","48.03"," "]
[null,null,null,null,null,null,null,null,null," ","48.04"," "]
[null,null,null,null,null,null,null,null,null," ","48.05"," "]
[null,null,null,null,null,null,null,null,null," ","48.06"," "]
[null,null,null,null,null,null,null,null,null," ","48.07"," "]
[null,null,null,null,null,null,null,null,null," ","48.08.1"," "]
[null,null,null,null,null,null,null,null,null," ","48.08.2"," "]
[null,null,null,null,null,null,null,null,null," ","48.09.1"," "]
[null,null,null,null,null,null,null,null,null," ","48.09.2"," "]
[null,null,null,null,null,null,null,null,null," ","48.10"," "]
[null,null,null,null,null,null,null,null,null," ","48.11"," "]
[null,null,null,null,null,null,null,null,null," ","48.12"," "]
[null,null,null,null,null,null,null,null,null," ","48.15"," "]
[null,null,null,null,null,null,null,null,null," ","48.16"," "]
[null,null,null,null,null,null,null,null,null," ","48.17"," "]
[null,null,null,null,null,null,null,null,null," ","48.18"," "]
[null,null,null,null,null,null,null,null,null," ","48.19"," "]
[null,null,null,null,null,null,null,null,null," ","48.20"," "]
[null,null,null,null,null,null,null,null,null," ","4.90.01"," "]
[null,null,null,null,null,null,null,null,null," ","4.90.08"," "]
[null,null,null,null,null,null,null,null,null," ","4.90.10"," "]
[null,null,null,null,null,null,null,null,null," ","490/1-01.00"," "]
[null,null,null,null,null,null,null,null,null," ","490/1-01.01"," "]
[null,null,null,null,null,null,null,null,null," ","490/1-01.03"," "]
[null,null,null,null,null,null,null,null,null," ","490/1-01.06"," "]
[null,null,null,null,null,null,null,null,null," ","490/1-01.08"," "]
[null,null,null,null,null,null,null,null,null," ","490/1-01.09"," "]
[null,null,null,null,null,null,null,null,null," ","490/1-01.10"," "]
[null,null,null,null,null,null,null,null,null," ","490/1-02.00"," "]
[null,null,null,null,null,null,null,null,null," ","490/1-02.01"," "]
[null,null,null,null,null,null,null,null,null," ","490/1-02.03"," "]
[null,null,null,null,null,null,null,null,null," ","490/1-02.06"," "]
[null,null,null,null,null,null,null,null,null," ","490/1-02.08"," "]
[null,null,null,null,null,null,null,null,null," ","490/1-02.09",{"$f":"IF($B$7=\"ETE\",J2439,K2439)","v":" "}]
[null,null,null,null,null,null,null,null,null," ","490/1-02.10"," "]
[null,null,null,null,null,null,null,null,null," ","5"," "]
[null,null,null,null,null,null,null,null,null," ","5.I"," "]
[null,null,null,null,null,null,null,null,null," ","5.II"," "]
[null,null,null,null,null,null,null,null,null," ","5.III"," "]
[null,null,null,null,null,null,null,null,null," ","5.VII"," "]
[null,null,null,null,null,null,null,null,null," ","5.VIII"," "]
[null,null,null,null,null,null,null,null,null," ","5.X"," "]
[null,null,null,null,null,null,null,null,null," ","50"," "]
[null,null,null,null,null,null,null,null,null," ","51"," "]
[null,null,null,null,null,null,null,null,null," ","51.01"," "]
[null,null,null,null,null,null,null,null,null," ","510/1-01.00"," "]
[null,null,null,null,null,null,null,null,null," ","510/1-01.01"," "]
[null,null,null,null,null,null,null,null,null," ","510/1-01.03"," "]
[null,null,null,null,null,null,null,null,null," ","510/1-01.06"," "]
[null,null,null,null,null,null,null,null,null," ","510/1-01.08"," "]
[null,null,null,null,null,null,null,null,null," ","510/1-01.09"," "]
[null,null,null,null,null,null,null,null,null," ","510/1-01.10"," "]
[null,null,null,null,null,null,null,null,null," ","510/1-02.00"," "]
[null,null,null,null,null,null,null,null,null," ","510/1-02.01"," "]
[null,null,null,null,null,null,null,null,null," ","510/1-02.03"," "]
[null,null,null,null,null,null,null,null,null," ","510/1-02.06"," "]
[null,null,null,null,null,null,null,null,null," ","510/1-02.08"," "]
[null,null,null,null,null,null,null,null,null," ","510/1-02.09"," "]
[null,null,null,null,null,null,null,null,null," ","510/1-02.10"," "]
[null,null,null,null,null,null,null,null,null," ","51.02"," "]
[null,null,null,null,null,null,null,null,null," ","51.03"," "]
[null,null,null,null,null,null,null,null,null," ","51.04"," "]
[null,null,null,null,null,null,null,null,null," ","51.05"," "]
[null,null,null,null,null,null,null,null,null," ","51.06"," "]
[null,null,null,null,null,null,null,null,null," ","51.07"," "]
[null,null,null,null,null,null,null,null,null," ","51.08"," "]
[null,null,null,null,null,null,null,null,null," ","51.10"," "]
[null,null,null,null,null,null,null,null,null," ","51.11"," "]
[null,null,null,null,null,null,null,null,null," ","511/1-01.00"," "]
[null,null,null,null,null,null,null,null,null," ","511/1-01.01"," "]
[null,null,null,null,null,null,null,null,null," ","511/1-01.03"," "]
[null,null,null,null,null,null,null,null,null," ","511/1-01.06"," "]
[null,null,null,null,null,null,null,null,null," ","511/1-01.08"," "]
[null,null,null,null,null,null,null,null,null," ","511/1-01.09"," "]
[null,null,null,null,null,null,null,null,null," ","511/1-01.10"," "]
[null,null,null,null,null,null,null,null,null," ","511/1-02.00"," "]
[null,null,null,null,null,null,null,null,null," ","511/1-02.01"," "]
[null,null,null,null,null,null,null,null,null," ","511/1-02.03"," "]
[null,null,null,null,null,null,null,null,null," ","511/1-02.06"," "]
[null,null,null,null,null,null,null,null,null," ","511/1-02.08"," "]
[null,null,null,null,null,null,null,null,null," ","511/1-02.09"," "]
[null,null,null,null,null,null,null,null,null," ","511/1-02.10"," "]
[null,null,null,null,null,null,null,null,null," ","51.12"," "]
[null,null,null,null,null,null,null,null,null," ","51.15"," "]
[null,null,null,null,null,null,null,null,null," ","51.16"," "]
[null,null,null,null,null,null,null,null,null," ","52"," "]
[null,null,null,null,null,null,null,null,null," ","52.02"," "]
[null,null,null,null,null,null,null,null,null," ","52.03"," "]
[null,null,null,null,null,null,null,null,null," ","52.06"," "]
[null,null,null,null,null,null,null,null,null," ","52.08"," "]
[null,null,null,null,null,null,null,null,null," ","521/1-01.00"," "]
[null,null,null,null,null,null,null,null,null," ","521/1-01.01"," "]
[null,null,null,null,null,null,null,null,null," ","521/1-01.03"," "]
[null,null,null,null,null,null,null,null,null," ","521/1-01.06"," "]
[null,null,null,null,null,null,null,null,null," ","521/1-01.08"," "]
[null,null,null,null,null,null,null,null,null," ","521/1-01.09"," "]
[null,null,null,null,null,null,null,null,null," ","521/1-01.10"," "]
[null,null,null,null,null,null,null,null,null," ","521/1-02.00",{"$f":"IF($B$7=\"ETE\",J2503,K2503)","v":" "}]
[null,null,null,null,null,null,null,null,null," ","521/1-02.01"," "]
[null,null,null,null,null,null,null,null,null," ","521/1-02.03"," "]
[null,null,null,null,null,null,null,null,null," ","521/1-02.06"," "]
[null,null,null,null,null,null,null,null,null," ","521/1-02.08"," "]
[null,null,null,null,null,null,null,null,null," ","521/1-02.09"," "]
[null,null,null,null,null,null,null,null,null," ","521/1-02.10"," "]
[null,null,null,null,null,null,null,null,null," ","521/1-03.00"," "]
[null,null,null,null,null,null,null,null,null," ","521/1-03.08"," "]
[null,null,null,null,null,null,null,null,null," ","521/1-04.00"," "]
[null,null,null,null,null,null,null,null,null," ","521/1-04.08"," "]
[null,null,null,null,null,null,null,null,null," ","521/1-05.08"," "]
[null,null,null,null,null,null,null,null,null," ","52.12"," "]
[null,null,null,null,null,null,null,null,null," ","52.15"," "]
[null,null,null,null,null,null,null,null,null," ","522/1-01.00"," "]
[null,null,null,null,null,null,null,null,null," ","522/1-01.01"," "]
[null,null,null,null,null,null,null,null,null," ","522/1-01.03"," "]
[null,null,null,null,null,null,null,null,null," ","522/1-01.06"," "]
[null,null,null,null,null,null,null,null,null," ","522/1-01.08"," "]
[null,null,null,null,null,null,null,null,null," ","522/1-01.09"," "]
[null,null,null,null,null,null,null,null,null," ","522/1-01.10"," "]
[null,null,null,null,null,null,null,null,null," ","522/1-02.00"," "]
[null,null,null,null,null,null,null,null,null," ","522/1-02.01"," "]
[null,null,null,null,null,null,null,null,null," ","522/1-02.03"," "]
[null,null,null,null,null,null,null,null,null," ","522/1-02.06"," "]
[null,null,null,null,null,null,null,null,null," ","522/1-02.08"," "]
[null,null,null,null,null,null,null,null,null," ","522/1-02.09"," "]
[null,null,null,null,null,null,null,null,null," ","522/1-02.10"," "]
[null,null,null,null,null,null,null,null,null," ","524/1-01.00"," "]
[null,null,null,null,null,null,null,null,null," ","524/1-01.01"," "]
[null,null,null,null,null,null,null,null,null," ","524/1-01.03"," "]
[null,null,null,null,null,null,null,null,null," ","524/1-01.06"," "]
[null,null,null,null,null,null,null,null,null," ","524/1-01.08"," "]
[null,null,null,null,null,null,null,null,null," ","524/1-01.09"," "]
[null,null,null,null,null,null,null,null,null," ","524/1-01.10"," "]
[null,null,null,null,null,null,null,null,null," ","524/1-02.00"," "]
[null,null,null,null,null,null,null,null,null," ","524/1-02.01"," "]
[null,null,null,null,null,null,null,null,null," ","524/1-02.03"," "]
[null,null,null,null,null,null,null,null,null," ","524/1-02.06"," "]
[null,null,null,null,null,null,null,null,null," ","524/1-02.08"," "]
[null,null,null,null,null,null,null,null,null," ","524/1-02.09"," "]
[null,null,null,null,null,null,null,null,null," ","524/1-02.10"," "]
[null,null,null,null,null,null,null,null,null," ","528/3-01.00"," "]
[null,null,null,null,null,null,null,null,null," ","528/3-01.01"," "]
[null,null,null,null,null,null,null,null,null," ","528/3-01.03"," "]
[null,null,null,null,null,null,null,null,null," ","528/3-01.06"," "]
[null,null,null,null,null,null,null,null,null," ","528/3-01.08"," "]
[null,null,null,null,null,null,null,null,null," ","528/3-01.09"," "]
[null,null,null,null,null,null,null,null,null," ","528/3-01.10"," "]
[null,null,null,null,null,null,null,null,null," ","529/1-01.00"," "]
[null,null,null,null,null,null,null,null,null," ","529/1-01.01"," "]
[null,null,null,null,null,null,null,null,null," ","529/1-01.03"," "]
[null,null,null,null,null,null,null,null,null," ","529/1-01.06"," "]
[null,null,null,null,null,null,null,null,null," ","529/1-01.08"," "]
[null,null,null,null,null,null,null,null,null," ","529/1-01.09"," "]
[null,null,null,null,null,null,null,null,null," ","529/1-01.10"," "]
[null,null,null,null,null,null,null,null,null," ","529/1-16.2.00"," "]
[null,null,null,null,null,null,null,null,null," ","529/1-16.2.01"," "]
[null,null,null,null,null,null,null,null,null," ","529/1-16.2.03"," "]
[null,null,null,null,null,null,null,null,null," ","529/1-16.2.06"," "]
[null,null,null,null,null,null,null,null,null," ","529/1-16.2.08"," "]
[null,null,null,null,null,null,null,null,null," ","529/1-16.2.09"," "]
[null,null,null,null,null,null,null,null,null," ","529/1-16.2.10"," "]
[null,null,null,null,null,null,null,null,null," ","53"," "]
[null,null,null,null,null,null,null,null,null," ","53.01",{"$f":"IF($B$7=\"ETE\",J2567,K2567)","v":" "}]
[null,null,null,null,null,null,null,null,null," ","530/1-01.00"," "]
[null,null,null,null,null,null,null,null,null," ","530/1-01.01"," "]
[null,null,null,null,null,null,null,null,null," ","530/1-01.03"," "]
[null,null,null,null,null,null,null,null,null," ","530/1-01.06"," "]
[null,null,null,null,null,null,null,null,null," ","530/1-01.08"," "]
[null,null,null,null,null,null,null,null,null," ","530/1-01.09"," "]
[null,null,null,null,null,null,null,null,null," ","530/1-01.10"," "]
[null,null,null,null,null,null,null,null,null," ","530/1-01.2.00"," "]
[null,null,null,null,null,null,null,null,null," ","530/1-01.2.01"," "]
[null,null,null,null,null,null,null,null,null," ","530/1-01.2.03"," "]
[null,null,null,null,null,null,null,null,null," ","530/1-01.2.06"," "]
[null,null,null,null,null,null,null,null,null," ","530/1-01.2.08"," "]
[null,null,null,null,null,null,null,null,null," ","530/1-01.2.09"," "]
[null,null,null,null,null,null,null,null,null," ","530/1-01.2.10"," "]
[null,null,null,null,null,null,null,null,null," ","530/1-01.3.00"," "]
[null,null,null,null,null,null,null,null,null," ","530/1-01.3.01"," "]
[null,null,null,null,null,null,null,null,null," ","530/1-01.3.03"," "]
[null,null,null,null,null,null,null,null,null," ","530/1-01.3.06"," "]
[null,null,null,null,null,null,null,null,null," ","530/1-01.3.08"," "]
[null,null,null,null,null,null,null,null,null," ","530/1-01.3.09"," "]
[null,null,null,null,null,null,null,null,null," ","530/1-01.3.10"," "]
[null,null,null,null,null,null,null,null,null," ","530/1-02.00"," "]
[null,null,null,null,null,null,null,null,null," ","530/1-02.01"," "]
[null,null,null,null,null,null,null,null,null," ","530/1-02.03"," "]
[null,null,null,null,null,null,null,null,null," ","530/1-02.06"," "]
[null,null,null,null,null,null,null,null,null," ","530/1-02.08"," "]
[null,null,null,null,null,null,null,null,null," ","530/1-02.09"," "]
[null,null,null,null,null,null,null,null,null," ","530/1-02.10"," "]
[null,null,null,null,null,null,null,null,null," ","530/1-02.2.00"," "]
[null,null,null,null,null,null,null,null,null," ","530/1-02.2.01"," "]
[null,null,null,null,null,null,null,null,null," ","530/1-02.2.03"," "]
[null,null,null,null,null,null,null,null,null," ","530/1-02.2.06"," "]
[null,null,null,null,null,null,null,null,null," ","530/1-02.2.08"," "]
[null,null,null,null,null,null,null,null,null," ","530/1-02.2.09"," "]
[null,null,null,null,null,null,null,null,null," ","530/1-02.2.10"," "]
[null,null,null,null,null,null,null,null,null," ","530/1-02.3.00"," "]
[null,null,null,null,null,null,null,null,null," ","530/1-02.3.01"," "]
[null,null,null,null,null,null,null,null,null," ","530/1-02.3.03"," "]
[null,null,null,null,null,null,null,null,null," ","530/1-02.3.06"," "]
[null,null,null,null,null,null,null,null,null," ","530/1-02.3.08"," "]
[null,null,null,null,null,null,null,null,null," ","530/1-02.3.09"," "]
[null,null,null,null,null,null,null,null,null," ","530/1-02.3.10"," "]
[null,null,null,null,null,null,null,null,null," ","530/1-03.00"," "]
[null,null,null,null,null,null,null,null,null," ","530/1-03.01"," "]
[null,null,null,null,null,null,null,null,null," ","530/1-04.00"," "]
[null,null,null,null,null,null,null,null,null," ","530/1-04.01"," "]
[null,null,null,null,null,null,null,null,null," ","53.02"," "]
[null,null,null,null,null,null,null,null,null," ","53.03"," "]
[null,null,null,null,null,null,null,null,null," ","53.04"," "]
[null,null,null,null,null,null,null,null,null," ","53.05"," "]
[null,null,null,null,null,null,null,null,null," ","53.06"," "]
[null,null,null,null,null,null,null,null,null," ","53.07"," "]
[null,null,null,null,null,null,null,null,null," ","53.08"," "]
[null,null,null,null,null,null,null,null,null," ","53.10"," "]
[null,null,null,null,null,null,null,null,null," ","531/1-01.00"," "]
[null,null,null,null,null,null,null,null,null," ","531/1-01.01"," "]
[null,null,null,null,null,null,null,null,null," ","531/1-01.03"," "]
[null,null,null,null,null,null,null,null,null," ","531/1-01.06"," "]
[null,null,null,null,null,null,null,null,null," ","531/1-01.08"," "]
[null,null,null,null,null,null,null,null,null," ","531/1-01.09"," "]
[null,null,null,null,null,null,null,null,null," ","531/1-01.10"," "]
[null,null,null,null,null,null,null,null,null," ","531/1-02.00"," "]
[null,null,null,null,null,null,null,null,null," ","531/1-02.01"," "]
[null,null,null,null,null,null,null,null,null," ","531/1-02.03",{"$f":"IF($B$7=\"ETE\",J2631,K2631)","v":" "}]
[null,null,null,null,null,null,null,null,null," ","531/1-02.06"," "]
[null,null,null,null,null,null,null,null,null," ","531/1-02.08"," "]
[null,null,null,null,null,null,null,null,null," ","531/1-02.10"," "]
[null,null,null,null,null,null,null,null,null," ","531/1-03.00"," "]
[null,null,null,null,null,null,null,null,null," ","531/1-03.01"," "]
[null,null,null,null,null,null,null,null,null," ","531/1-04.00"," "]
[null,null,null,null,null,null,null,null,null," ","531/1-04.01"," "]
[null,null,null,null,null,null,null,null,null," ","53.12"," "]
[null,null,null,null,null,null,null,null,null," ","53.13"," "]
[null,null,null,null,null,null,null,null,null," ","53.15"," "]
[null,null,null,null,null,null,null,null,null," ","53.17"," "]
[null,null,null,null,null,null,null,null,null," ","532/1-01.00"," "]
[null,null,null,null,null,null,null,null,null," ","532/1-01.01"," "]
[null,null,null,null,null,null,null,null,null," ","532/1-01.03"," "]
[null,null,null,null,null,null,null,null,null," ","532/1-01.06"," "]
[null,null,null,null,null,null,null,null,null," ","532/1-01.08"," "]
[null,null,null,null,null,null,null,null,null," ","532/1-01.09"," "]
[null,null,null,null,null,null,null,null,null," ","532/1-01.10"," "]
[null,null,null,null,null,null,null,null,null," ","54"," "]
[null,null,null,null,null,null,null,null,null," ","54.01"," "]
[null,null,null,null,null,null,null,null,null," ","54.02"," "]
[null,null,null,null,null,null,null,null,null," ","54.03"," "]
[null,null,null,null,null,null,null,null,null," ","54.05"," "]
[null,null,null,null,null,null,null,null,null," ","54.06"," "]
[null,null,null,null,null,null,null,null,null," ","54.07"," "]
[null,null,null,null,null,null,null,null,null," ","54.08"," "]
[null,null,null,null,null,null,null,null,null," ","54.10"," "]
[null,null,null,null,null,null,null,null,null," ","54.10.4"," "]
[null,null,null,null,null,null,null,null,null," ","54.11"," "]
[null,null,null,null,null,null,null,null,null," ","54.12"," "]
[null,null,null,null,null,null,null,null,null," ","54.13"," "]
[null,null,null,null,null,null,null,null,null," ","54.14"," "]
[null,null,null,null,null,null,null,null,null," ","54.15"," "]
[null,null,null,null,null,null,null,null,null," ","54.16"," "]
[null,null,null,null,null,null,null,null,null," ","55"," "]
[null,null,null,null,null,null,null,null,null," ","55.01"," "]
[null,null,null,null,null,null,null,null,null," ","55.07"," "]
[null,null,null,null,null,null,null,null,null," ","55.08"," "]
[null,null,null,null,null,null,null,null,null," ","55.10"," "]
[null,null,null,null,null,null,null,null,null," ","561/1-01.00"," "]
[null,null,null,null,null,null,null,null,null," ","561/1-01.01"," "]
[null,null,null,null,null,null,null,null,null," ","561/1-01.03"," "]
[null,null,null,null,null,null,null,null,null," ","561/1-01.06"," "]
[null,null,null,null,null,null,null,null,null," ","561/1-01.08"," "]
[null,null,null,null,null,null,null,null,null," ","561/1-01.09"," "]
[null,null,null,null,null,null,null,null,null," ","561/1-01.10"," "]
[null,null,null,null,null,null,null,null,null," ","561/3-01.00"," "]
[null,null,null,null,null,null,null,null,null," ","561/3-01.01"," "]
[null,null,null,null,null,null,null,null,null," ","561/3-01.03"," "]
[null,null,null,null,null,null,null,null,null," ","561/3-01.06"," "]
[null,null,null,null,null,null,null,null,null," ","561/3-01.08"," "]
[null,null,null,null,null,null,null,null,null," ","561/3-01.09"," "]
[null,null,null,null,null,null,null,null,null," ","561/3-01.10"," "]
[null,null,null,null,null,null,null,null,null," ","562/1-01.00"," "]
[null,null,null,null,null,null,null,null,null," ","562/1-01.01"," "]
[null,null,null,null,null,null,null,null,null," ","562/1-01.03"," "]
[null,null,null,null,null,null,null,null,null," ","562/1-01.06"," "]
[null,null,null,null,null,null,null,null,null," ","562/1-01.08"," "]
[null,null,null,null,null,null,null,null,null," ","562/1-01.09"," "]
[null,null,null,null,null,null,null,null,null," ","562/1-01.10"," "]
[null,null,null,null,null,null,null,null,null," ","57"," "]
[null,null,null,null,null,null,null,null,null," ","57.01"," "]
[null,null,null,null,null,null,null,null,null," ","57.02"," "]
[null,null,null,null,null,null,null,null,null," ","57.08",{"$f":"IF($B$7=\"ETE\",J2695,K2695)","v":" "}]
[null,null,null,null,null,null,null,null,null," ","57.09"," "]
[null,null,null,null,null,null,null,null,null," ","573/4-01.00"," "]
[null,null,null,null,null,null,null,null,null," ","573/4-01.01"," "]
[null,null,null,null,null,null,null,null,null," ","573/4-01.03"," "]
[null,null,null,null,null,null,null,null,null," ","573/4-01.06"," "]
[null,null,null,null,null,null,null,null,null," ","573/4-01.08"," "]
[null,null,null,null,null,null,null,null,null," ","573/4-01.09"," "]
[null,null,null,null,null,null,null,null,null," ","573/4-01.10"," "]
[null,null,null,null,null,null,null,null,null," ","576/4-01.00"," "]
[null,null,null,null,null,null,null,null,null," ","576/4-01.01"," "]
[null,null,null,null,null,null,null,null,null," ","576/4-01.03"," "]
[null,null,null,null,null,null,null,null,null," ","576/4-01.06"," "]
[null,null,null,null,null,null,null,null,null," ","576/4-01.08"," "]
[null,null,null,null,null,null,null,null,null," ","576/4-01.09"," "]
[null,null,null,null,null,null,null,null,null," ","576/4-01.10"," "]
[null,null,null,null,null,null,null,null,null," ","58"," "]
[null,null,null,null,null,null,null,null,null," ","580/1-01.00"," "]
[null,null,null,null,null,null,null,null,null," ","580/1-01.03"," "]
[null,null,null,null,null,null,null,null,null," ","580/1-01.08"," "]
[null,null,null,null,null,null,null,null,null," ","580/1-01.09"," "]
[null,null,null,null,null,null,null,null,null," ","580/1-02.00"," "]
[null,null,null,null,null,null,null,null,null," ","580/1-02.03"," "]
[null,null,null,null,null,null,null,null,null," ","580/1-02.08"," "]
[null,null,null,null,null,null,null,null,null," ","580/1-02.09"," "]
[null,null,null,null,null,null,null,null,null," ","58.02"," "]
[null,null,null,null,null,null,null,null,null," ","58.08"," "]
[null,null,null,null,null,null,null,null,null," ","58.10.8"," "]
[null,null,null,null,null,null,null,null,null," ","581/1-01.00"," "]
[null,null,null,null,null,null,null,null,null," ","581/1-01.01"," "]
[null,null,null,null,null,null,null,null,null," ","581/1-01.03"," "]
[null,null,null,null,null,null,null,null,null," ","581/1-01.06"," "]
[null,null,null,null,null,null,null,null,null," ","581/1-01.08"," "]
[null,null,null,null,null,null,null,null,null," ","581/1-01.09"," "]
[null,null,null,null,null,null,null,null,null," ","581/1-01.10"," "]
[null,null,null,null,null,null,null,null,null," ","581/1-02.00"," "]
[null,null,null,null,null,null,null,null,null," ","581/1-02.01"," "]
[null,null,null,null,null,null,null,null,null," ","581/1-02.03"," "]
[null,null,null,null,null,null,null,null,null," ","581/1-02.06"," "]
[null,null,null,null,null,null,null,null,null," ","581/1-02.08"," "]
[null,null,null,null,null,null,null,null,null," ","581/1-02.09"," "]
[null,null,null,null,null,null,null,null,null," ","581/1-02.10"," "]
[null,null,null,null,null,null,null,null,null," ","581/1-03.00"," "]
[null,null,null,null,null,null,null,null,null," ","581/1-03.01"," "]
[null,null,null,null,null,null,null,null,null," ","581/1-03.03"," "]
[null,null,null,null,null,null,null,null,null," ","581/1-03.06"," "]
[null,null,null,null,null,null,null,null,null," ","581/1-03.08"," "]
[null,null,null,null,null,null,null,null,null," ","581/1-03.09"," "]
[null,null,null,null,null,null,null,null,null," ","581/1-03.10"," "]
[null,null,null,null,null,null,null,null,null," ","581/1-04.00"," "]
[null,null,null,null,null,null,null,null,null," ","581/1-04.01"," "]
[null,null,null,null,null,null,null,null,null," ","581/1-04.03"," "]
[null,null,null,null,null,null,null,null,null," ","581/1-04.06"," "]
[null,null,null,null,null,null,null,null,null," ","581/1-04.08"," "]
[null,null,null,null,null,null,null,null,null," ","581/1-04.09"," "]
[null,null,null,null,null,null,null,null,null," ","581/1-04.10"," "]
[null,null,null,null,null,null,null,null,null," ","581/1-05.00"," "]
[null,null,null,null,null,null,null,null,null," ","581/1-05.01"," "]
[null,null,null,null,null,null,null,null,null," ","581/1-05.03"," "]
[null,null,null,null,null,null,null,null,null," ","581/1-05.06"," "]
[null,null,null,null,null,null,null,null,null," ","581/1-05.08"," "]
[null,null,null,null,null,null,null,null,null," ","581/1-05.09"," "]
[null,null,null,null,null,null,null,null,null," ","581/1-05.10"," "]
[null,null,null,null,null,null,null,null,null," ","581/1-06.00"," "]
[null,null,null,null,null,null,null,null,null," ","581/1-06.01",{"$f":"IF($B$7=\"ETE\",J2759,K2759)","v":" "}]
[null,null,null,null,null,null,null,null,null," ","581/1-06.03"," "]
[null,null,null,null,null,null,null,null,null," ","581/1-06.06"," "]
[null,null,null,null,null,null,null,null,null," ","581/1-06.08"," "]
[null,null,null,null,null,null,null,null,null," ","581/1-06.09"," "]
[null,null,null,null,null,null,null,null,null," ","581/1-06.10"," "]
[null,null,null,null,null,null,null,null,null," ","581/1-07.00"," "]
[null,null,null,null,null,null,null,null,null," ","581/1-07.01"," "]
[null,null,null,null,null,null,null,null,null," ","581/1-07.03"," "]
[null,null,null,null,null,null,null,null,null," ","581/1-07.06"," "]
[null,null,null,null,null,null,null,null,null," ","581/1-07.08"," "]
[null,null,null,null,null,null,null,null,null," ","581/1-07.09"," "]
[null,null,null,null,null,null,null,null,null," ","581/1-07.10"," "]
[null,null,null,null,null,null,null,null,null," ","581/1-08.00"," "]
[null,null,null,null,null,null,null,null,null," ","581/1-08.01"," "]
[null,null,null,null,null,null,null,null,null," ","581/1-08.03"," "]
[null,null,null,null,null,null,null,null,null," ","581/1-08.06"," "]
[null,null,null,null,null,null,null,null,null," ","581/1-08.08"," "]
[null,null,null,null,null,null,null,null,null," ","581/1-08.09"," "]
[null,null,null,null,null,null,null,null,null," ","581/1-08.10"," "]
[null,null,null,null,null,null,null,null,null," ","581/1-09.00"," "]
[null,null,null,null,null,null,null,null,null," ","581/1-09.01"," "]
[null,null,null,null,null,null,null,null,null," ","581/1-09.03"," "]
[null,null,null,null,null,null,null,null,null," ","581/1-09.06"," "]
[null,null,null,null,null,null,null,null,null," ","581/1-09.08"," "]
[null,null,null,null,null,null,null,null,null," ","581/1-09.09"," "]
[null,null,null,null,null,null,null,null,null," ","581/1-09.10"," "]
[null,null,null,null,null,null,null,null,null," ","581/1-10.00"," "]
[null,null,null,null,null,null,null,null,null," ","581/1-10.01"," "]
[null,null,null,null,null,null,null,null,null," ","581/1-10.03"," "]
[null,null,null,null,null,null,null,null,null," ","581/1-10.06"," "]
[null,null,null,null,null,null,null,null,null," ","581/1-10.08"," "]
[null,null,null,null,null,null,null,null,null," ","581/1-10.09"," "]
[null,null,null,null,null,null,null,null,null," ","581/1-10.10"," "]
[null,null,null,null,null,null,null,null,null," ","582/1-01.00"," "]
[null,null,null,null,null,null,null,null,null," ","582/1-01.01"," "]
[null,null,null,null,null,null,null,null,null," ","582/1-01.03"," "]
[null,null,null,null,null,null,null,null,null," ","582/1-01.06"," "]
[null,null,null,null,null,null,null,null,null," ","582/1-01.08"," "]
[null,null,null,null,null,null,null,null,null," ","582/1-01.09"," "]
[null,null,null,null,null,null,null,null,null," ","582/1-01.10"," "]
[null,null,null,null,null,null,null,null,null," ","582/1-02.00"," "]
[null,null,null,null,null,null,null,null,null," ","582/1-02.01"," "]
[null,null,null,null,null,null,null,null,null," ","582/1-02.03"," "]
[null,null,null,null,null,null,null,null,null," ","582/1-02.06"," "]
[null,null,null,null,null,null,null,null,null," ","582/1-02.08"," "]
[null,null,null,null,null,null,null,null,null," ","582/1-02.09"," "]
[null,null,null,null,null,null,null,null,null," ","582/1-02.10"," "]
[null,null,null,null,null,null,null,null,null," ","582/1-03.00"," "]
[null,null,null,null,null,null,null,null,null," ","582/1-03.01"," "]
[null,null,null,null,null,null,null,null,null," ","582/1-03.03"," "]
[null,null,null,null,null,null,null,null,null," ","582/1-03.06"," "]
[null,null,null,null,null,null,null,null,null," ","582/1-03.08"," "]
[null,null,null,null,null,null,null,null,null," ","582/1-03.09"," "]
[null,null,null,null,null,null,null,null,null," ","582/1-03.10"," "]
[null,null,null,null,null,null,null,null,null," ","583/1-01.00"," "]
[null,null,null,null,null,null,null,null,null," ","583/1-01.01"," "]
[null,null,null,null,null,null,null,null,null," ","583/1-01.03"," "]
[null,null,null,null,null,null,null,null,null," ","583/1-01.06"," "]
[null,null,null,null,null,null,null,null,null," ","583/1-01.08"," "]
[null,null,null,null,null,null,null,null,null," ","583/1-01.09"," "]
[null,null,null,null,null,null,null,null,null," ","583/1-01.10"," "]
[null,null,null,null,null,null,null,null,null," ","583/1-02.00"," "]
[null,null,null,null,null,null,null,null,null," ","583/1-02.01"," "]
[null,null,null,null,null,null,null,null,null," ","583/1-02.06",{"$f":"IF($B$7=\"ETE\",J2823,K2823)","v":" "}]
[null,null,null,null,null,null,null,null,null," ","583/1-02.08"," "]
[null,null,null,null,null,null,null,null,null," ","583/1-02.10"," "]
[null,null,null,null,null,null,null,null,null," ","584/1-01.00"," "]
[null,null,null,null,null,null,null,null,null," ","584/1-01.01"," "]
[null,null,null,null,null,null,null,null,null," ","584/1-01.03"," "]
[null,null,null,null,null,null,null,null,null," ","584/1-01.06"," "]
[null,null,null,null,null,null,null,null,null," ","584/1-01.08"," "]
[null,null,null,null,null,null,null,null,null," ","584/1-01.09"," "]
[null,null,null,null,null,null,null,null,null," ","584/1-01.10"," "]
[null,null,null,null,null,null,null,null,null," ","584/1-02.00"," "]
[null,null,null,null,null,null,null,null,null," ","584/1-02.01"," "]
[null,null,null,null,null,null,null,null,null," ","584/1-02.03"," "]
[null,null,null,null,null,null,null,null,null," ","584/1-02.06"," "]
[null,null,null,null,null,null,null,null,null," ","584/1-02.08"," "]
[null,null,null,null,null,null,null,null,null," ","584/1-02.09"," "]
[null,null,null,null,null,null,null,null,null," ","584/1-02.10"," "]
[null,null,null,null,null,null,null,null,null," ","590/1-01.00"," "]
[null,null,null,null,null,null,null,null,null," ","590/1-01.01"," "]
[null,null,null,null,null,null,null,null,null," ","590/1-01.03"," "]
[null,null,null,null,null,null,null,null,null," ","590/1-01.06"," "]
[null,null,null,null,null,null,null,null,null," ","590/1-01.08"," "]
[null,null,null,null,null,null,null,null,null," ","590/1-01.09"," "]
[null,null,null,null,null,null,null,null,null," ","590/1-01.10"," "]
[null,null,null,null,null,null,null,null,null," ","590/1-02.00"," "]
[null,null,null,null,null,null,null,null,null," ","590/1-02.01"," "]
[null,null,null,null,null,null,null,null,null," ","590/1-02.03"," "]
[null,null,null,null,null,null,null,null,null," ","590/1-02.06"," "]
[null,null,null,null,null,null,null,null,null," ","590/1-02.08"," "]
[null,null,null,null,null,null,null,null,null," ","590/1-02.09"," "]
[null,null,null,null,null,null,null,null,null," ","590/1-02.10"," "]
[null,null,null,null,null,null,null,null,null," ","59.1"," "]
[null,null,null,null,null,null,null,null,null," ","59.1.01"," "]
[null,null,null,null,null,null,null,null,null," ","59.1.02"," "]
[null,null,null,null,null,null,null,null,null," ","59.1.06"," "]
[null,null,null,null,null,null,null,null,null," ","59.1.08"," "]
[null,null,null,null,null,null,null,null,null," ","59.1.10"," "]
[null,null,null,null,null,null,null,null,null," ","591/1-01.00"," "]
[null,null,null,null,null,null,null,null,null," ","591/1-01.01"," "]
[null,null,null,null,null,null,null,null,null," ","591/1-01.03"," "]
[null,null,null,null,null,null,null,null,null," ","591/1-01.06"," "]
[null,null,null,null,null,null,null,null,null," ","591/1-01.08"," "]
[null,null,null,null,null,null,null,null,null," ","591/1-01.09"," "]
[null,null,null,null,null,null,null,null,null," ","591/1-01.10"," "]
[null,null,null,null,null,null,null,null,null," ","59.1.12"," "]
[null,null,null,null,null,null,null,null,null," ","59.1.15"," "]
[null,null,null,null,null,null,null,null,null," ","592/1-01.00"," "]
[null,null,null,null,null,null,null,null,null," ","592/1-01.01"," "]
[null,null,null,null,null,null,null,null,null," ","592/1-01.03"," "]
[null,null,null,null,null,null,null,null,null," ","592/1-01.06"," "]
[null,null,null,null,null,null,null,null,null," ","592/1-01.08"," "]
[null,null,null,null,null,null,null,null,null," ","592/1-01.09"," "]
[null,null,null,null,null,null,null,null,null," ","592/1-01.10"," "]
[null,null,null,null,null,null,null,null,null," ","59.3"," "]
[null,null,null,null,null,null,null,null,null," ","59.3.01"," "]
[null,null,null,null,null,null,null,null,null," ","59.3.02"," "]
[null,null,null,null,null,null,null,null,null," ","59.3.08"," "]
[null,null,null,null,null,null,null,null,null," ","59.3.10"," "]
[null,null,null,null,null,null,null,null,null," ","593/1-01.00"," "]
[null,null,null,null,null,null,null,null,null," ","593/1-01.01"," "]
[null,null,null,null,null,null,null,null,null," ","593/1-01.03"," "]
[null,null,null,null,null,null,null,null,null," ","593/1-01.06"," "]
[null,null,null,null,null,null,null,null,null," ","593/1-01.08"," "]
[null,null,null,null,null,null,null,null,null," ","593/1-01.09"," "]
[null,null,null,null,null,null,null,null,null," ","593/1-01.10",{"$f":"IF($B$7=\"ETE\",J2887,K2887)","v":" "}]
[null,null,null,null,null,null,null,null,null," ","593/1-02.00"," "]
[null,null,null,null,null,null,null,null,null," ","593/1-02.01"," "]
[null,null,null,null,null,null,null,null,null," ","593/1-02.03"," "]
[null,null,null,null,null,null,null,null,null," ","593/1-02.06"," "]
[null,null,null,null,null,null,null,null,null," ","593/1-02.08"," "]
[null,null,null,null,null,null,null,null,null," ","593/1-02.09"," "]
[null,null,null,null,null,null,null,null,null," ","593/1-02.10"," "]
[null,null,null,null,null,null,null,null,null," ","593/1-03.00"," "]
[null,null,null,null,null,null,null,null,null," ","593/1-03.01"," "]
[null,null,null,null,null,null,null,null,null," ","593/1-04.00"," "]
[null,null,null,null,null,null,null,null,null," ","593/1-04.01"," "]
[null,null,null,null,null,null,null,null,null," ","6"," "]
[null,null,null,null,null,null,null,null,null," ","6.I"," "]
[null,null,null,null,null,null,null,null,null," ","6.II"," "]
[null,null,null,null,null,null,null,null,null," ","6.III"," "]
[null,null,null,null,null,null,null,null,null," ","60"," "]
[null,null,null,null,null,null,null,null,null," ","60.01"," "]
[null,null,null,null,null,null,null,null,null," ","60.02"," "]
[null,null,null,null,null,null,null,null,null," ","60.03"," "]
[null,null,null,null,null,null,null,null,null," ","60.04"," "]
[null,null,null,null,null,null,null,null,null," ","60.05"," "]
[null,null,null,null,null,null,null,null,null," ","60.08"," "]
[null,null,null,null,null,null,null,null,null," ","60.10"," "]
[null,null,null,null,null,null,null,null,null," ","60.11"," "]
[null,null,null,null,null,null,null,null,null," ","602/010.00"," "]
[null,null,null,null,null,null,null,null,null," ","602/010.01"," "]
[null,null,null,null,null,null,null,null,null," ","602/010.03"," "]
[null,null,null,null,null,null,null,null,null," ","602/010.06"," "]
[null,null,null,null,null,null,null,null,null," ","602/010.08"," "]
[null,null,null,null,null,null,null,null,null," ","602/010.09"," "]
[null,null,null,null,null,null,null,null,null," ","602/010.10"," "]
[null,null,null,null,null,null,null,null,null," ","602/015.00"," "]
[null,null,null,null,null,null,null,null,null," ","602/015.01"," "]
[null,null,null,null,null,null,null,null,null," ","602/020.00"," "]
[null,null,null,null,null,null,null,null,null," ","602/020.01"," "]
[null,null,null,null,null,null,null,null,null," ","602/020.03"," "]
[null,null,null,null,null,null,null,null,null," ","602/020.06"," "]
[null,null,null,null,null,null,null,null,null," ","602/020.08"," "]
[null,null,null,null,null,null,null,null,null," ","602/020.09"," "]
[null,null,null,null,null,null,null,null,null," ","602/020.10"," "]
[null,null,null,null,null,null,null,null,null," ","602/030.00"," "]
[null,null,null,null,null,null,null,null,null," ","602/030.01"," "]
[null,null,null,null,null,null,null,null,null," ","602/030.03"," "]
[null,null,null,null,null,null,null,null,null," ","602/030.06"," "]
[null,null,null,null,null,null,null,null,null," ","602/030.08"," "]
[null,null,null,null,null,null,null,null,null," ","602/030.09"," "]
[null,null,null,null,null,null,null,null,null," ","602/030.10"," "]
[null,null,null,null,null,null,null,null,null," ","602/040.00"," "]
[null,null,null,null,null,null,null,null,null," ","602/040.01"," "]
[null,null,null,null,null,null,null,null,null," ","602/040.03"," "]
[null,null,null,null,null,null,null,null,null," ","602/040.06"," "]
[null,null,null,null,null,null,null,null,null," ","602/040.08"," "]
[null,null,null,null,null,null,null,null,null," ","602/040.09"," "]
[null,null,null,null,null,null,null,null,null," ","602/040.10"," "]
[null,null,null,null,null,null,null,null,null," ","602/050.00"," "]
[null,null,null,null,null,null,null,null,null," ","602/050.01"," "]
[null,null,null,null,null,null,null,null,null," ","602/050.03"," "]
[null,null,null,null,null,null,null,null,null," ","602/050.06"," "]
[null,null,null,null,null,null,null,null,null," ","602/050.08"," "]
[null,null,null,null,null,null,null,null,null," ","602/050.09"," "]
[null,null,null,null,null,null,null,null,null," ","602/050.10"," "]
[null,null,null,null,null,null,null,null,null," ","606/010.00"," "]
[null,null,null,null,null,null,null,null,null," ","606/010.01"," "]
[null,null,null,null,null,null,null,null,null," ","606/010.03",{"$f":"IF($B$7=\"ETE\",J2951,K2951)","v":" "}]
[null,null,null,null,null,null,null,null,null," ","606/010.06"," "]
[null,null,null,null,null,null,null,null,null," ","606/010.08"," "]
[null,null,null,null,null,null,null,null,null," ","606/010.09"," "]
[null,null,null,null,null,null,null,null,null," ","606/010.10"," "]
[null,null,null,null,null,null,null,null,null," ","61"," "]
[null,null,null,null,null,null,null,null,null," ","61.02"," "]
[null,null,null,null,null,null,null,null,null," ","61.06"," "]
[null,null,null,null,null,null,null,null,null," ","61.07"," "]
[null,null,null,null,null,null,null,null,null," ","61.08"," "]
[null,null,null,null,null,null,null,null,null," ","61.10"," "]
[null,null,null,null,null,null,null,null,null," ","61.11"," "]
[null,null,null,null,null,null,null,null,null," ","61.16"," "]
[null,null,null,null,null,null,null,null,null," ","62"," "]
[null,null,null,null,null,null,null,null,null," ","62.01"," "]
[null,null,null,null,null,null,null,null,null," ","63.01"," "]
[null,null,null,null,null,null,null,null,null," ","632/030.00"," "]
[null,null,null,null,null,null,null,null,null," ","632/030.01"," "]
[null,null,null,null,null,null,null,null,null," ","632/030.03"," "]
[null,null,null,null,null,null,null,null,null," ","632/030.06"," "]
[null,null,null,null,null,null,null,null,null," ","632/030.08"," "]
[null,null,null,null,null,null,null,null,null," ","632/030.09"," "]
[null,null,null,null,null,null,null,null,null," ","632/030.10"," "]
[null,null,null,null,null,null,null,null,null," ","632/040A.00"," "]
[null,null,null,null,null,null,null,null,null," ","632/040A.01"," "]
[null,null,null,null,null,null,null,null,null," ","632/040A.03"," "]
[null,null,null,null,null,null,null,null,null," ","632/040A.06"," "]
[null,null,null,null,null,null,null,null,null," ","632/040A.08"," "]
[null,null,null,null,null,null,null,null,null," ","632/040A.09"," "]
[null,null,null,null,null,null,null,null,null," ","632/040A.10"," "]
[null,null,null,null,null,null,null,null,null," ","632/040B.00"," "]
[null,null,null,null,null,null,null,null,null," ","632/040B.01"," "]
[null,null,null,null,null,null,null,null,null," ","632/040B.03"," "]
[null,null,null,null,null,null,null,null,null," ","632/040B.06"," "]
[null,null,null,null,null,null,null,null,null," ","632/040B.08"," "]
[null,null,null,null,null,null,null,null,null," ","632/040B.09"," "]
[null,null,null,null,null,null,null,null,null," ","632/040B.10"," "]
[null,null,null,null,null,null,null,null,null," ","632/050A.00"," "]
[null,null,null,null,null,null,null,null,null," ","632/050A.01"," "]
[null,null,null,null,null,null,null,null,null," ","632/050A.03"," "]
[null,null,null,null,null,null,null,null,null," ","632/050A.06"," "]
[null,null,null,null,null,null,null,null,null," ","632/050A.08"," "]
[null,null,null,null,null,null,null,null,null," ","632/050A.09"," "]
[null,null,null,null,null,null,null,null,null," ","632/050A.10"," "]
[null,null,null,null,null,null,null,null,null," ","632/050B.00"," "]
[null,null,null,null,null,null,null,null,null," ","632/050B.01"," "]
[null,null,null,null,null,null,null,null,null," ","632/050B.03"," "]
[null,null,null,null,null,null,null,null,null," ","632/050B.06"," "]
[null,null,null,null,null,null,null,null,null," ","632/050B.08"," "]
[null,null,null,null,null,null,null,null,null," ","632/050B.09"," "]
[null,null,null,null,null,null,null,null,null," ","632/050B.10"," "]
[null,null,null,null,null,null,null,null,null," ","633/1-01.00"," "]
[null,null,null,null,null,null,null,null,null," ","633/1-01.01"," "]
[null,null,null,null,null,null,null,null,null," ","633/1-01.03"," "]
[null,null,null,null,null,null,null,null,null," ","633/1-01.06"," "]
[null,null,null,null,null,null,null,null,null," ","633/1-01.08"," "]
[null,null,null,null,null,null,null,null,null," ","633/1-01.09"," "]
[null,null,null,null,null,null,null,null,null," ","633/1-01.10"," "]
[null,null,null,null,null,null,null,null,null," ","64"," "]
[null,null,null,null,null,null,null,null,null," ","64.01"," "]
[null,null,null,null,null,null,null,null,null," ","640/1-01.00"," "]
[null,null,null,null,null,null,null,null,null," ","640/1-01.01"," "]
[null,null,null,null,null,null,null,null,null," ","640/1-01.03"," "]
[null,null,null,null,null,null,null,null,null," ","640/1-01.06"," "]
[null,null,null,null,null,null,null,null,null," ","640/1-01.08",{"$f":"IF($B$7=\"ETE\",J3015,K3015)","v":" "}]
[null,null,null,null,null,null,null,null,null," ","640/1-01.09"," "]
[null,null,null,null,null,null,null,null,null," ","640/1-01.10"," "]
[null,null,null,null,null,null,null,null,null," ","64.02"," "]
[null,null,null,null,null,null,null,null,null," ","64.06"," "]
[null,null,null,null,null,null,null,null,null," ","64.08"," "]
[null,null,null,null,null,null,null,null,null," ","64.10"," "]
[null,null,null,null,null,null,null,null,null," ","641/1-01.00"," "]
[null,null,null,null,null,null,null,null,null," ","641/1-01.01"," "]
[null,null,null,null,null,null,null,null,null," ","641/1-01.03"," "]
[null,null,null,null,null,null,null,null,null," ","641/1-01.06"," "]
[null,null,null,null,null,null,null,null,null," ","641/1-01.08"," "]
[null,null,null,null,null,null,null,null,null," ","641/1-01.09"," "]
[null,null,null,null,null,null,null,null,null," ","641/1-01.10"," "]
[null,null,null,null,null,null,null,null,null," ","64.12"," "]
[null,null,null,null,null,null,null,null,null," ","642/1-01.00"," "]
[null,null,null,null,null,null,null,null,null," ","642/1-01.01"," "]
[null,null,null,null,null,null,null,null,null," ","642/1-01.03"," "]
[null,null,null,null,null,null,null,null,null," ","642/1-01.06"," "]
[null,null,null,null,null,null,null,null,null," ","642/1-01.08"," "]
[null,null,null,null,null,null,null,null,null," ","642/1-01.09"," "]
[null,null,null,null,null,null,null,null,null," ","642/1-01.10"," "]
[null,null,null,null,null,null,null,null,null," ","642/3-01.00"," "]
[null,null,null,null,null,null,null,null,null," ","642/3-01.01"," "]
[null,null,null,null,null,null,null,null,null," ","642/3-01.03"," "]
[null,null,null,null,null,null,null,null,null," ","642/3-01.06"," "]
[null,null,null,null,null,null,null,null,null," ","642/3-01.08"," "]
[null,null,null,null,null,null,null,null,null," ","642/3-01.09"," "]
[null,null,null,null,null,null,null,null,null," ","642/3-01.10"," "]
[null,null,null,null,null,null,null,null,null," ","643/1-01.00"," "]
[null,null,null,null,null,null,null,null,null," ","643/1-01.01"," "]
[null,null,null,null,null,null,null,null,null," ","643/1-01.03"," "]
[null,null,null,null,null,null,null,null,null," ","643/1-01.06"," "]
[null,null,null,null,null,null,null,null,null," ","643/1-01.08"," "]
[null,null,null,null,null,null,null,null,null," ","643/1-01.09"," "]
[null,null,null,null,null,null,null,null,null," ","643/1-01.10"," "]
[null,null,null,null,null,null,null,null,null," ","644/1-01.00"," "]
[null,null,null,null,null,null,null,null,null," ","644/1-01.01"," "]
[null,null,null,null,null,null,null,null,null," ","644/1-01.03"," "]
[null,null,null,null,null,null,null,null,null," ","644/1-01.06"," "]
[null,null,null,null,null,null,null,null,null," ","644/1-01.08"," "]
[null,null,null,null,null,null,null,null,null," ","644/1-01.09"," "]
[null,null,null,null,null,null,null,null,null," ","644/1-01.10"," "]
[null,null,null,null,null,null,null,null,null," ","644/1-02.00"," "]
[null,null,null,null,null,null,null,null,null," ","644/1-02.01"," "]
[null,null,null,null,null,null,null,null,null," ","644/1-02.03"," "]
[null,null,null,null,null,null,null,null,null," ","644/1-02.06"," "]
[null,null,null,null,null,null,null,null,null," ","644/1-02.08"," "]
[null,null,null,null,null,null,null,null,null," ","644/1-02.09"," "]
[null,null,null,null,null,null,null,null,null," ","644/1-02.10"," "]
[null,null,null,null,null,null,null,null,null," ","644/1-02.1.00"," "]
[null,null,null,null,null,null,null,null,null," ","644/1-02.1.01"," "]
[null,null,null,null,null,null,null,null,null," ","644/1-02.1.03"," "]
[null,null,null,null,null,null,null,null,null," ","644/1-02.1.06"," "]
[null,null,null,null,null,null,null,null,null," ","644/1-02.1.08"," "]
[null,null,null,null,null,null,null,null,null," ","644/1-02.1.09"," "]
[null,null,null,null,null,null,null,null,null," ","644/1-02.1.10"," "]
[null,null,null,null,null,null,null,null,null," ","644/1-02.2.00"," "]
[null,null,null,null,null,null,null,null,null," ","644/1-02.2.01"," "]
[null,null,null,null,null,null,null,null,null," ","644/1-02.2.03"," "]
[null,null,null,null,null,null,null,null,null," ","644/1-02.2.06"," "]
[null,null,null,null,null,null,null,null,null," ","644/1-02.2.08"," "]
[null,null,null,null,null,null,null,null,null," ","644/1-02.2.09"," "]
[null,null,null,null,null,null,null,null,null," ","644/1-02.2.10"," "]
[null,null,null,null,null,null,null,null,null," ","647/1-01.00",{"$f":"IF($B$7=\"ETE\",J3079,K3079)","v":" "}]
[null,null,null,null,null,null,null,null,null," ","647/1-01.01"," "]
[null,null,null,null,null,null,null,null,null," ","647/1-01.03"," "]
[null,null,null,null,null,null,null,null,null," ","647/1-01.06"," "]
[null,null,null,null,null,null,null,null,null," ","647/1-01.08"," "]
[null,null,null,null,null,null,null,null,null," ","647/1-01.09"," "]
[null,null,null,null,null,null,null,null,null," ","647/1-01.10"," "]
[null,null,null,null,null,null,null,null,null," ","648/1-01.00"," "]
[null,null,null,null,null,null,null,null,null," ","648/1-01.01"," "]
[null,null,null,null,null,null,null,null,null," ","648/1-01.03"," "]
[null,null,null,null,null,null,null,null,null," ","648/1-01.06"," "]
[null,null,null,null,null,null,null,null,null," ","648/1-01.08"," "]
[null,null,null,null,null,null,null,null,null," ","648/1-01.09"," "]
[null,null,null,null,null,null,null,null,null," ","648/1-01.10"," "]
[null,null,null,null,null,null,null,null,null," ","650/1-01.00"," "]
[null,null,null,null,null,null,null,null,null," ","650/1-01.01"," "]
[null,null,null,null,null,null,null,null,null," ","650/1-01.03"," "]
[null,null,null,null,null,null,null,null,null," ","650/1-01.06"," "]
[null,null,null,null,null,null,null,null,null," ","650/1-01.08"," "]
[null,null,null,null,null,null,null,null,null," ","650/1-01.09"," "]
[null,null,null,null,null,null,null,null,null," ","650/1-01.10"," "]
[null,null,null,null,null,null,null,null,null," ","650/1-02.00"," "]
[null,null,null,null,null,null,null,null,null," ","650/1-02.01"," "]
[null,null,null,null,null,null,null,null,null," ","650/1-02.03"," "]
[null,null,null,null,null,null,null,null,null," ","650/1-02.06"," "]
[null,null,null,null,null,null,null,null,null," ","650/1-02.08"," "]
[null,null,null,null,null,null,null,null,null," ","650/1-02.09"," "]
[null,null,null,null,null,null,null,null,null," ","650/1-02.10"," "]
[null,null,null,null,null,null,null,null,null," ","650/1-03.00"," "]
[null,null,null,null,null,null,null,null,null," ","650/1-03.01"," "]
[null,null,null,null,null,null,null,null,null," ","650/1-03.03"," "]
[null,null,null,null,null,null,null,null,null," ","650/1-03.06"," "]
[null,null,null,null,null,null,null,null,null," ","650/1-03.08"," "]
[null,null,null,null,null,null,null,null,null," ","650/1-03.09"," "]
[null,null,null,null,null,null,null,null,null," ","650/1-03.10"," "]
[null,null,null,null,null,null,null,null,null," ","651/1-01.00"," "]
[null,null,null,null,null,null,null,null,null," ","651/1-01.01"," "]
[null,null,null,null,null,null,null,null,null," ","651/1-01.03"," "]
[null,null,null,null,null,null,null,null,null," ","651/1-01.06"," "]
[null,null,null,null,null,null,null,null,null," ","651/1-01.08"," "]
[null,null,null,null,null,null,null,null,null," ","651/1-01.09"," "]
[null,null,null,null,null,null,null,null,null," ","651/1-01.10"," "]
[null,null,null,null,null,null,null,null,null," ","652/1-01.00"," "]
[null,null,null,null,null,null,null,null,null," ","652/1-01.01"," "]
[null,null,null,null,null,null,null,null,null," ","652/1-01.03"," "]
[null,null,null,null,null,null,null,null,null," ","652/1-01.06"," "]
[null,null,null,null,null,null,null,null,null," ","652/1-01.08"," "]
[null,null,null,null,null,null,null,null,null," ","652/1-01.09"," "]
[null,null,null,null,null,null,null,null,null," ","652/1-01.10"," "]
[null,null,null,null,null,null,null,null,null," ","653/1-01.00"," "]
[null,null,null,null,null,null,null,null,null," ","653/1-01.01"," "]
[null,null,null,null,null,null,null,null,null," ","653/1-01.03"," "]
[null,null,null,null,null,null,null,null,null," ","653/1-01.06"," "]
[null,null,null,null,null,null,null,null,null," ","653/1-01.08"," "]
[null,null,null,null,null,null,null,null,null," ","653/1-01.09"," "]
[null,null,null,null,null,null,null,null,null," ","653/1-01.10"," "]
[null,null,null,null,null,null,null,null,null," ","654/1-01.00"," "]
[null,null,null,null,null,null,null,null,null," ","654/1-01.01"," "]
[null,null,null,null,null,null,null,null,null," ","654/1-01.03"," "]
[null,null,null,null,null,null,null,null,null," ","654/1-01.06"," "]
[null,null,null,null,null,null,null,null,null," ","654/1-01.08"," "]
[null,null,null,null,null,null,null,null,null," ","654/1-01.09"," "]
[null,null,null,null,null,null,null,null,null," ","654/1-01.10"," "]
[null,null,null,null,null,null,null,null,null," ","654/1-01.2.00"," "]
[null,null,null,null,null,null,null,null,null," ","654/1-01.2.01",{"$f":"IF($B$7=\"ETE\",J3143,K3143)","v":" "}]
[null,null,null,null,null,null,null,null,null," ","654/1-01.2.03"," "]
[null,null,null,null,null,null,null,null,null," ","654/1-01.2.06"," "]
[null,null,null,null,null,null,null,null,null," ","654/1-01.2.08"," "]
[null,null,null,null,null,null,null,null,null," ","654/1-01.2.09"," "]
[null,null,null,null,null,null,null,null,null," ","654/1-01.2.10"," "]
[null,null,null,null,null,null,null,null,null," ","654/1-02.00"," "]
[null,null,null,null,null,null,null,null,null," ","654/1-02.01"," "]
[null,null,null,null,null,null,null,null,null," ","654/1-02.03"," "]
[null,null,null,null,null,null,null,null,null," ","654/1-02.06"," "]
[null,null,null,null,null,null,null,null,null," ","654/1-02.08"," "]
[null,null,null,null,null,null,null,null,null," ","654/1-02.09"," "]
[null,null,null,null,null,null,null,null,null," ","654/1-02.10"," "]
[null,null,null,null,null,null,null,null,null," ","654/1-11.00"," "]
[null,null,null,null,null,null,null,null,null," ","654/1-11.01"," "]
[null,null,null,null,null,null,null,null,null," ","654/1-11.03"," "]
[null,null,null,null,null,null,null,null,null," ","654/1-11.06"," "]
[null,null,null,null,null,null,null,null,null," ","654/1-11.08"," "]
[null,null,null,null,null,null,null,null,null," ","654/1-11.09"," "]
[null,null,null,null,null,null,null,null,null," ","654/1-11.10"," "]
[null,null,null,null,null,null,null,null,null," ","658/1-01.00"," "]
[null,null,null,null,null,null,null,null,null," ","658/1-01.01"," "]
[null,null,null,null,null,null,null,null,null," ","658/1-01.03"," "]
[null,null,null,null,null,null,null,null,null," ","658/1-01.06"," "]
[null,null,null,null,null,null,null,null,null," ","658/1-01.08"," "]
[null,null,null,null,null,null,null,null,null," ","658/1-01.09"," "]
[null,null,null,null,null,null,null,null,null," ","658/1-01.10"," "]
[null,null,null,null,null,null,null,null,null," ","67"," "]
[null,null,null,null,null,null,null,null,null," ","67.02"," "]
[null,null,null,null,null,null,null,null,null," ","67.03"," "]
[null,null,null,null,null,null,null,null,null," ","67.04"," "]
[null,null,null,null,null,null,null,null,null," ","67.06"," "]
[null,null,null,null,null,null,null,null,null," ","67.08"," "]
[null,null,null,null,null,null,null,null,null," ","67.10"," "]
[null,null,null,null,null,null,null,null,null," ","67.12"," "]
[null,null,null,null,null,null,null,null,null," ","681/1-01.00"," "]
[null,null,null,null,null,null,null,null,null," ","681/1-01.01"," "]
[null,null,null,null,null,null,null,null,null," ","681/1-01.03"," "]
[null,null,null,null,null,null,null,null,null," ","681/1-01.06"," "]
[null,null,null,null,null,null,null,null,null," ","681/1-01.08"," "]
[null,null,null,null,null,null,null,null,null," ","681/1-01.09"," "]
[null,null,null,null,null,null,null,null,null," ","681/1-01.10"," "]
[null,null,null,null,null,null,null,null,null," ","69.07"," "]
[null,null,null,null,null,null,null,null,null," ","69.07B"," "]
[null,null,null,null,null,null,null,null,null," ","69.10"," "]
[null,null,null,null,null,null,null,null,null," ","69.14"," "]
[null,null,null,null,null,null,null,null,null," ","7"," "]
[null,null,null,null,null,null,null,null,null," ","7.I"," "]
[null,null,null,null,null,null,null,null,null," ","7.II"," "]
[null,null,null,null,null,null,null,null,null," ","7.III"," "]
[null,null,null,null,null,null,null,null,null," ","7.IV"," "]
[null,null,null,null,null,null,null,null,null," ","7.IX"," "]
[null,null,null,null,null,null,null,null,null," ","7.V"," "]
[null,null,null,null,null,null,null,null,null," ","7.VI"," "]
[null,null,null,null,null,null,null,null,null," ","7.VIII"," "]
[null,null,null,null,null,null,null,null,null," ","7.XI"," "]
[null,null,null,null,null,null,null,null,null," ","70"," "]
[null,null,null,null,null,null,null,null,null," ","70.01"," "]
[null,null,null,null,null,null,null,null,null," ","700/1-01.00"," "]
[null,null,null,null,null,null,null,null,null," ","700/1-01.01"," "]
[null,null,null,null,null,null,null,null,null," ","700/1-01.03"," "]
[null,null,null,null,null,null,null,null,null," ","700/1-01.06"," "]
[null,null,null,null,null,null,null,null,null," ","700/1-01.08"," "]
[null,null,null,null,null,null,null,null,null," ","700/1-01.09"," "]
[null,null,null,null,null,null,null,null,null," ","700/1-01.10",{"$f":"IF($B$7=\"ETE\",J3207,K3207)","v":" "}]
[null,null,null,null,null,null,null,null,null," ","70.02"," "]
[null,null,null,null,null,null,null,null,null," ","70.03"," "]
[null,null,null,null,null,null,null,null,null," ","70.06"," "]
[null,null,null,null,null,null,null,null,null," ","70.08.1"," "]
[null,null,null,null,null,null,null,null,null," ","70.08.2"," "]
[null,null,null,null,null,null,null,null,null," ","70.09"," "]
[null,null,null,null,null,null,null,null,null," ","70.10.1"," "]
[null,null,null,null,null,null,null,null,null," ","70.10.2"," "]
[null,null,null,null,null,null,null,null,null," ","701/1-01.00"," "]
[null,null,null,null,null,null,null,null,null," ","701/1-01.01"," "]
[null,null,null,null,null,null,null,null,null," ","701/1-01.03"," "]
[null,null,null,null,null,null,null,null,null," ","701/1-01.06"," "]
[null,null,null,null,null,null,null,null,null," ","701/1-01.08"," "]
[null,null,null,null,null,null,null,null,null," ","701/1-01.09"," "]
[null,null,null,null,null,null,null,null,null," ","701/1-01.10"," "]
[null,null,null,null,null,null,null,null,null," ","701/1-02.00"," "]
[null,null,null,null,null,null,null,null,null," ","701/1-02.01"," "]
[null,null,null,null,null,null,null,null,null," ","701/1-02.03"," "]
[null,null,null,null,null,null,null,null,null," ","701/1-02.06"," "]
[null,null,null,null,null,null,null,null,null," ","701/1-02.08"," "]
[null,null,null,null,null,null,null,null,null," ","701/1-02.09"," "]
[null,null,null,null,null,null,null,null,null," ","701/1-02.10"," "]
[null,null,null,null,null,null,null,null,null," ","701/1-03.00"," "]
[null,null,null,null,null,null,null,null,null," ","701/1-03.01"," "]
[null,null,null,null,null,null,null,null,null," ","701/1-03.03"," "]
[null,null,null,null,null,null,null,null,null," ","701/1-03.06"," "]
[null,null,null,null,null,null,null,null,null," ","701/1-03.08"," "]
[null,null,null,null,null,null,null,null,null," ","701/1-03.09"," "]
[null,null,null,null,null,null,null,null,null," ","701/1-03.10"," "]
[null,null,null,null,null,null,null,null,null," ","701/3-01.00"," "]
[null,null,null,null,null,null,null,null,null," ","701/3-01.01"," "]
[null,null,null,null,null,null,null,null,null," ","701/3-01.03"," "]
[null,null,null,null,null,null,null,null,null," ","701/3-01.06"," "]
[null,null,null,null,null,null,null,null,null," ","701/3-01.08"," "]
[null,null,null,null,null,null,null,null,null," ","701/3-01.09"," "]
[null,null,null,null,null,null,null,null,null," ","701/3-01.10"," "]
[null,null,null,null,null,null,null,null,null," ","702/020.00"," "]
[null,null,null,null,null,null,null,null,null," ","702/020.01"," "]
[null,null,null,null,null,null,null,null,null," ","702/020.03"," "]
[null,null,null,null,null,null,null,null,null," ","702/020.06"," "]
[null,null,null,null,null,null,null,null,null," ","702/020.08"," "]
[null,null,null,null,null,null,null,null,null," ","702/020.09"," "]
[null,null,null,null,null,null,null,null,null," ","702/020.10"," "]
[null,null,null,null,null,null,null,null,null," ","702/040.00"," "]
[null,null,null,null,null,null,null,null,null," ","702/040.01"," "]
[null,null,null,null,null,null,null,null,null," ","702/040.03"," "]
[null,null,null,null,null,null,null,null,null," ","702/040.06"," "]
[null,null,null,null,null,null,null,null,null," ","702/040.08"," "]
[null,null,null,null,null,null,null,null,null," ","702/040.09"," "]
[null,null,null,null,null,null,null,null,null," ","702/040.10"," "]
[null,null,null,null,null,null,null,null,null," ","702/1-01.00"," "]
[null,null,null,null,null,null,null,null,null," ","702/1-01.01"," "]
[null,null,null,null,null,null,null,null,null," ","702/1-01.03"," "]
[null,null,null,null,null,null,null,null,null," ","702/1-01.06"," "]
[null,null,null,null,null,null,null,null,null," ","702/1-01.08"," "]
[null,null,null,null,null,null,null,null,null," ","702/1-01.09"," "]
[null,null,null,null,null,null,null,null,null," ","702/1-01.10"," "]
[null,null,null,null,null,null,null,null,null," ","702/140.00"," "]
[null,null,null,null,null,null,null,null,null," ","702/140.01"," "]
[null,null,null,null,null,null,null,null,null," ","702/140.03"," "]
[null,null,null,null,null,null,null,null,null," ","702/140.06"," "]
[null,null,null,null,null,null,null,null,null," ","702/140.08"," "]
[null,null,null,null,null,null,null,null,null," ","702/140.09"," "]
[null,null,null,null,null,null,null,null,null," ","702/140.10",{"$f":"IF($B$7=\"ETE\",J3271,K3271)","v":" "}]
[null,null,null,null,null,null,null,null,null," ","703/020.00"," "]
[null,null,null,null,null,null,null,null,null," ","703/020.01"," "]
[null,null,null,null,null,null,null,null,null," ","703/020.03"," "]
[null,null,null,null,null,null,null,null,null," ","703/020.06"," "]
[null,null,null,null,null,null,null,null,null," ","703/020.08"," "]
[null,null,null,null,null,null,null,null,null," ","703/020.09"," "]
[null,null,null,null,null,null,null,null,null," ","703/020.10"," "]
[null,null,null,null,null,null,null,null,null," ","703/1-01.00"," "]
[null,null,null,null,null,null,null,null,null," ","703/1-01.01"," "]
[null,null,null,null,null,null,null,null,null," ","703/1-01.03"," "]
[null,null,null,null,null,null,null,null,null," ","703/1-01.06"," "]
[null,null,null,null,null,null,null,null,null," ","703/1-01.08"," "]
[null,null,null,null,null,null,null,null,null," ","703/1-01.09"," "]
[null,null,null,null,null,null,null,null,null," ","703/1-01.10"," "]
[null,null,null,null,null,null,null,null,null," ","703/1-02.00"," "]
[null,null,null,null,null,null,null,null,null," ","703/1-02.01"," "]
[null,null,null,null,null,null,null,null,null," ","703/1-02.03"," "]
[null,null,null,null,null,null,null,null,null," ","703/1-02.06"," "]
[null,null,null,null,null,null,null,null,null," ","703/1-02.08"," "]
[null,null,null,null,null,null,null,null,null," ","703/1-02.09"," "]
[null,null,null,null,null,null,null,null,null," ","703/1-02.10"," "]
[null,null,null,null,null,null,null,null,null," ","703/151.00"," "]
[null,null,null,null,null,null,null,null,null," ","703/151.01"," "]
[null,null,null,null,null,null,null,null,null," ","703/151.03"," "]
[null,null,null,null,null,null,null,null,null," ","703/151.06"," "]
[null,null,null,null,null,null,null,null,null," ","703/151.08"," "]
[null,null,null,null,null,null,null,null,null," ","703/151.09"," "]
[null,null,null,null,null,null,null,null,null," ","703/151.10"," "]
[null,null,null,null,null,null,null,null,null," ","704/220.00"," "]
[null,null,null,null,null,null,null,null,null," ","704/220.01"," "]
[null,null,null,null,null,null,null,null,null," ","704/220.03"," "]
[null,null,null,null,null,null,null,null,null," ","704/220.06"," "]
[null,null,null,null,null,null,null,null,null," ","704/220.08"," "]
[null,null,null,null,null,null,null,null,null," ","704/220.09"," "]
[null,null,null,null,null,null,null,null,null," ","704/220.10"," "]
[null,null,null,null,null,null,null,null,null," ","704/221.00"," "]
[null,null,null,null,null,null,null,null,null," ","704/221.08"," "]
[null,null,null,null,null,null,null,null,null," ","7.20.01"," "]
[null,null,null,null,null,null,null,null,null," ","7.20.08"," "]
[null,null,null,null,null,null,null,null,null," ","7.20.09"," "]
[null,null,null,null,null,null,null,null,null," ","7.20.10"," "]
[null,null,null,null,null,null,null,null,null," ","720/150.00"," "]
[null,null,null,null,null,null,null,null,null," ","720/150.01"," "]
[null,null,null,null,null,null,null,null,null," ","720/150.03"," "]
[null,null,null,null,null,null,null,null,null," ","720/150.06"," "]
[null,null,null,null,null,null,null,null,null," ","720/150.08"," "]
[null,null,null,null,null,null,null,null,null," ","720/150.09"," "]
[null,null,null,null,null,null,null,null,null," ","720/150.10"," "]
[null,null,null,null,null,null,null,null,null," ","73"," "]
[null,null,null,null,null,null,null,null,null," ","74"," "]
[null,null,null,null,null,null,null,null,null," ","74.01"," "]
[null,null,null,null,null,null,null,null,null," ","74.03"," "]
[null,null,null,null,null,null,null,null,null," ","74.1"," "]
[null,null,null,null,null,null,null,null,null," ","7.49.01"," "]
[null,null,null,null,null,null,null,null,null," ","7.49.02"," "]
[null,null,null,null,null,null,null,null,null," ","7.49.08"," "]
[null,null,null,null,null,null,null,null,null," ","7.49.10"," "]
[null,null,null,null,null,null,null,null,null," ","75"," "]
[null,null,null,null,null,null,null,null,null," ","75.01"," "]
[null,null,null,null,null,null,null,null,null," ","75.08"," "]
[null,null,null,null,null,null,null,null,null," ","76"," "]
[null,null,null,null,null,null,null,null,null," ","77"," "]
[null,null,null,null,null,null,null,null,null," ","77.08"," "]
[null,null,null,null,null,null,null,null,null," ","77.08.2",{"$f":"IF($B$7=\"ETE\",J3335,K3335)","v":" "}]
[null,null,null,null,null,null,null,null,null," ","780/1-01.00"," "]
[null,null,null,null,null,null,null,null,null," ","780/1-01.01"," "]
[null,null,null,null,null,null,null,null,null," ","780/1-01.03"," "]
[null,null,null,null,null,null,null,null,null," ","780/1-01.06"," "]
[null,null,null,null,null,null,null,null,null," ","780/1-01.08"," "]
[null,null,null,null,null,null,null,null,null," ","780/1-01.09"," "]
[null,null,null,null,null,null,null,null,null," ","780/1-01.10"," "]
[null,null,null,null,null,null,null,null,null," ","780/1-02.00"," "]
[null,null,null,null,null,null,null,null,null," ","780/1-02.01"," "]
[null,null,null,null,null,null,null,null,null," ","780/1-02.03"," "]
[null,null,null,null,null,null,null,null,null," ","780/1-02.06"," "]
[null,null,null,null,null,null,null,null,null," ","780/1-02.08"," "]
[null,null,null,null,null,null,null,null,null," ","780/1-02.09"," "]
[null,null,null,null,null,null,null,null,null," ","780/1-02.10"," "]
[null,null,null,null,null,null,null,null,null," ","780/1-03.00"," "]
[null,null,null,null,null,null,null,null,null," ","780/1-03.01"," "]
[null,null,null,null,null,null,null,null,null," ","780/1-03.03"," "]
[null,null,null,null,null,null,null,null,null," ","780/1-03.06"," "]
[null,null,null,null,null,null,null,null,null," ","780/1-03.08"," "]
[null,null,null,null,null,null,null,null,null," ","780/1-03.09"," "]
[null,null,null,null,null,null,null,null,null," ","780/1-03.10"," "]
[null,null,null,null,null,null,null,null,null," ","780/1-04.00"," "]
[null,null,null,null,null,null,null,null,null," ","780/1-04.01"," "]
[null,null,null,null,null,null,null,null,null," ","780/1-04.03"," "]
[null,null,null,null,null,null,null,null,null," ","780/1-04.06"," "]
[null,null,null,null,null,null,null,null,null," ","780/1-04.08"," "]
[null,null,null,null,null,null,null,null,null," ","780/1-04.09"," "]
[null,null,null,null,null,null,null,null,null," ","780/1-04.10"," "]
[null,null,null,null,null,null,null,null,null," ","79"," "]
[null,null,null,null,null,null,null,null,null," ","79.01"," "]
[null,null,null,null,null,null,null,null,null," ","79.02"," "]
[null,null,null,null,null,null,null,null,null," ","79.08"," "]
[null,null,null,null,null,null,null,null,null," ","79.10"," "]
[null,null,null,null,null,null,null,null,null," ","794/1-01.00"," "]
[null,null,null,null,null,null,null,null,null," ","8"," "]
[null,null,null,null,null,null,null,null,null," ","8.II"," "]
[null,null,null,null,null,null,null,null,null," ","8.VIII"," "]
[null,null,null,null,null,null,null,null,null," ","8.XI"," "]
[null,null,null,null,null,null,null,null,null," ","8.XII"," "]
[null,null,null,null,null,null,null,null,null," ","80"," "]
[null,null,null,null,null,null,null,null,null," ","800/0-00.00"," "]
[null,null,null,null,null,null,null,null,null," ","80.01"," "]
[null,null,null,null,null,null,null,null,null," ","800/1-01.00"," "]
[null,null,null,null,null,null,null,null,null," ","800/1-01.01"," "]
[null,null,null,null,null,null,null,null,null," ","800/1-01.03"," "]
[null,null,null,null,null,null,null,null,null," ","800/1-01.06"," "]
[null,null,null,null,null,null,null,null,null," ","800/1-01.08"," "]
[null,null,null,null,null,null,null,null,null," ","800/1-01.09"," "]
[null,null,null,null,null,null,null,null,null," ","800/1-01.10"," "]
[null,null,null,null,null,null,null,null,null," ","800/1-02.00"," "]
[null,null,null,null,null,null,null,null,null," ","800/1-02.01"," "]
[null,null,null,null,null,null,null,null,null," ","800/1-02.03"," "]
[null,null,null,null,null,null,null,null,null," ","800/1-02.06"," "]
[null,null,null,null,null,null,null,null,null," ","800/1-02.08"," "]
[null,null,null,null,null,null,null,null,null," ","800/1-02.09"," "]
[null,null,null,null,null,null,null,null,null," ","800/1-02.10"," "]
[null,null,null,null,null,null,null,null,null," ","80.01.2"," "]
[null,null,null,null,null,null,null,null,null," ","80.01.3-5"," "]
[null,null,null,null,null,null,null,null,null," ","80.03"," "]
[null,null,null,null,null,null,null,null,null," ","80.04"," "]
[null,null,null,null,null,null,null,null,null," ","80.08"," "]
[null,null,null,null,null,null,null,null,null," ","80.09"," "]
[null,null,null,null,null,null,null,null,null," ","801/1-01.00"," "]
[null,null,null,null,null,null,null,null,null," ","801/1-01.01",{"$f":"IF($B$7=\"ETE\",J3399,K3399)","v":" "}]
[null,null,null,null,null,null,null,null,null," ","801/1-01.03"," "]
[null,null,null,null,null,null,null,null,null," ","801/1-01.06"," "]
[null,null,null,null,null,null,null,null,null," ","801/1-01.08"," "]
[null,null,null,null,null,null,null,null,null," ","801/1-01.09"," "]
[null,null,null,null,null,null,null,null,null," ","801/1-01.10"," "]
[null,null,null,null,null,null,null,null,null," ","801/1-02.00"," "]
[null,null,null,null,null,null,null,null,null," ","801/1-02.01"," "]
[null,null,null,null,null,null,null,null,null," ","801/1-02.03"," "]
[null,null,null,null,null,null,null,null,null," ","801/1-02.06"," "]
[null,null,null,null,null,null,null,null,null," ","801/1-02.08"," "]
[null,null,null,null,null,null,null,null,null," ","801/1-02.09"," "]
[null,null,null,null,null,null,null,null,null," ","801/1-02.10"," "]
[null,null,null,null,null,null,null,null,null," ","801/1-03.00"," "]
[null,null,null,null,null,null,null,null,null," ","801/1-03.01"," "]
[null,null,null,null,null,null,null,null,null," ","801/1-03.03"," "]
[null,null,null,null,null,null,null,null,null," ","801/1-03.06"," "]
[null,null,null,null,null,null,null,null,null," ","801/1-03.08"," "]
[null,null,null,null,null,null,null,null,null," ","801/1-03.09"," "]
[null,null,null,null,null,null,null,null,null," ","801/1-03.10"," "]
[null,null,null,null,null,null,null,null,null," ","801/1-04.00"," "]
[null,null,null,null,null,null,null,null,null," ","801/1-04.01"," "]
[null,null,null,null,null,null,null,null,null," ","801/1-04.03"," "]
[null,null,null,null,null,null,null,null,null," ","801/1-04.06"," "]
[null,null,null,null,null,null,null,null,null," ","801/1-04.08"," "]
[null,null,null,null,null,null,null,null,null," ","801/1-04.09"," "]
[null,null,null,null,null,null,null,null,null," ","801/1-04.10"," "]
[null,null,null,null,null,null,null,null,null," ","803/1-01.00"," "]
[null,null,null,null,null,null,null,null,null," ","803/1-01.01"," "]
[null,null,null,null,null,null,null,null,null," ","803/1-01.03"," "]
[null,null,null,null,null,null,null,null,null," ","803/1-01.06"," "]
[null,null,null,null,null,null,null,null,null," ","803/1-01.08"," "]
[null,null,null,null,null,null,null,null,null," ","803/1-01.09"," "]
[null,null,null,null,null,null,null,null,null," ","803/1-01.10"," "]
[null,null,null,null,null,null,null,null,null," ","803/1-02.00"," "]
[null,null,null,null,null,null,null,null,null," ","803/1-02.01"," "]
[null,null,null,null,null,null,null,null,null," ","803/1-02.03"," "]
[null,null,null,null,null,null,null,null,null," ","803/1-02.06"," "]
[null,null,null,null,null,null,null,null,null," ","803/1-02.08"," "]
[null,null,null,null,null,null,null,null,null," ","803/1-02.09"," "]
[null,null,null,null,null,null,null,null,null," ","803/1-02.10"," "]
[null,null,null,null,null,null,null,null,null," ","804/1-01.00"," "]
[null,null,null,null,null,null,null,null,null," ","804/1-01.01"," "]
[null,null,null,null,null,null,null,null,null," ","804/1-01.03"," "]
[null,null,null,null,null,null,null,null,null," ","804/1-01.06"," "]
[null,null,null,null,null,null,null,null,null," ","804/1-01.08"," "]
[null,null,null,null,null,null,null,null,null," ","804/1-01.09"," "]
[null,null,null,null,null,null,null,null,null," ","804/1-01.10"," "]
[null,null,null,null,null,null,null,null,null," ","804/1-02.00"," "]
[null,null,null,null,null,null,null,null,null," ","804/1-02.01"," "]
[null,null,null,null,null,null,null,null,null," ","804/1-02.03"," "]
[null,null,null,null,null,null,null,null,null," ","804/1-02.06"," "]
[null,null,null,null,null,null,null,null,null," ","804/1-02.08"," "]
[null,null,null,null,null,null,null,null,null," ","804/1-02.09"," "]
[null,null,null,null,null,null,null,null,null," ","804/1-02.10"," "]
[null,null,null,null,null,null,null,null,null," ","805/1-01.00"," "]
[null,null,null,null,null,null,null,null,null," ","805/1-01.01"," "]
[null,null,null,null,null,null,null,null,null," ","805/1-01.03"," "]
[null,null,null,null,null,null,null,null,null," ","805/1-01.06"," "]
[null,null,null,null,null,null,null,null,null," ","805/1-01.08"," "]
[null,null,null,null,null,null,null,null,null," ","805/1-01.09"," "]
[null,null,null,null,null,null,null,null,null," ","805/1-01.10"," "]
[null,null,null,null,null,null,null,null,null," ","805/1-02.00"," "]
[null,null,null,null,null,null,null,null,null," ","805/1-02.01"," "]
[null,null,null,null,null,null,null,null,null," ","805/1-02.03",{"$f":"IF($B$7=\"ETE\",J3463,K3463)","v":" "}]
[null,null,null,null,null,null,null,null,null," ","805/1-02.06"," "]
[null,null,null,null,null,null,null,null,null," ","805/1-02.08"," "]
[null,null,null,null,null,null,null,null,null," ","805/1-02.09"," "]
[null,null,null,null,null,null,null,null,null," ","805/1-02.10"," "]
[null,null,null,null,null,null,null,null,null," ","806/1-01.00"," "]
[null,null,null,null,null,null,null,null,null," ","806/1-01.01"," "]
[null,null,null,null,null,null,null,null,null," ","806/1-01.03"," "]
[null,null,null,null,null,null,null,null,null," ","806/1-01.06"," "]
[null,null,null,null,null,null,null,null,null," ","806/1-01.08"," "]
[null,null,null,null,null,null,null,null,null," ","806/1-01.09"," "]
[null,null,null,null,null,null,null,null,null," ","806/1-01.10"," "]
[null,null,null,null,null,null,null,null,null," ","806/1-02.00"," "]
[null,null,null,null,null,null,null,null,null," ","806/1-02.01"," "]
[null,null,null,null,null,null,null,null,null," ","806/1-02.03"," "]
[null,null,null,null,null,null,null,null,null," ","806/1-02.06"," "]
[null,null,null,null,null,null,null,null,null," ","806/1-02.08"," "]
[null,null,null,null,null,null,null,null,null," ","806/1-02.09"," "]
[null,null,null,null,null,null,null,null,null," ","806/1-02.10"," "]
[null,null,null,null,null,null,null,null,null," ","806/1-03.00"," "]
[null,null,null,null,null,null,null,null,null," ","806/1-03.01"," "]
[null,null,null,null,null,null,null,null,null," ","806/1-03.03"," "]
[null,null,null,null,null,null,null,null,null," ","806/1-03.06"," "]
[null,null,null,null,null,null,null,null,null," ","806/1-03.08"," "]
[null,null,null,null,null,null,null,null,null," ","806/1-03.09"," "]
[null,null,null,null,null,null,null,null,null," ","806/1-03.10"," "]
[null,null,null,null,null,null,null,null,null," ","806/1-04.00"," "]
[null,null,null,null,null,null,null,null,null," ","806/1-04.01"," "]
[null,null,null,null,null,null,null,null,null," ","806/1-04.03"," "]
[null,null,null,null,null,null,null,null,null," ","806/1-04.06"," "]
[null,null,null,null,null,null,null,null,null," ","806/1-04.08"," "]
[null,null,null,null,null,null,null,null,null," ","806/1-04.09"," "]
[null,null,null,null,null,null,null,null,null," ","806/1-04.10"," "]
[null,null,null,null,null,null,null,null,null," ","809/1-01.00"," "]
[null,null,null,null,null,null,null,null,null," ","809/1-01.01"," "]
[null,null,null,null,null,null,null,null,null," ","809/1-01.03"," "]
[null,null,null,null,null,null,null,null,null," ","809/1-01.06"," "]
[null,null,null,null,null,null,null,null,null," ","809/1-01.08"," "]
[null,null,null,null,null,null,null,null,null," ","809/1-01.09"," "]
[null,null,null,null,null,null,null,null,null," ","809/1-01.10"," "]
[null,null,null,null,null,null,null,null,null," ","81"," "]
[null,null,null,null,null,null,null,null,null," ","81.01"," "]
[null,null,null,null,null,null,null,null,null," ","81.02"," "]
[null,null,null,null,null,null,null,null,null," ","8.10.2008"," "]
[null,null,null,null,null,null,null,null,null," ","81.09"," "]
[null,null,null,null,null,null,null,null,null," ","82"," "]
[null,null,null,null,null,null,null,null,null," ","82.02"," "]
[null,null,null,null,null,null,null,null,null," ","82.08"," "]
[null,null,null,null,null,null,null,null,null," ","83"," "]
[null,null,null,null,null,null,null,null,null," ","83.01"," "]
[null,null,null,null,null,null,null,null,null," ","83.02"," "]
[null,null,null,null,null,null,null,null,null," ","83.03"," "]
[null,null,null,null,null,null,null,null,null," ","83.05"," "]
[null,null,null,null,null,null,null,null,null," ","83.06"," "]
[null,null,null,null,null,null,null,null,null," ","83.08"," "]
[null,null,null,null,null,null,null,null,null," ","83.10"," "]
[null,null,null,null,null,null,null,null,null," ","83.11"," "]
[null,null,null,null,null,null,null,null,null," ","83.12"," "]
[null,null,null,null,null,null,null,null,null," ","83.15"," "]
[null,null,null,null,null,null,null,null,null," ","83.18"," "]
[null,null,null,null,null,null,null,null,null," ","83.34"," "]
[null,null,null,null,null,null,null,null,null," ","83.35"," "]
[null,null,null,null,null,null,null,null,null," ","83.36"," "]
[null,null,null,null,null,null,null,null,null," ","83.38"," "]
[null,null,null,null,null,null,null,null,null," ","83.39",{"$f":"IF($B$7=\"ETE\",J3527,K3527)","v":" "}]
[null,null,null,null,null,null,null,null,null," ","83.40"," "]
[null,null,null,null,null,null,null,null,null," ","83.41"," "]
[null,null,null,null,null,null,null,null,null," ","83.42"," "]
[null,null,null,null,null,null,null,null,null," ","83.43"," "]
[null,null,null,null,null,null,null,null,null," ","83.44"," "]
[null,null,null,null,null,null,null,null,null," ","83.45"," "]
[null,null,null,null,null,null,null,null,null," ","83.46"," "]
[null,null,null,null,null,null,null,null,null," ","84"," "]
[null,null,null,null,null,null,null,null,null," ","84.01"," "]
[null,null,null,null,null,null,null,null,null," ","840/1-01.00"," "]
[null,null,null,null,null,null,null,null,null," ","840/1-01.01"," "]
[null,null,null,null,null,null,null,null,null," ","840/1-01.03"," "]
[null,null,null,null,null,null,null,null,null," ","840/1-01.06"," "]
[null,null,null,null,null,null,null,null,null," ","840/1-01.08"," "]
[null,null,null,null,null,null,null,null,null," ","840/1-01.09"," "]
[null,null,null,null,null,null,null,null,null," ","840/1-01.10"," "]
[null,null,null,null,null,null,null,null,null," ","84.02"," "]
[null,null,null,null,null,null,null,null,null," ","84.03"," "]
[null,null,null,null,null,null,null,null,null," ","84.04"," "]
[null,null,null,null,null,null,null,null,null," ","85"," "]
[null,null,null,null,null,null,null,null,null," ","85.01"," "]
[null,null,null,null,null,null,null,null,null," ","85.02"," "]
[null,null,null,null,null,null,null,null,null," ","85.03"," "]
[null,null,null,null,null,null,null,null,null," ","850/3-01.00"," "]
[null,null,null,null,null,null,null,null,null," ","850/3-01.01"," "]
[null,null,null,null,null,null,null,null,null," ","850/3-01.03"," "]
[null,null,null,null,null,null,null,null,null," ","850/3-01.06"," "]
[null,null,null,null,null,null,null,null,null," ","850/3-01.08"," "]
[null,null,null,null,null,null,null,null,null," ","850/3-01.09"," "]
[null,null,null,null,null,null,null,null,null," ","850/3-01.10"," "]
[null,null,null,null,null,null,null,null,null," ","86"," "]
[null,null,null,null,null,null,null,null,null," ","89"," "]
[null,null,null,null,null,null,null,null,null," ","89.01"," "]
[null,null,null,null,null,null,null,null,null," ","89.02"," "]
[null,null,null,null,null,null,null,null,null," ","89.03"," "]
[null,null,null,null,null,null,null,null,null," ","89.04"," "]
[null,null,null,null,null,null,null,null,null," ","89.06"," "]
[null,null,null,null,null,null,null,null,null," ","89.08"," "]
[null,null,null,null,null,null,null,null,null," ","89.09"," "]
[null,null,null,null,null,null,null,null,null," ","89.09.01"," "]
[null,null,null,null,null,null,null,null,null," ","89.09.02"," "]
[null,null,null,null,null,null,null,null,null," ","89.09.08"," "]
[null,null,null,null,null,null,null,null,null," ","89.09.10"," "]
[null,null,null,null,null,null,null,null,null," ","89.10"," "]
[null,null,null,null,null,null,null,null,null," ","89.11"," "]
[null,null,null,null,null,null,null,null,null," ","9.I"," "]
[null,null,null,null,null,null,null,null,null," ","9.II"," "]
[null,null,null,null,null,null,null,null,null," ","9.III"," "]
[null,null,null,null,null,null,null,null,null," ","9.IV"," "]
[null,null,null,null,null,null,null,null,null," ","9.V"," "]
[null,null,null,null,null,null,null,null,null," ","9.VI"," "]
[null,null,null,null,null,null,null,null,null," ","90"," "]
[null,null,null,null,null,null,null,null,null," ","90.01"," "]
[null,null,null,null,null,null,null,null,null," ","90.08"," "]
[null,null,null,null,null,null,null,null,null," ","90.10"," "]
[null,null,null,null,null,null,null,null,null," ","901/1-01.00"," "]
[null,null,null,null,null,null,null,null,null," ","901/1-01.01"," "]
[null,null,null,null,null,null,null,null,null," ","901/1-01.03"," "]
[null,null,null,null,null,null,null,null,null," ","901/1-01.06"," "]
[null,null,null,null,null,null,null,null,null," ","901/1-01.08"," "]
[null,null,null,null,null,null,null,null,null," ","901/1-01.09"," "]
[null,null,null,null,null,null,null,null,null," ","901/1-01.10"," "]
[null,null,null,null,null,null,null,null,null," ","902/010.00"," "]
[null,null,null,null,null,null,null,null,null," ","902/010.01",{"$f":"IF($B$7=\"ETE\",J3591,K3591)","v":" "}]
[null,null,null,null,null,null,null,null,null," ","902/010.03"," "]
[null,null,null,null,null,null,null,null,null," ","902/010.06"," "]
[null,null,null,null,null,null,null,null,null," ","902/010.08"," "]
[null,null,null,null,null,null,null,null,null," ","902/010.09"," "]
[null,null,null,null,null,null,null,null,null," ","902/010.10"," "]
[null,null,null,null,null,null,null,null,null," ","903/010.00"," "]
[null,null,null,null,null,null,null,null,null," ","903/010.01"," "]
[null,null,null,null,null,null,null,null,null," ","903/010.03"," "]
[null,null,null,null,null,null,null,null,null," ","903/010.06"," "]
[null,null,null,null,null,null,null,null,null," ","903/010.08"," "]
[null,null,null,null,null,null,null,null,null," ","903/010.09"," "]
[null,null,null,null,null,null,null,null,null," ","903/010.10"," "]
[null,null,null,null,null,null,null,null,null," ","903/020.00"," "]
[null,null,null,null,null,null,null,null,null," ","903/020.01"," "]
[null,null,null,null,null,null,null,null,null," ","903/020.03"," "]
[null,null,null,null,null,null,null,null,null," ","903/020.06"," "]
[null,null,null,null,null,null,null,null,null," ","903/020.08"," "]
[null,null,null,null,null,null,null,null,null," ","903/020.09"," "]
[null,null,null,null,null,null,null,null,null," ","903/020.10"," "]
[null,null,null,null,null,null,null,null,null," ","903/050.00"," "]
[null,null,null,null,null,null,null,null,null," ","903/050.01"," "]
[null,null,null,null,null,null,null,null,null," ","903/050.03"," "]
[null,null,null,null,null,null,null,null,null," ","903/050.06"," "]
[null,null,null,null,null,null,null,null,null," ","903/050.08"," "]
[null,null,null,null,null,null,null,null,null," ","903/050.09"," "]
[null,null,null,null,null,null,null,null,null," ","903/050.10"," "]
[null,null,null,null,null,null,null,null,null," ","903/060.00"," "]
[null,null,null,null,null,null,null,null,null," ","903/060.01"," "]
[null,null,null,null,null,null,null,null,null," ","903/060.03"," "]
[null,null,null,null,null,null,null,null,null," ","903/060.06"," "]
[null,null,null,null,null,null,null,null,null," ","903/060.08"," "]
[null,null,null,null,null,null,null,null,null," ","903/060.09"," "]
[null,null,null,null,null,null,null,null,null," ","903/060.10"," "]
[null,null,null,null,null,null,null,null,null," ","903/070.00"," "]
[null,null,null,null,null,null,null,null,null," ","903/070.01"," "]
[null,null,null,null,null,null,null,null,null," ","903/070.03"," "]
[null,null,null,null,null,null,null,null,null," ","903/070.06"," "]
[null,null,null,null,null,null,null,null,null," ","903/070.08"," "]
[null,null,null,null,null,null,null,null,null," ","903/070.09"," "]
[null,null,null,null,null,null,null,null,null," ","903/070.10"," "]
[null,null,null,null,null,null,null,null,null," ","903/090.00"," "]
[null,null,null,null,null,null,null,null,null," ","903/090.01"," "]
[null,null,null,null,null,null,null,null,null," ","903/090.03"," "]
[null,null,null,null,null,null,null,null,null," ","903/090.06"," "]
[null,null,null,null,null,null,null,null,null," ","903/090.08"," "]
[null,null,null,null,null,null,null,null,null," ","903/090.09"," "]
[null,null,null,null,null,null,null,null,null," ","903/090.10"," "]
[null,null,null,null,null,null,null,null,null," ","903/130.00"," "]
[null,null,null,null,null,null,null,null,null," ","903/130.01"," "]
[null,null,null,null,null,null,null,null,null," ","903/130.03"," "]
[null,null,null,null,null,null,null,null,null," ","903/130.06"," "]
[null,null,null,null,null,null,null,null,null," ","903/130.08"," "]
[null,null,null,null,null,null,null,null,null," ","903/130.09"," "]
[null,null,null,null,null,null,null,null,null," ","903/130.10"," "]
[null,null,null,null,null,null,null,null,null," ","904/030.00"," "]
[null,null,null,null,null,null,null,null,null," ","904/030.01"," "]
[null,null,null,null,null,null,null,null,null," ","904/030.03"," "]
[null,null,null,null,null,null,null,null,null," ","904/030.06"," "]
[null,null,null,null,null,null,null,null,null," ","904/030.08"," "]
[null,null,null,null,null,null,null,null,null," ","904/030.09"," "]
[null,null,null,null,null,null,null,null,null," ","904/030.10"," "]
[null,null,null,null,null,null,null,null,null," ","904/070.00"," "]
[null,null,null,null,null,null,null,null,null," ","904/070.01"," "]
[null,null,null,null,null,null,null,null,null," ","904/070.03",{"$f":"IF($B$7=\"ETE\",J3655,K3655)","v":" "}]
[null,null,null,null,null,null,null,null,null," ","904/070.06"," "]
[null,null,null,null,null,null,null,null,null," ","904/070.08"," "]
[null,null,null,null,null,null,null,null,null," ","904/070.09"," "]
[null,null,null,null,null,null,null,null,null," ","904/070.10"," "]
[null,null,null,null,null,null,null,null,null," ","905/040.00"," "]
[null,null,null,null,null,null,null,null,null," ","905/040.01"," "]
[null,null,null,null,null,null,null,null,null," ","905/040.03"," "]
[null,null,null,null,null,null,null,null,null," ","905/040.06"," "]
[null,null,null,null,null,null,null,null,null," ","905/040.08"," "]
[null,null,null,null,null,null,null,null,null," ","905/040.09"," "]
[null,null,null,null,null,null,null,null,null," ","905/040.10"," "]
[null,null,null,null,null,null,null,null,null," ","906/071.00"," "]
[null,null,null,null,null,null,null,null,null," ","906/071.01"," "]
[null,null,null,null,null,null,null,null,null," ","906/071.03"," "]
[null,null,null,null,null,null,null,null,null," ","906/071.06"," "]
[null,null,null,null,null,null,null,null,null," ","906/071.08"," "]
[null,null,null,null,null,null,null,null,null," ","906/071.09"," "]
[null,null,null,null,null,null,null,null,null," ","906/071.10"," "]
[null,null,null,null,null,null,null,null,null," ","906/080.00"," "]
[null,null,null,null,null,null,null,null,null," ","906/080.01"," "]
[null,null,null,null,null,null,null,null,null," ","906/080.03"," "]
[null,null,null,null,null,null,null,null,null," ","906/080.06"," "]
[null,null,null,null,null,null,null,null,null," ","906/080.08"," "]
[null,null,null,null,null,null,null,null,null," ","906/080.09"," "]
[null,null,null,null,null,null,null,null,null," ","906/080.10"," "]
[null,null,null,null,null,null,null,null,null," ","91"," "]
[null,null,null,null,null,null,null,null,null," ","92"," "]
[null,null,null,null,null,null,null,null,null," ","93"," "]
[null,null,null,null,null,null,null,null,null," ","94"," "]
[null,null,null,null,null,null,null,null,null," ","942/1-03.00"," "]
[null,null,null,null,null,null,null,null,null," ","942/1-03.01"," "]
[null,null,null,null,null,null,null,null,null," ","942/1-03.03"," "]
[null,null,null,null,null,null,null,null,null," ","942/1-03.06"," "]
[null,null,null,null,null,null,null,null,null," ","942/1-03.08"," "]
[null,null,null,null,null,null,null,null,null," ","942/1-03.09"," "]
[null,null,null,null,null,null,null,null,null," ","942/1-03.10"," "]
[null,null,null,null,null,null,null,null,null," ","942/1-04.00"," "]
[null,null,null,null,null,null,null,null,null," ","942/1-04.01"," "]
[null,null,null,null,null,null,null,null,null," ","942/1-04.03"," "]
[null,null,null,null,null,null,null,null,null," ","942/1-04.06"," "]
[null,null,null,null,null,null,null,null,null," ","942/1-04.08"," "]
[null,null,null,null,null,null,null,null,null," ","942/1-04.09"," "]
[null,null,null,null,null,null,null,null,null," ","942/1-04.10"," "]
[null,null,null,null,null,null,null,null,null," ","942/1-05.00"," "]
[null,null,null,null,null,null,null,null,null," ","942/1-05.01"," "]
[null,null,null,null,null,null,null,null,null," ","942/1-05.03"," "]
[null,null,null,null,null,null,null,null,null," ","942/1-05.06"," "]
[null,null,null,null,null,null,null,null,null," ","942/1-05.08"," "]
[null,null,null,null,null,null,null,null,null," ","942/1-05.09"," "]
[null,null,null,null,null,null,null,null,null," ","942/1-05.10"," "]
[null,null,null,null,null,null,null,null,null," ","942/1-06.00"," "]
[null,null,null,null,null,null,null,null,null," ","942/1-06.01"," "]
[null,null,null,null,null,null,null,null,null," ","942/1-06.03"," "]
[null,null,null,null,null,null,null,null,null," ","942/1-06.06"," "]
[null,null,null,null,null,null,null,null,null," ","942/1-06.08"," "]
[null,null,null,null,null,null,null,null,null," ","942/1-06.09"," "]
[null,null,null,null,null,null,null,null,null," ","942/1-06.10"," "]
[null,null,null,null,null,null,null,null,null," ","942/1-08.00"," "]
[null,null,null,null,null,null,null,null,null," ","942/1-08.01"," "]
[null,null,null,null,null,null,null,null,null," ","942/1-08.03"," "]
[null,null,null,null,null,null,null,null,null," ","942/1-08.06"," "]
[null,null,null,null,null,null,null,null,null," ","942/1-08.08"," "]
[null,null,null,null,null,null,null,null,null," ","942/1-08.09"," "]
[null,null,null,null,null,null,null,null,null," ","942/1-08.10",{"$f":"IF($B$7=\"ETE\",J3719,K3719)","v":" "}]
[null,null,null,null,null,null,null,null,null," ","943/1-02.00"," "]
[null,null,null,null,null,null,null,null,null," ","943/1-02.01"," "]
[null,null,null,null,null,null,null,null,null," ","943/1-02.03"," "]
[null,null,null,null,null,null,null,null,null," ","943/1-02.06"," "]
[null,null,null,null,null,null,null,null,null," ","943/1-02.08"," "]
[null,null,null,null,null,null,null,null,null," ","943/1-02.09"," "]
[null,null,null,null,null,null,null,null,null," ","943/1-02.10"," "]
[null,null,null,null,null,null,null,null,null," ","95"," "]
[null,null,null,null,null,null,null,null,null," ","N/A"," "]